Workbook

Sheet Inicio
B1: Indice
B2: Descriptivos para variable cuantitativa
B3: Tamaño muestra para estimar media
B4: Tamaño muestra para escalas Likert
B5: Procesamiento de encuestas
B6: Muestreo para variables cuantitativas
B7: Muestreo proporcional
B8: Histogramas
B9: Medidas de dispersión
B10: Prueba Z
B11: Prueba de hipótesis
B12: Prueba de chi cuadrado
B13: Análisis de regresión lineal
B14: Coeficiente de correlación y determinación
B15: Coeficiente de correlación de Spearman
B16: Tabla de contingencia 2 filas por 2 columnas
B17: Ejercicios
B18: Tamaño de muestra para estimar media(Ej. 1 )
B19: Tamaño de muestra para estimar proporciones (Ej. 2)
B20: Tablas conjuntas
B21: Medidas de tendencia central y dispersión
B22: Prueba Z
B23: Prueba de hipótesis
B24: Chi cuadrado
B25: Regresión y correlación
B27: Coeficiente de correlaciòn de Spearman
B28: Tablas 2 * 2

Sheet DescriptivosVarCuanti
S1: 57
B2: Número de encuestas | D2: 8
B4: Encuesta | C4: Valor | G4: Estadística descriptiva
B5: 1 | C5: 23 | G5: Media | H5: =Datos!B1 -> 62.625
B6: 2 | C6: 89 | G6: Error típico | H6: =Datos!B2 -> 10.16109088
B7: 3 | C7: 90 | G7: Mediana | H7: =Datos!B3 -> 71
B8: 4 | C8: 45 | G8: Moda | H8: =Datos!B4 -> 23
B9: 5 | C9: 23 | G9: Desviación estándar | H9: =Datos!B5 -> 28.73990506
B10: 6 | C10: 76 | G10: Varianza de la muestra | H10: =Datos!B6 -> 825.9821429
B11: 7 | C11: 89 | G11: Curtosis | H11: =Datos!B7 -> -1.588889881
B12: 8 | C12: 66 | G12: Coeficiente de asimetría | H12: =Datos!B8 -> -0.563822118
G13: Rango | H13: =Datos!B9 -> 67
G14: Mínimo | H14: =Datos!B10 -> 23
G15: Máximo | H15: =Datos!B11 -> 90
G16: Suma | H16: =Datos!B12 -> 501
G17: Cuenta | H17: =Datos!B13 -> 8 | I17: Ir a Muestra
I18: Inicio

Sheet Muestra
A1: Homogeneidad de la muestra
C3: =Datos!B5 -> 28.73990506 | D3: =L3 -> 0.4589206397 | L3: =C3/C4 -> 0.4589206397
C4: =Datos!B1 -> 62.625
A7: Población infinita | D7: =Datos!F16 -> 393
A10: Confianza | B10: 95
A11: Error | B11: 2.844
A12: Z | B12: =Datos!D16 -> 1.959963985
A13: S | B13: =Datos!B5 -> 28.73990506
A16: Población finita | D16: =Datos!H16 -> 392.2596023
A20: Valor N | B20: 5000000 | D20: Regresar a Datos
D21: Inicio

Sheet EscalaLikert
S1: 57
B2: Número de encuestas | D2: 10
B4: Encuesta | C4: Valor | G4: Estadística descriptiva
B5: 1 | C5: 2 | G5: Media | H5: =Datos!F1 -> 3.6
B6: 2 | C6: 3 | G6: Error típico | H6: =Datos!F2 -> 0.6359594676
B7: 3 | C7: 4 | G7: Mediana | H7: =Datos!F3 -> 3
B8: 4 | C8: 8 | G8: Moda | H8: =Datos!F4 -> 3
B9: 5 | C9: 5 | G9: Desviación estándar | H9: =Datos!F5 -> 2.011080417
B10: 6 | C10: 3 | G10: Varianza de la muestra | H10: =Datos!F6 -> 4.044444444
B11: 7 | C11: 1 | G11: Curtosis | H11: =Datos!F7 -> 1.554354202
B12: 8 | C12: 2 | G12: Coeficiente de asimetría | H12: =Datos!F8 -> 1.098310734
B13: 9 | C13: 3 | G13: Rango | H13: =Datos!F9 -> 7
B14: 10 | C14: 5 | G14: Mínimo | H14: =Datos!F10 -> 1
G15: Máximo | H15: =Datos!F11 -> 8
G16: Suma | H16: =Datos!F12 -> 36
G17: Cuenta | H17: =Datos!F13 -> 10 | I17: Ir a Muestra2
I18: Inicio

Sheet Muestra2
A1: Homogeneidad de la muestra
C3: =Datos!F5 -> 2.011080417 | D3: =H12 -> 0.5586334492
C4: =Datos!F1 -> 3.6
A7: Población infinita | D7: =Datos!F17 -> 1333
A10: Confianza | B10: 95
A11: Error | B11: 0.03
A12: Z | B12: =Datos!D17 -> 1.959963985 | F12: =(Datos!F5^2)/((B11^2)*Datos!F1^2/Datos!D17^2)+(Datos!F5^2/B20) -> 1332.014228 | H12: =C3/C4 -> 0.5586334492
A13: S | B13: =Datos!F5 -> 2.011080417
F15: =(Datos!F5) -> 2.011080417
A16: Población finita | D16: =Datos!H17 -> 571.1854061
F18: =(1.29^2)/((0.05^2/1.96^2)+(1.29^2/7584)) -> 1912.334433
A20: Valor N | B20: 1000 | D20: Regresar a Datos
D21: Inicio

Sheet ProcesamientoEncuesta
H3: 3
G4: 5
F5: Parcialmente de acuerdo | G5: 4 | H5: 50 | N5: 1
F6: Indiferente | G6: 3
F7: Practicamente en desacuerdo | G7: 2 | H7: 5 | S7: Resultados
R9: Inicio
C10: R1 | D10: R2 | E10: R3
B11: 1 | C11: 2 | D11: 2 | E11: 1
B12: 2 | C12: 3 | D12: 2 | E12: 1
B13: 3 | C13: 4 | D13: 2 | E13: 1
B14: 4 | C14: 5 | D14: 2 | E14: 1
B15: 5 | C15: 2 | D15: 2 | E15: 1
B16: 6 | C16: 3 | D16: 2 | E16: 1
B17: 7 | C17: 4 | D17: 2 | E17: 1
B18: 8 | C18: 5 | D18: 2 | E18: 1
B19: 9 | C19: 2 | D19: 2 | E19: 1
B20: 10 | C20: 2 | D20: 2 | E20: 1
B21: 11 | C21: 2 | D21: 3 | E21: 1
B22: 12 | C22: 3 | D22: 3 | E22: 1
B23: 13 | C23: 3 | D23: 3 | E23: 1
B24: 14 | C24: 4 | D24: 3 | E24: 1
B25: 15 | C25: 5 | D25: 3 | E25: 1
B26: 16 | C26: 5 | D26: 3 | E26: 1
B27: 17 | C27: 3 | D27: 3 | E27: 1
B28: 18 | C28: 4 | D28: 3 | E28: 2
B29: 19 | C29: 4 | D29: 4 | E29: 2
B30: 20 | C30: 2 | D30: 4 | E30: 2
B31: 21 | C31: 2 | D31: 4 | E31: 2
B32: 22 | C32: 2 | D32: 4 | E32: 2
B33: 23 | C33: 3 | D33: 4 | E33: 2
B34: 24 | C34: 3 | D34: 4 | E34: 2
B35: 25 | C35: 3 | D35: 4 | E35: 2
B36: 26 | C36: 4 | D36: 5 | E36: 2
B37: 27 | C37: 4 | D37: 5 | E37: 2
B38: 28 | C38: 4 | D38: 5 | E38: 2
B39: 29 | C39: 5 | D39: 5 | E39: 2
B40: 30 | C40: 5 | D40: 5 | E40: 2
B41: 31 | C41: 5 | D41: 5 | E41: 3
B42: 32 | C42: 2 | D42: 5 | E42: 3
B43: 33 | C43: 3 | D43: 1 | E43: 3
B44: 34 | C44: 4 | D44: 2 | E44: 3
B45: 35 | C45: 5 | D45: 3 | E45: 3
B46: 36 | C46: 4 | D46: 4 | E46: 3
B47: 37 | C47: 4 | D47: 5 | E47: 3
B48: 38 | C48: 3 | D48: 5 | E48: 3
B49: 39 | C49: 2 | D49: 4 | E49: 3
B50: 40 | C50: 1 | D50: 3 | E50: 3
B51: 41 | C51: 2 | D51: 2 | E51: 4
B52: 42 | C52: 3 | D52: 1 | E52: 4
B53: 43 | C53: 4 | D53: 2 | E53: 4
B54: 44 | C54: 5 | D54: 3 | E54: 4
B55: 45 | C55: 2 | D55: 4 | E55: 4
B56: 46 | C56: 2 | D56: 3 | E56: 4
B57: 47 | C57: 2 | D57: 2 | E57: 4
B58: 48 | C58: 2 | D58: 1 | E58: 4
B59: 49 | C59: 2 | D59: 4 | E59: 5
B60: 50 | C60: 2 | D60: 5 | E60: 5

Sheet Resultados
B2: Tabla de distribución de frecuencias | H2: Medidas de dispersión | L2: Tendencias
B3: Yi | C3: ni | D3: hi | E3: Ni | F3: Hi | H3: Calificación máx. | J3: =Hoja19!Q8 -> 5 | L3: Moda | M3: =Hoja19!Q13 -> 2
B4: 1 | C4: =Hoja19!G9 -> 1 | D4: =Hoja19!I9 -> 0.02 | E4: =Hoja19!L9 -> 1 | F4: =Hoja19!O9 -> 0.02 | H4: Calificación mín. | J4: =Hoja19!Q9 -> 1 | L4: Media | M4: =Hoja19!Q14 -> 3.22
B5: 2 | C5: =Hoja19!G10 -> 17 | D5: =Hoja19!I10 -> 0.34 | E5: =Hoja19!L10 -> 18 | F5: =Hoja19!O10 -> 0.36 | H5: Rango | J5: =Hoja19!Q10 -> 4
B6: 3 | C6: =Hoja19!G11 -> 11 | D6: =Hoja19!I11 -> 0.22 | E6: =Hoja19!L11 -> 29 | F6: =Hoja19!O11 -> 0.58 | H6: Desv. estándar | J6: =Hoja19!Q11 -> 1.165665265
B7: 4 | C7: =Hoja19!G12 -> 12 | D7: =Hoja19!I12 -> 0.24 | E7: =Hoja19!L12 -> 41 | F7: =Hoja19!O12 -> 0.82 | H7: Varianza | J7: =Hoja19!Q12 -> 1.35877551 | L7: Regresar a Procesamiento
B8: 5 | C8: =Hoja19!G13 -> 9 | D8: =Hoja19!I13 -> 0.18 | E8: =Hoja19!L13 -> 50 | F8: =Hoja19!O13 -> 1
C9: =Hoja19!G14 ->  | D9: =Hoja19!I14 ->  | E9: =Hoja19!L14 ->  | F9: =Hoja19!O14 ->  | L9: Inicio
C10: =Hoja19!G15 ->  | D10: =Hoja19!I15 ->  | E10: =Hoja19!L15 ->  | F10: =Hoja19!O15 -> 
C11: =Hoja19!G16 ->  | D11: =Hoja19!I16 ->  | E11: =Hoja19!L16 ->  | F11: =Hoja19!O16 -> 
C12: =Hoja19!G17 ->  | D12: =Hoja19!I17 ->  | E12: =Hoja19!L17 ->  | F12: =Hoja19!O17 -> 
C13: =Hoja19!G18 ->  | D13: =Hoja19!I18 ->  | E13: =Hoja19!L18 ->  | F13: =Hoja19!O18 -> 
C14: =Hoja19!G19 ->  | D14: =Hoja19!I19 ->  | E14: =Hoja19!L19 ->  | F14: =Hoja19!O19 -> 
C15: =Hoja19!G20 ->  | D15: =Hoja19!I20 ->  | E15: =Hoja19!L20 ->  | F15: =Hoja19!O20 -> 
C16: =Hoja19!G21 ->  | D16: =Hoja19!I21 ->  | E16: =Hoja19!L21 ->  | F16: =Hoja19!O21 -> 
C17: =Hoja19!G22 ->  | D17: =Hoja19!I22 ->  | E17: =Hoja19!L22 ->  | F17: =Hoja19!O22 -> 
C18: =Hoja19!G23 ->  | D18: =Hoja19!I23 ->  | E18: =Hoja19!L23 ->  | F18: =Hoja19!O23 -> 
C19: =Hoja19!G24 ->  | D19: =Hoja19!I24 ->  | E19: =Hoja19!L24 ->  | F19: =Hoja19!O24 -> 
C20: =Hoja19!G25 ->  | D20: =Hoja19!I25 ->  | E20: =Hoja19!L25 ->  | F20: =Hoja19!O25 -> 
C21: =Hoja19!G26 ->  | D21: =Hoja19!I26 ->  | E21: =Hoja19!L26 ->  | F21: =Hoja19!O26 -> 
C22: =Hoja19!G27 ->  | D22: =Hoja19!I27 ->  | E22: =Hoja19!L27 ->  | F22: =Hoja19!O27 -> 
C23: =Hoja19!G28 ->  | D23: =Hoja19!I28 ->  | E23: =Hoja19!L28 ->  | F23: =Hoja19!O28 -> 
C24: =Hoja19!G29 ->  | D24: =Hoja19!I29 ->  | E24: =Hoja19!L29 ->  | F24: =Hoja19!O29 -> 
C25: =Hoja19!G30 ->  | D25: =Hoja19!I30 ->  | E25: =Hoja19!L30 ->  | F25: =Hoja19!O30 -> 
C26: =Hoja19!G31 ->  | D26: =Hoja19!I31 ->  | E26: =Hoja19!L31 ->  | F26: =Hoja19!O31 -> 
C27: =Hoja19!G32 ->  | D27: =Hoja19!I32 ->  | E27: =Hoja19!L32 ->  | F27: =Hoja19!O32 -> 
C28: =Hoja19!G33 ->  | D28: =Hoja19!I33 ->  | E28: =Hoja19!L33 ->  | F28: =Hoja19!O33 -> 
C29: =Hoja19!G34 ->  | D29: =Hoja19!I34 ->  | E29: =Hoja19!L34 ->  | F29: =Hoja19!O34 -> 
C30: =Hoja19!G35 ->  | D30: =Hoja19!I35 ->  | E30: =Hoja19!L35 ->  | F30: =Hoja19!O35 -> 
C31: =Hoja19!G36 ->  | D31: =Hoja19!I36 ->  | E31: =Hoja19!L36 ->  | F31: =Hoja19!O36 -> 
C32: =Hoja19!G37 ->  | D32: =Hoja19!I37 ->  | E32: =Hoja19!L37 ->  | F32: =Hoja19!O37 -> 
C33: =Hoja19!G38 ->  | D33: =Hoja19!I38 ->  | E33: =Hoja19!L38 ->  | F33: =Hoja19!O38 -> 
C34: =Hoja19!G39 ->  | D34: =Hoja19!I39 ->  | E34: =Hoja19!L39 ->  | F34: =Hoja19!O39 -> 
C35: =Hoja19!G40 ->  | D35: =Hoja19!I40 ->  | E35: =Hoja19!L40 ->  | F35: =Hoja19!O40 -> 
C36: =Hoja19!G41 ->  | D36: =Hoja19!I41 ->  | E36: =Hoja19!L41 ->  | F36: =Hoja19!O41 -> 
C37: =Hoja19!G42 ->  | D37: =Hoja19!I42 ->  | E37: =Hoja19!L42 ->  | F37: =Hoja19!O42 -> 
C38: =Hoja19!G43 ->  | D38: =Hoja19!I43 ->  | E38: =Hoja19!L43 ->  | F38: =Hoja19!O43 -> 
C39: =Hoja19!G44 ->  | D39: =Hoja19!I44 ->  | E39: =Hoja19!L44 ->  | F39: =Hoja19!O44 -> 
C40: =Hoja19!G45 ->  | D40: =Hoja19!I45 ->  | E40: =Hoja19!L45 ->  | F40: =Hoja19!O45 -> 
C41: =Hoja19!G46 ->  | D41: =Hoja19!I46 ->  | E41: =Hoja19!L46 ->  | F41: =Hoja19!O46 -> 
C42: =Hoja19!G47 ->  | D42: =Hoja19!I47 ->  | E42: =Hoja19!L47 ->  | F42: =Hoja19!O47 -> 
C43: =Hoja19!G48 ->  | D43: =Hoja19!I48 ->  | E43: =Hoja19!L48 ->  | F43: =Hoja19!O48 -> 
C44: =Hoja19!G49 ->  | D44: =Hoja19!I49 ->  | E44: =Hoja19!L49 ->  | F44: =Hoja19!O49 -> 
C45: =Hoja19!G50 ->  | D45: =Hoja19!I50 ->  | E45: =Hoja19!L50 ->  | F45: =Hoja19!O50 -> 
C46: =Hoja19!G51 ->  | D46: =Hoja19!I51 ->  | E46: =Hoja19!L51 ->  | F46: =Hoja19!O51 -> 
C47: =Hoja19!G52 ->  | D47: =Hoja19!I52 ->  | E47: =Hoja19!L52 ->  | F47: =Hoja19!O52 -> 
C48: =Hoja19!G53 ->  | D48: =Hoja19!I53 ->  | E48: =Hoja19!L53 ->  | F48: =Hoja19!O53 -> 
C49: =Hoja19!G54 ->  | D49: =Hoja19!I54 ->  | E49: =Hoja19!L54 ->  | F49: =Hoja19!O54 -> 
C50: =Hoja19!G55 ->  | D50: =Hoja19!I55 ->  | E50: =Hoja19!L55 ->  | F50: =Hoja19!O55 -> 
C51: =Hoja19!G56 ->  | D51: =Hoja19!I56 ->  | E51: =Hoja19!L56 ->  | F51: =Hoja19!O56 -> 
C52: =Hoja19!G57 ->  | D52: =Hoja19!I57 ->  | E52: =Hoja19!L57 ->  | F52: =Hoja19!O57 -> 
C53: =Hoja19!G58 ->  | D53: =Hoja19!I58 ->  | E53: =Hoja19!L58 ->  | F53: =Hoja19!O58 -> 
C54: =Hoja19!G59 ->  | D54: =Hoja19!I59 ->  | E54: =Hoja19!L59 ->  | F54: =Hoja19!O59 -> 
C55: =Hoja19!G60 ->  | D55: =Hoja19!I60 ->  | E55: =Hoja19!L60 ->  | F55: =Hoja19!O60 -> 
C56: =Hoja19!G61 ->  | D56: =Hoja19!I61 ->  | E56: =Hoja19!L61 ->  | F56: =Hoja19!O61 -> 
C57: =Hoja19!G62 ->  | D57: =Hoja19!I62 ->  | E57: =Hoja19!L62 ->  | F57: =Hoja19!O62 -> 
C58: =Hoja19!G63 ->  | D58: =Hoja19!I63 ->  | E58: =Hoja19!L63 ->  | F58: =Hoja19!O63 -> 
C59: =Hoja19!G64 ->  | D59: =Hoja19!I64 ->  | E59: =Hoja19!L64 ->  | F59: =Hoja19!O64 -> 
C60: =Hoja19!G65 ->  | D60: =Hoja19!I65 ->  | E60: =Hoja19!L65 ->  | F60: =Hoja19!O65 -> 
C61: =Hoja19!G66 ->  | D61: =Hoja19!I66 ->  | E61: =Hoja19!L66 ->  | F61: =Hoja19!O66 -> 
C62: =Hoja19!G67 ->  | D62: =Hoja19!I67 ->  | E62: =Hoja19!L67 ->  | F62: =Hoja19!O67 -> 
C63: =Hoja19!G68 ->  | D63: =Hoja19!I68 ->  | E63: =Hoja19!L68 ->  | F63: =Hoja19!O68 -> 
C64: =Hoja19!G69 ->  | D64: =Hoja19!I69 ->  | E64: =Hoja19!L69 ->  | F64: =Hoja19!O69 -> 
C65: =Hoja19!G70 ->  | D65: =Hoja19!I70 ->  | E65: =Hoja19!L70 ->  | F65: =Hoja19!O70 -> 

Sheet Hoja19 (hidden)
B8: R1 | F8: CONTAR SI | I8: hi | L8: Ni | O8: Hi | P8: maximo | Q8: =MAX(B9:B508) -> 5
A9: 1 | B9: 2 | D9: =COUNT(B9:B508) -> 50 | E9: contar | F9: =COUNTIF($B$9:$B$510,Resultados!B4) -> 1 | G9: =IF(F9 <> 0,F9,"") -> 1 | H9: =F9/$D$9 -> 0.02 | I9: =IF(H9 <> 0,H9,"") -> 0.02 | J9: =F9 -> 1 | K9: =IF(H9<>0,J9,0) -> 1 | L9: =IF(K9 <> 0,K9,"") -> 1 | M9: =L9/$D$9 -> 0.02 | N9: =IF(K9<>0,M9,0) -> 0.02 | O9: =IF(N9 <> 0,N9,"") -> 0.02 | P9: minimo | Q9: =MIN(B9:B509) -> 1
A10: 2 | B10: 3 | F10: =COUNTIF($B$9:$B$510,Resultados!B5) -> 17 | G10: =IF(F10 <> 0,F10,"") -> 17 | H10: =F10/$D$9 -> 0.34 | I10: =IF(H10 <> 0,H10,"") -> 0.34 | J10: =J9+F10 -> 18 | K10: =IF(H10<>0,J10,0) -> 18 | L10: =IF(K10 <> 0,K10,"") -> 18 | M10: =L10/$D$9 -> 0.36 | N10: =IF(K10<>0,M10,0) -> 0.36 | O10: =IF(N10 <> 0,N10,"") -> 0.36 | P10: rango | Q10: =Q8-Q9 -> 4
A11: 3 | B11: 4 | F11: =COUNTIF($B$9:$B$510,Resultados!B6) -> 11 | G11: =IF(F11 <> 0,F11,"") -> 11 | H11: =F11/$D$9 -> 0.22 | I11: =IF(H11 <> 0,H11,"") -> 0.22 | J11: =J10+F11 -> 29 | K11: =IF(H11<>0,J11,0) -> 29 | L11: =IF(K11 <> 0,K11,"") -> 29 | M11: =L11/$D$9 -> 0.58 | N11: =IF(K11<>0,M11,0) -> 0.58 | O11: =IF(N11 <> 0,N11,"") -> 0.58 | P11: desv. Est | Q11: =_xlfn.STDEV.S(B9:B508) -> 1.165665265
A12: 4 | B12: 5 | F12: =COUNTIF($B$9:$B$510,Resultados!B7) -> 12 | G12: 12 | H12: 0.24 | I12: 0.24 | J12: 41 | K12: 41 | L12: 41 | M12: 0.82 | N12: 0.82 | O12: 0.82 | P12: vaianza | Q12: =VAR(B9:B508) -> 1.35877551
A13: 5 | B13: 2 | F13: =COUNTIF($B$9:$B$510,Resultados!B8) -> 9 | G13: 9 | H13: 0.18 | I13: 0.18 | J13: 50 | K13: 50 | L13: 50 | M13: 1 | N13: 1 | O13: 1 | P13: moda | Q13: =_xlfn.MODE.SNGL(B9:B508) -> 2
A14: 6 | B14: 3 | F14: =COUNTIF($B$9:$B$510,Resultados!B9) -> 0 | H14: 0 | J14: 50 | K14: 0 | N14: 0 | P14: media | Q14: =Q15/D9 -> 3.22
A15: 7 | B15: 4 | F15: =COUNTIF($B$9:$B$510,Resultados!B10) -> 0 | H15: 0 | J15: 50 | K15: 0 | N15: 0 | P15: suma | Q15: =SUM(B9:B508) -> 161
A16: 8 | B16: 5 | F16: =COUNTIF($B$9:$B$510,Resultados!B11) -> 0 | H16: 0 | J16: =J15+F16 -> 50 | K16: 0 | N16: 0
A17: 9 | B17: 2 | F17: =COUNTIF($B$9:$B$510,Resultados!B12) -> 0 | H17: 0 | J17: 50 | K17: 0 | N17: 0
A18: 10 | B18: 2 | F18: =COUNTIF($B$9:$B$510,Resultados!B13) -> 0 | H18: 0 | J18: 50 | K18: 0 | N18: 0
A19: 11 | B19: 2 | F19: =COUNTIF($B$9:$B$510,Resultados!B14) -> 0 | H19: 0 | J19: 50 | K19: 0 | N19: 0
A20: 12 | B20: 3 | F20: =COUNTIF($B$9:$B$510,Resultados!B15) -> 0 | H20: 0 | J20: 50 | K20: 0 | N20: 0
A21: 13 | B21: 3 | F21: =COUNTIF($B$9:$B$510,Resultados!B16) -> 0 | H21: 0 | J21: 50 | K21: 0 | N21: 0
A22: 14 | B22: 4 | F22: =COUNTIF($B$9:$B$510,Resultados!B17) -> 0 | H22: 0 | J22: 50 | K22: 0 | N22: 0
A23: 15 | B23: 5 | F23: =COUNTIF($B$9:$B$510,Resultados!B18) -> 0 | H23: 0 | J23: 50 | K23: 0 | N23: 0
A24: 16 | B24: 5 | F24: =COUNTIF($B$9:$B$510,Resultados!B19) -> 0 | H24: 0 | J24: 50 | K24: 0 | N24: 0
A25: 17 | B25: 3 | F25: =COUNTIF($B$9:$B$510,Resultados!B20) -> 0 | H25: 0 | J25: 50 | K25: 0 | N25: 0
A26: 18 | B26: 4 | F26: =COUNTIF($B$9:$B$510,Resultados!B21) -> 0 | H26: 0 | J26: 50 | K26: 0 | N26: 0
A27: 19 | B27: 4 | F27: =COUNTIF($B$9:$B$510,Resultados!B22) -> 0 | H27: 0 | J27: 50 | K27: 0 | N27: 0
A28: 20 | B28: 2 | F28: =COUNTIF($B$9:$B$510,Resultados!B23) -> 0 | H28: 0 | J28: 50 | K28: 0 | N28: 0
A29: 21 | B29: 2 | F29: =COUNTIF($B$9:$B$510,Resultados!B24) -> 0 | H29: 0 | J29: 50 | K29: 0 | N29: 0
A30: 22 | B30: 2 | F30: =COUNTIF($B$9:$B$510,Resultados!B25) -> 0 | H30: 0 | J30: 50 | K30: 0 | N30: 0
A31: 23 | B31: 3 | F31: =COUNTIF($B$9:$B$510,Resultados!B26) -> 0 | H31: 0 | J31: 50 | K31: 0 | N31: 0
A32: 24 | B32: 3 | F32: =COUNTIF($B$9:$B$510,Resultados!B27) -> 0 | H32: 0 | J32: 50 | K32: 0 | N32: 0
A33: 25 | B33: 3 | F33: =COUNTIF($B$9:$B$510,Resultados!B28) -> 0 | H33: 0 | J33: 50 | K33: 0 | N33: 0
A34: 26 | B34: 4 | F34: =COUNTIF($B$9:$B$510,Resultados!B29) -> 0 | H34: 0 | J34: 50 | K34: 0 | N34: 0
A35: 27 | B35: 4 | F35: =COUNTIF($B$9:$B$510,Resultados!B30) -> 0 | H35: 0 | J35: 50 | K35: 0 | N35: 0
A36: 28 | B36: 4 | F36: =COUNTIF($B$9:$B$510,Resultados!B31) -> 0 | H36: 0 | J36: 50 | K36: 0 | N36: 0
A37: 29 | B37: 5 | F37: =COUNTIF($B$9:$B$510,Resultados!B32) -> 0 | H37: 0 | J37: 50 | K37: 0 | N37: 0
A38: 30 | B38: 5 | F38: =COUNTIF($B$9:$B$510,Resultados!B33) -> 0 | H38: 0 | J38: 50 | K38: 0 | N38: 0
A39: 31 | B39: 5 | F39: =COUNTIF($B$9:$B$510,Resultados!B34) -> 0 | H39: 0 | J39: 50 | K39: 0 | N39: 0
A40: 32 | B40: 2 | F40: =COUNTIF($B$9:$B$510,Resultados!B35) -> 0 | H40: 0 | J40: 50 | K40: 0 | N40: 0
A41: 33 | B41: 3 | F41: =COUNTIF($B$9:$B$510,Resultados!B36) -> 0 | H41: 0 | J41: 50 | K41: 0 | N41: 0
A42: 34 | B42: 4 | F42: =COUNTIF($B$9:$B$510,Resultados!B37) -> 0 | H42: 0 | J42: 50 | K42: 0 | N42: 0
A43: 35 | B43: 5 | F43: =COUNTIF($B$9:$B$510,Resultados!B38) -> 0 | H43: 0 | J43: 50 | K43: 0 | N43: 0
A44: 36 | B44: 4 | F44: =COUNTIF($B$9:$B$510,Resultados!B39) -> 0 | H44: 0 | J44: 50 | K44: 0 | N44: 0
A45: 37 | B45: 4 | F45: =COUNTIF($B$9:$B$510,Resultados!B40) -> 0 | H45: 0 | J45: 50 | K45: 0 | N45: 0
A46: 38 | B46: 3 | F46: =COUNTIF($B$9:$B$510,Resultados!B41) -> 0 | H46: 0 | J46: 50 | K46: 0 | N46: 0
A47: 39 | B47: 2 | F47: =COUNTIF($B$9:$B$510,Resultados!B42) -> 0 | H47: 0 | J47: 50 | K47: 0 | N47: 0
A48: 40 | B48: 1 | F48: =COUNTIF($B$9:$B$510,Resultados!B43) -> 0 | H48: 0 | J48: 50 | K48: 0 | N48: 0
A49: 41 | B49: 2 | F49: =COUNTIF($B$9:$B$510,Resultados!B44) -> 0 | H49: 0 | J49: 50 | K49: 0 | N49: 0
A50: 42 | B50: 3 | F50: =COUNTIF($B$9:$B$510,Resultados!B45) -> 0 | H50: 0 | J50: 50 | K50: 0 | N50: 0
A51: 43 | B51: 4 | F51: =COUNTIF($B$9:$B$510,Resultados!B46) -> 0 | H51: 0 | J51: 50 | K51: 0 | N51: 0
A52: 44 | B52: 5 | F52: =COUNTIF($B$9:$B$510,Resultados!B47) -> 0 | H52: 0 | J52: 50 | K52: 0 | N52: 0
A53: 45 | B53: 2 | F53: =COUNTIF($B$9:$B$510,Resultados!B48) -> 0 | H53: 0 | J53: 50 | K53: 0 | N53: 0
A54: 46 | B54: 2 | F54: =COUNTIF($B$9:$B$510,Resultados!B49) -> 0 | H54: 0 | J54: 50 | K54: 0 | N54: 0
A55: 47 | B55: 2 | F55: =COUNTIF($B$9:$B$510,Resultados!B50) -> 0 | H55: 0 | J55: 50 | K55: 0 | N55: 0
A56: 48 | B56: 2 | F56: =COUNTIF($B$9:$B$510,Resultados!B51) -> 0 | H56: 0 | J56: 50 | K56: 0 | N56: 0
A57: 49 | B57: 2 | F57: =COUNTIF($B$9:$B$510,Resultados!B52) -> 0 | H57: 0 | J57: 50 | K57: 0 | N57: 0
A58: 50 | B58: 2 | F58: =COUNTIF($B$9:$B$510,Resultados!B53) -> 0 | H58: 0 | J58: 50 | K58: 0 | N58: 0
F59: =COUNTIF($B$9:$B$510,Resultados!B54) -> 0 | H59: 0 | J59: 50 | K59: 0 | N59: 0
F60: =COUNTIF($B$9:$B$510,Resultados!B55) -> 0 | H60: 0 | J60: 50 | K60: 0 | N60: 0
F61: =COUNTIF($B$9:$B$510,Resultados!B56) -> 0 | H61: 0 | J61: 50 | K61: 0 | N61: 0
F62: =COUNTIF($B$9:$B$510,Resultados!B57) -> 0 | H62: 0 | J62: 50 | K62: 0 | N62: 0
F63: =COUNTIF($B$9:$B$510,Resultados!B58) -> 0 | H63: 0 | J63: 50 | K63: 0 | N63: 0
F64: =COUNTIF($B$9:$B$510,Resultados!B59) -> 0 | H64: 0 | J64: 50 | K64: 0 | N64: 0
F65: =COUNTIF($B$9:$B$510,Resultados!B60) -> 0 | H65: 0 | J65: 50 | K65: 0 | N65: 0
F66: =COUNTIF($B$9:$B$510,Resultados!B61) -> 0 | H66: 0 | J66: 50 | K66: 0 | N66: 0
F67: =COUNTIF($B$9:$B$510,Resultados!B62) -> 0 | H67: 0 | J67: 50 | K67: 0 | N67: 0
F68: =COUNTIF($B$9:$B$510,Resultados!B63) -> 0 | H68: 0 | J68: 50 | K68: 0 | N68: 0
F69: =COUNTIF($B$9:$B$510,Resultados!B64) -> 0 | H69: 0 | J69: 50 | K69: 0 | N69: 0
F70: =COUNTIF($B$9:$B$510,Resultados!B65) -> 0 | H70: 0 | J70: 50 | K70: 0 | N70: 0
F71: =COUNTIF($B$9:$B$510,Resultados!B66) -> 0 | H71: 0 | J71: 50 | K71: 0 | N71: 0
F72: =COUNTIF($B$9:$B$510,Resultados!B67) -> 0 | H72: 0 | J72: 50 | K72: 0 | N72: 0
F73: =COUNTIF($B$9:$B$510,Resultados!B68) -> 0 | H73: 0 | J73: 50 | K73: 0 | N73: 0
F74: =COUNTIF($B$9:$B$510,Resultados!B69) -> 0 | G74: =IF(F74 <> 0,F74,"") ->  | H74: =F74/$D$9 -> 0 | I74: =IF(H74 <> 0,H74,"") ->  | J74: 50 | K74: =IF(H74<>0,J74,0) -> 0 | L74: =IF(K74 <> 0,K74,"") ->  | M74: =L74/$D$9 ->  | N74: =IF(K74<>0,M74,0) -> 0 | O74: =IF(N74 <> 0,N74,"") -> 
F75: =COUNTIF($B$9:$B$510,Resultados!B70) -> 0 | H75: 0 | J75: =J74+F75 -> 50 | K75: 0 | N75: 0
F76: =COUNTIF($B$9:$B$510,Resultados!B71) -> 0 | H76: 0 | J76: 50 | K76: 0 | N76: 0
F77: =COUNTIF($B$9:$B$510,Resultados!B72) -> 0 | H77: 0 | J77: 50 | K77: 0 | N77: 0
F78: =COUNTIF($B$9:$B$510,Resultados!B73) -> 0 | H78: 0 | J78: 50 | K78: 0 | N78: 0
F79: =COUNTIF($B$9:$B$510,Resultados!B74) -> 0 | H79: 0 | J79: 50 | K79: 0 | N79: 0
F80: =COUNTIF($B$9:$B$510,Resultados!B75) -> 0 | H80: 0 | J80: 50 | K80: 0 | N80: 0
F81: =COUNTIF($B$9:$B$510,Resultados!B76) -> 0 | H81: 0 | J81: 50 | K81: 0 | N81: 0
F82: =COUNTIF($B$9:$B$510,Resultados!B77) -> 0 | H82: 0 | J82: 50 | K82: 0 | N82: 0
F83: =COUNTIF($B$9:$B$510,Resultados!B78) -> 0 | H83: 0 | J83: 50 | K83: 0 | N83: 0
F84: =COUNTIF($B$9:$B$510,Resultados!B79) -> 0 | H84: 0 | J84: 50 | K84: 0 | N84: 0
F85: =COUNTIF($B$9:$B$510,Resultados!B80) -> 0 | H85: 0 | J85: 50 | K85: 0 | N85: 0
F86: =COUNTIF($B$9:$B$510,Resultados!B81) -> 0 | H86: 0 | J86: 50 | K86: 0 | N86: 0
F87: =COUNTIF($B$9:$B$510,Resultados!B82) -> 0 | H87: 0 | J87: 50 | K87: 0 | N87: 0
F88: =COUNTIF($B$9:$B$510,Resultados!B83) -> 0 | H88: 0 | J88: 50 | K88: 0 | N88: 0
F89: =COUNTIF($B$9:$B$510,Resultados!B84) -> 0 | H89: 0 | J89: 50 | K89: 0 | N89: 0
F90: =COUNTIF($B$9:$B$510,Resultados!B85) -> 0 | H90: 0 | J90: 50 | K90: 0 | N90: 0
F91: =COUNTIF($B$9:$B$510,Resultados!B86) -> 0 | H91: 0 | J91: 50 | K91: 0 | N91: 0
F92: =COUNTIF($B$9:$B$510,Resultados!B87) -> 0 | H92: 0 | J92: 50 | K92: 0 | N92: 0
F93: =COUNTIF($B$9:$B$510,Resultados!B88) -> 0 | H93: 0 | J93: 50 | K93: 0 | N93: 0
F94: =COUNTIF($B$9:$B$510,Resultados!B89) -> 0 | H94: 0 | J94: 50 | K94: 0 | N94: 0
F95: =COUNTIF($B$9:$B$510,Resultados!B90) -> 0 | H95: 0 | J95: 50 | K95: 0 | N95: 0
F96: =COUNTIF($B$9:$B$510,Resultados!B91) -> 0 | H96: 0 | J96: 50 | K96: 0 | N96: 0
F97: =COUNTIF($B$9:$B$510,Resultados!B92) -> 0 | H97: 0 | J97: 50 | K97: 0 | N97: 0
F98: =COUNTIF($B$9:$B$510,Resultados!B93) -> 0 | H98: 0 | J98: 50 | K98: 0 | N98: 0
F99: =COUNTIF($B$9:$B$510,Resultados!B94) -> 0 | H99: 0 | J99: 50 | K99: 0 | N99: 0
F100: =COUNTIF($B$9:$B$510,Resultados!B95) -> 0 | H100: 0 | J100: 50 | K100: 0 | N100: 0
F101: =COUNTIF($B$9:$B$510,Resultados!B96) -> 0 | H101: 0 | J101: 50 | K101: 0 | N101: 0
F102: =COUNTIF($B$9:$B$510,Resultados!B97) -> 0 | H102: 0 | J102: 50 | K102: 0 | N102: 0
F103: =COUNTIF($B$9:$B$510,Resultados!B98) -> 0 | H103: 0 | J103: 50 | K103: 0 | N103: 0
F104: =COUNTIF($B$9:$B$510,Resultados!B99) -> 0 | H104: 0 | J104: 50 | K104: 0 | N104: 0
F105: =COUNTIF($B$9:$B$510,Resultados!B100) -> 0 | H105: 0 | J105: 50 | K105: 0 | N105: 0
F106: =COUNTIF($B$9:$B$510,Resultados!B101) -> 0 | H106: 0 | J106: 50 | K106: 0 | N106: 0
F107: =COUNTIF($B$9:$B$510,Resultados!B102) -> 0 | H107: 0 | J107: 50 | K107: 0 | N107: 0
F108: =COUNTIF($B$9:$B$510,Resultados!B103) -> 0 | H108: 0 | J108: 50 | K108: 0 | N108: 0
F109: =COUNTIF($B$9:$B$510,Resultados!B104) -> 0 | H109: 0 | J109: 50 | K109: 0 | N109: 0
F110: =COUNTIF($B$9:$B$510,Resultados!B105) -> 0 | H110: 0 | J110: 50 | K110: 0 | N110: 0
F111: =COUNTIF($B$9:$B$510,Resultados!B106) -> 0 | H111: 0 | J111: 50 | K111: 0 | N111: 0
F112: =COUNTIF($B$9:$B$510,Resultados!B107) -> 0 | H112: 0 | J112: 50 | K112: 0 | N112: 0
F113: =COUNTIF($B$9:$B$510,Resultados!B108) -> 0 | H113: 0 | J113: 50 | K113: 0 | N113: 0
F114: =COUNTIF($B$9:$B$510,Resultados!B109) -> 0 | H114: 0 | J114: 50 | K114: 0 | N114: 0
F115: =COUNTIF($B$9:$B$510,Resultados!B110) -> 0 | H115: 0 | J115: 50 | K115: 0 | N115: 0
F116: =COUNTIF($B$9:$B$510,Resultados!B111) -> 0 | H116: 0 | J116: 50 | K116: 0 | N116: 0
F117: =COUNTIF($B$9:$B$510,Resultados!B112) -> 0 | H117: 0 | J117: 50 | K117: 0 | N117: 0
F118: =COUNTIF($B$9:$B$510,Resultados!B113) -> 0 | H118: 0 | J118: 50 | K118: 0 | N118: 0
F119: =COUNTIF($B$9:$B$510,Resultados!B114) -> 0 | H119: 0 | J119: 50 | K119: 0 | N119: 0
F120: =COUNTIF($B$9:$B$510,Resultados!B115) -> 0 | H120: 0 | J120: 50 | K120: 0 | N120: 0
F121: =COUNTIF($B$9:$B$510,Resultados!B116) -> 0 | H121: 0 | J121: 50 | K121: 0 | N121: 0
F122: =COUNTIF($B$9:$B$510,Resultados!B117) -> 0 | H122: 0 | J122: 50 | K122: 0 | N122: 0
F123: =COUNTIF($B$9:$B$510,Resultados!B118) -> 0 | H123: 0 | J123: 50 | K123: 0 | N123: 0
F124: =COUNTIF($B$9:$B$510,Resultados!B119) -> 0 | H124: 0 | J124: 50 | K124: 0 | N124: 0
F125: =COUNTIF($B$9:$B$510,Resultados!B120) -> 0 | H125: 0 | J125: 50 | K125: 0 | N125: 0
F126: =COUNTIF($B$9:$B$510,Resultados!B121) -> 0 | H126: 0 | J126: 50 | K126: 0 | N126: 0
F127: =COUNTIF($B$9:$B$510,Resultados!B122) -> 0 | H127: 0 | J127: 50 | K127: 0 | N127: 0
F128: =COUNTIF($B$9:$B$510,Resultados!B123) -> 0 | H128: 0 | J128: 50 | K128: 0 | N128: 0
F129: =COUNTIF($B$9:$B$510,Resultados!B124) -> 0 | H129: 0 | J129: 50 | K129: 0 | N129: 0
F130: =COUNTIF($B$9:$B$510,Resultados!B125) -> 0 | H130: 0 | J130: 50 | K130: 0 | N130: 0
F131: =COUNTIF($B$9:$B$510,Resultados!B126) -> 0 | H131: 0 | J131: 50 | K131: 0 | N131: 0
F132: =COUNTIF($B$9:$B$510,Resultados!B127) -> 0 | H132: 0 | J132: 50 | K132: 0 | N132: 0
F133: =COUNTIF($B$9:$B$510,Resultados!B128) -> 0 | H133: 0 | J133: 50 | K133: 0 | N133: 0
F134: =COUNTIF($B$9:$B$510,Resultados!B129) -> 0 | H134: 0 | J134: 50 | K134: 0 | N134: 0
F135: =COUNTIF($B$9:$B$510,Resultados!B130) -> 0 | H135: 0 | J135: 50 | K135: 0 | N135: 0
F136: =COUNTIF($B$9:$B$510,Resultados!B131) -> 0 | H136: 0 | J136: 50 | K136: 0 | N136: 0
F137: =COUNTIF($B$9:$B$510,Resultados!B132) -> 0 | H137: 0 | J137: 50 | K137: 0 | N137: 0
F138: =COUNTIF($B$9:$B$510,Resultados!B133) -> 0 | G138: =IF(F138 <> 0,F138,"") ->  | H138: =F138/$D$9 -> 0 | I138: =IF(H138 <> 0,H138,"") ->  | J138: 50 | K138: =IF(H138<>0,J138,0) -> 0 | L138: =IF(K138 <> 0,K138,"") ->  | M138: =L138/$D$9 ->  | N138: =IF(K138<>0,M138,0) -> 0 | O138: =IF(N138 <> 0,N138,"") -> 
F139: =COUNTIF($B$9:$B$510,Resultados!B134) -> 0 | H139: 0 | J139: =J138+F139 -> 50 | K139: 0 | N139: 0
F140: =COUNTIF($B$9:$B$510,Resultados!B135) -> 0 | H140: 0 | J140: 50 | K140: 0 | N140: 0
F141: =COUNTIF($B$9:$B$510,Resultados!B136) -> 0 | H141: 0 | J141: 50 | K141: 0 | N141: 0
F142: =COUNTIF($B$9:$B$510,Resultados!B137) -> 0 | H142: 0 | J142: 50 | K142: 0 | N142: 0
F143: =COUNTIF($B$9:$B$510,Resultados!B138) -> 0 | H143: 0 | J143: 50 | K143: 0 | N143: 0
F144: =COUNTIF($B$9:$B$510,Resultados!B139) -> 0 | H144: 0 | J144: 50 | K144: 0 | N144: 0
F145: =COUNTIF($B$9:$B$510,Resultados!B140) -> 0 | H145: 0 | J145: 50 | K145: 0 | N145: 0
F146: =COUNTIF($B$9:$B$510,Resultados!B141) -> 0 | H146: 0 | J146: 50 | K146: 0 | N146: 0
F147: =COUNTIF($B$9:$B$510,Resultados!B142) -> 0 | H147: 0 | J147: 50 | K147: 0 | N147: 0
F148: =COUNTIF($B$9:$B$510,Resultados!B143) -> 0 | H148: 0 | J148: 50 | K148: 0 | N148: 0
F149: =COUNTIF($B$9:$B$510,Resultados!B144) -> 0 | H149: 0 | J149: 50 | K149: 0 | N149: 0
F150: =COUNTIF($B$9:$B$510,Resultados!B145) -> 0 | H150: 0 | J150: 50 | K150: 0 | N150: 0
F151: =COUNTIF($B$9:$B$510,Resultados!B146) -> 0 | H151: 0 | J151: 50 | K151: 0 | N151: 0
F152: =COUNTIF($B$9:$B$510,Resultados!B147) -> 0 | H152: 0 | J152: 50 | K152: 0 | N152: 0
F153: =COUNTIF($B$9:$B$510,Resultados!B148) -> 0 | H153: 0 | J153: 50 | K153: 0 | N153: 0
F154: =COUNTIF($B$9:$B$510,Resultados!B149) -> 0 | H154: 0 | J154: 50 | K154: 0 | N154: 0
F155: =COUNTIF($B$9:$B$510,Resultados!B150) -> 0 | H155: 0 | J155: 50 | K155: 0 | N155: 0
F156: =COUNTIF($B$9:$B$510,Resultados!B151) -> 0 | H156: 0 | J156: 50 | K156: 0 | N156: 0
F157: =COUNTIF($B$9:$B$510,Resultados!B152) -> 0 | H157: 0 | J157: 50 | K157: 0 | N157: 0
F158: =COUNTIF($B$9:$B$510,Resultados!B153) -> 0 | H158: 0 | J158: 50 | K158: 0 | N158: 0
F159: =COUNTIF($B$9:$B$510,Resultados!B154) -> 0 | H159: 0 | J159: 50 | K159: 0 | N159: 0
F160: =COUNTIF($B$9:$B$510,Resultados!B155) -> 0 | H160: 0 | J160: 50 | K160: 0 | N160: 0
F161: =COUNTIF($B$9:$B$510,Resultados!B156) -> 0 | H161: 0 | J161: 50 | K161: 0 | N161: 0
F162: =COUNTIF($B$9:$B$510,Resultados!B157) -> 0 | H162: 0 | J162: 50 | K162: 0 | N162: 0
F163: =COUNTIF($B$9:$B$510,Resultados!B158) -> 0 | H163: 0 | J163: 50 | K163: 0 | N163: 0
F164: =COUNTIF($B$9:$B$510,Resultados!B159) -> 0 | H164: 0 | J164: 50 | K164: 0 | N164: 0
F165: =COUNTIF($B$9:$B$510,Resultados!B160) -> 0 | H165: 0 | J165: 50 | K165: 0 | N165: 0
F166: =COUNTIF($B$9:$B$510,Resultados!B161) -> 0 | H166: 0 | J166: 50 | K166: 0 | N166: 0
F167: =COUNTIF($B$9:$B$510,Resultados!B162) -> 0 | H167: 0 | J167: 50 | K167: 0 | N167: 0
F168: =COUNTIF($B$9:$B$510,Resultados!B163) -> 0 | H168: 0 | J168: 50 | K168: 0 | N168: 0
F169: =COUNTIF($B$9:$B$510,Resultados!B164) -> 0 | H169: 0 | J169: 50 | K169: 0 | N169: 0
F170: =COUNTIF($B$9:$B$510,Resultados!B165) -> 0 | H170: 0 | J170: 50 | K170: 0 | N170: 0
F171: =COUNTIF($B$9:$B$510,Resultados!B166) -> 0 | H171: 0 | J171: 50 | K171: 0 | N171: 0
F172: =COUNTIF($B$9:$B$510,Resultados!B167) -> 0 | H172: 0 | J172: 50 | K172: 0 | N172: 0
F173: =COUNTIF($B$9:$B$510,Resultados!B168) -> 0 | H173: 0 | J173: 50 | K173: 0 | N173: 0
F174: =COUNTIF($B$9:$B$510,Resultados!B169) -> 0 | H174: 0 | J174: 50 | K174: 0 | N174: 0
F175: =COUNTIF($B$9:$B$510,Resultados!B170) -> 0 | H175: 0 | J175: 50 | K175: 0 | N175: 0
F176: =COUNTIF($B$9:$B$510,Resultados!B171) -> 0 | H176: 0 | J176: 50 | K176: 0 | N176: 0
F177: =COUNTIF($B$9:$B$510,Resultados!B172) -> 0 | H177: 0 | J177: 50 | K177: 0 | N177: 0
F178: =COUNTIF($B$9:$B$510,Resultados!B173) -> 0 | H178: 0 | J178: 50 | K178: 0 | N178: 0
F179: =COUNTIF($B$9:$B$510,Resultados!B174) -> 0 | H179: 0 | J179: 50 | K179: 0 | N179: 0
F180: =COUNTIF($B$9:$B$510,Resultados!B175) -> 0 | H180: 0 | J180: 50 | K180: 0 | N180: 0
F181: =COUNTIF($B$9:$B$510,Resultados!B176) -> 0 | H181: 0 | J181: 50 | K181: 0 | N181: 0
F182: =COUNTIF($B$9:$B$510,Resultados!B177) -> 0 | H182: 0 | J182: 50 | K182: 0 | N182: 0
F183: =COUNTIF($B$9:$B$510,Resultados!B178) -> 0 | H183: 0 | J183: 50 | K183: 0 | N183: 0
F184: =COUNTIF($B$9:$B$510,Resultados!B179) -> 0 | H184: 0 | J184: 50 | K184: 0 | N184: 0
F185: =COUNTIF($B$9:$B$510,Resultados!B180) -> 0 | H185: 0 | J185: 50 | K185: 0 | N185: 0
F186: =COUNTIF($B$9:$B$510,Resultados!B181) -> 0 | H186: 0 | J186: 50 | K186: 0 | N186: 0
F187: =COUNTIF($B$9:$B$510,Resultados!B182) -> 0 | H187: 0 | J187: 50 | K187: 0 | N187: 0
F188: =COUNTIF($B$9:$B$510,Resultados!B183) -> 0 | H188: 0 | J188: 50 | K188: 0 | N188: 0
F189: =COUNTIF($B$9:$B$510,Resultados!B184) -> 0 | H189: 0 | J189: 50 | K189: 0 | N189: 0
F190: =COUNTIF($B$9:$B$510,Resultados!B185) -> 0 | H190: 0 | J190: 50 | K190: 0 | N190: 0
F191: =COUNTIF($B$9:$B$510,Resultados!B186) -> 0 | H191: 0 | J191: 50 | K191: 0 | N191: 0
F192: =COUNTIF($B$9:$B$510,Resultados!B187) -> 0 | H192: 0 | J192: 50 | K192: 0 | N192: 0
F193: =COUNTIF($B$9:$B$510,Resultados!B188) -> 0 | H193: 0 | J193: 50 | K193: 0 | N193: 0
F194: =COUNTIF($B$9:$B$510,Resultados!B189) -> 0 | H194: 0 | J194: 50 | K194: 0 | N194: 0
F195: =COUNTIF($B$9:$B$510,Resultados!B190) -> 0 | H195: 0 | J195: 50 | K195: 0 | N195: 0
F196: =COUNTIF($B$9:$B$510,Resultados!B191) -> 0 | H196: 0 | J196: 50 | K196: 0 | N196: 0
F197: =COUNTIF($B$9:$B$510,Resultados!B192) -> 0 | H197: 0 | J197: 50 | K197: 0 | N197: 0
F198: =COUNTIF($B$9:$B$510,Resultados!B193) -> 0 | H198: 0 | J198: 50 | K198: 0 | N198: 0
F199: =COUNTIF($B$9:$B$510,Resultados!B194) -> 0 | H199: 0 | J199: 50 | K199: 0 | N199: 0
F200: =COUNTIF($B$9:$B$510,Resultados!B195) -> 0 | H200: 0 | J200: 50 | K200: 0 | N200: 0
F201: =COUNTIF($B$9:$B$510,Resultados!B196) -> 0 | H201: 0 | J201: 50 | K201: 0 | N201: 0
F202: =COUNTIF($B$9:$B$510,Resultados!B197) -> 0 | G202: =IF(F202 <> 0,F202,"") ->  | H202: =F202/$D$9 -> 0 | I202: =IF(H202 <> 0,H202,"") ->  | J202: 50 | K202: =IF(H202<>0,J202,0) -> 0 | L202: =IF(K202 <> 0,K202,"") ->  | M202: =L202/$D$9 ->  | N202: =IF(K202<>0,M202,0) -> 0 | O202: =IF(N202 <> 0,N202,"") -> 
F203: =COUNTIF($B$9:$B$510,Resultados!B198) -> 0 | H203: 0 | J203: =J202+F203 -> 50 | K203: 0 | N203: 0
F204: =COUNTIF($B$9:$B$510,Resultados!B199) -> 0 | H204: 0 | J204: 50 | K204: 0 | N204: 0
F205: =COUNTIF($B$9:$B$510,Resultados!B200) -> 0 | H205: 0 | J205: 50 | K205: 0 | N205: 0
F206: =COUNTIF($B$9:$B$510,Resultados!B201) -> 0 | H206: 0 | J206: 50 | K206: 0 | N206: 0
F207: =COUNTIF($B$9:$B$510,Resultados!B202) -> 0 | H207: 0 | J207: 50 | K207: 0 | N207: 0
... 301 more rows

Sheet Datos (hidden)
A1: Media | B1: =B12/B13 -> 62.625 | E1: Media | F1: =F12/F13 -> 3.6
A2: Error típico | B2: =B5/B13^(1/2) -> 10.16109088 | E2: Error típico | F2: =F5/F13^(1/2) -> 0.6359594676
A3: Mediana | B3: =MEDIAN(DescriptivosVarCuanti!C5:C200) -> 71 | E3: Mediana | F3: =MEDIAN(EscalaLikert!C5:C200) -> 3
A4: Moda | B4: =_xlfn.MODE.SNGL(DescriptivosVarCuanti!C5:C200) -> 23 | E4: Moda | F4: =_xlfn.MODE.SNGL(EscalaLikert!C5:C200) -> 3
A5: Desviación estándar | B5: =_xlfn.STDEV.S(DescriptivosVarCuanti!C5:C200) -> 28.73990506 | E5: Desviación estándar | F5: =_xlfn.STDEV.S(EscalaLikert!C5:C200) -> 2.011080417
A6: Varianza de la muestra | B6: =VAR(DescriptivosVarCuanti!C5:C200) -> 825.9821429 | E6: Varianza de la muestra | F6: =VAR(EscalaLikert!C5:C200) -> 4.044444444
A7: Curtosis | B7: =KURT(DescriptivosVarCuanti!C5:C200) -> -1.588889881 | E7: Curtosis | F7: =KURT(EscalaLikert!C5:C200) -> 1.554354202
A8: Coeficiente de asimetría | B8: =SKEW(DescriptivosVarCuanti!C5:C200) -> -0.563822118 | E8: Coeficiente de asimetría | F8: =SKEW(EscalaLikert!C5:C200) -> 1.098310734
A9: Rango | B9: =B11-B10 -> 67 | E9: Rango | F9: =F11-F10 -> 7
A10: Mínimo | B10: =MIN(DescriptivosVarCuanti!C5:C200) -> 23 | E10: Mínimo | F10: =MIN(EscalaLikert!C5:C200) -> 1
A11: Máximo | B11: =MAX(DescriptivosVarCuanti!C5:C200) -> 90 | E11: Máximo | F11: =MAX(EscalaLikert!C5:C200) -> 8
A12: Suma | B12: =SUM(DescriptivosVarCuanti!C5:C200) -> 501 | E12: Suma | F12: =SUM(EscalaLikert!C5:C200) -> 36
A13: Cuenta | B13: =COUNT(DescriptivosVarCuanti!C5:C200) -> 8 | E13: Cuenta | F13: =COUNT(EscalaLikert!C5:C200) -> 10
A16: Z | B16: =Muestra!B10 -> 95 | C16: =+((1-G16)/2)+G16 -> 0.975 | D16: =_xlfn.NORM.S.INV(C16) -> 1.959963985 | E16: =+((D16*B5)/(Muestra!B11))^2 -> 392.2903782 | F16: =ROUNDUP(E16,0) -> 393 | G16: =B16/100 -> 0.95 | H16: =(E16/(1+E16/Muestra!B20)) -> 392.2596023
B17: =Muestra2!B10 -> 95 | C17: =+((1-G17)/2)+G17 -> 0.975 | D17: =_xlfn.NORM.S.INV(C17) -> 1.959963985 | E17: =+((D17*F5)/(Muestra2!B11*F1))^2 -> 1332.010184 | F17: =ROUNDUP(E17,0) -> 1333 | G17: =B17/100 -> 0.95 | H17: =(E17/(1+E17/Muestra2!B20)) -> 571.1854061
A19: 1 | B19: 2 | J19: si se conoce n
A20: ='Muestreo Aleatorio'!F14 -> 1000 | B20: s | C20: =A20^2 -> 1000000
A21: ='Muestreo Aleatorio'!F15/100 -> 0.95 | B21: a | C21: =D21/2 -> 0.025 | D21: =1-A21 -> 0.05 | E21: =A21+C21 -> 0.975 | F21: =_xlfn.NORM.S.INV(E21) -> 1.959963985 | G21: =C22/C24 -> 2603.177716 | H21: =C20/G23 -> 
A22: ='Muestreo Aleatorio'!F16 -> 100 | B22: e | C22: =A22^2 -> 10000 | E22: =C24*C20/C22 -> 384.1458821 | G22: =C20/A23 -> 
B23: n | C23: =((A24)^2*(A20)^2)/(A22)^2 -> 384.1458821 | E23: =C24 -> 3.841458821 | G23: =G21+G22 -> 
A24: =F21 -> 1.959963985 | B24: Z | C24: =F21^2 -> 3.841458821
A25: 1 | B25: 2 | C25: cuadrados
A26: ='Muestreo Aleatorio'!F30 -> 1000 | B26: s | C26: =A26^2 -> 1000000 | E26: =C28/F30 -> 2603.177716 | F26: =C26/A29 -> 1000 | G26: =E26+F26 -> 3603.177716 | H26: =C26/G26 -> 277.5327999
A27: ='Muestreo Aleatorio'!F31/100 -> 0.95 | B27: alfa
A28: ='Muestreo Aleatorio'!F32 -> 100 | B28: e | C28: =A28^2 -> 10000
A29: ='Muestreo Aleatorio'!F33 -> 1000 | B29: N
A30: =_xlfn.NORM.S.INV(E30) -> 1.959963985 | B30: Z | C30: =1-A27 -> 0.05 | D30: =C30/2 -> 0.025 | E30: =A27+D30 -> 0.975 | F30: =A30^2 -> 3.841458821

Sheet Muestreo Aleatorio
B2: Muestreo aleatorio simple
C13: Datos de entrada
C14: Desviación estándar (S) | F14: 1000
C15: Nivel de confianza α (%) | F15: 95
C16: Error máximo permitido ε (Valor Proporcional entre 0 y 1) | F16: 100
C17: Margen de confiabilidad | F17: =Datos!F21 -> 1.959963985
C21: Tamaño necesario de la muestra (n)
D23: =Datos!C23 -> 384.1458821 | G23: Regressar
G24: Inicio
C29: Datos de entrada
C30: Desviación estándar (S) | F30: 1000
C31: Nivel de confianza α (%) | F31: 95
C32: Error máximo permitido ε (Valor Proporcional entre 0 y 1) | F32: 100
C33: Tamaño de la población (N) | F33: 1000
C34: Margen de confiabilidad | F34: =Datos!A30 -> 1.959963985
C38: Tamaño necesario de la muestra (n)
D40: =Datos!H26 -> 277.5327999 | G40: Regresar
G41: Inicio

Sheet Muestreo Proporc.
D3: 10
B5: 1
D7: 1
B10: Encuesta | C10: Valor | E10: Ir a Proporción
B11: 1 | C11: 1 | E11: Inicio
B12: 2 | C12: 1
B13: 3 | C13: 1
B14: 4 | C14: 1
B15: 5 | C15: 1
B16: 6 | C16: 1
B17: 7 | C17: 2
B18: 8 | C18: 2
B19: 9 | C19: 2
B20: 10 | C20: 2

Sheet Proporcion
B2: Muestreo proporcional
F11: Regresar Muestreo
F12: Inicio
C14: Datos de entrada infinita
C15: Nivel de confianza | F15: 90
C16: Error de estimación | F16: 0.03
C17: Proporción (P) | F17: =Hoja9!F4 -> 0.6
C18: Z | F18: =Hoja9!F7 -> 1.644853627
C19: Q = (1 - P) | F19: =Hoja9!F5 -> 0.4
C22: Tamaño necesario de la muestra (n)
D24: =Hoja9!H8 -> 721.4782544
F25: Regresar
F26: Inicio
C30: Datos de entrada finita
C31: Nivel de confianza | F31: 90
C32: Error de estimación | F32: 0.03
C33: Proporción (P) | F33: =Hoja9!I4 -> 0.6
C34: Z | F34: =Hoja9!I7 -> 1.644853627
C35: Q = (1 - P) | F35: =Hoja9!I5 -> 0.4
C36: N | F36: 1000000
C38: Tamaño necesario de la muestra (n)
D40: =Hoja9!J13 -> 720.9588193
F42: Regresar
F43: Inicio

Sheet Hoja3 (hidden)

Sheet Hoja6 (hidden)
A1: 200 | C1: 1
A2: 450 | C2: 1
A3: 370 | C3: 2
A4: 1000 | C4: 1
A5: 800 | C5: 2
A6: 400 | C6: 1
A7: 300 | C7: 1
A8: 250 | C8: 1
A9: 900 | C9: 1
A10: 1100 | C10: 2
A11: 750 | C11: 2
A12: 500 | C12: 1
A13: 300 | C13: 1
A14: 500 | C14: 1
A15: 800 | C15: 2
A16: 750 | C16: 2
A17: 350 | C17: 1
A18: 1200 | C18: 2
A19: 250 | C19: 1
A20: 600 | C20: 1
A21: 750 | C21: 1
A22: 900 | C22: 1
A23: 450 | C23: 1
A24: 1100 | C24: 1
A25: 650 | C25: 2
A26: 350 | C26: 2
A27: 500 | C27: 2
A28: 900 | C28: 2
A29: 450 | C29: 2
A30: 1300 | C30: 2
A31: 900 | C31: 2
A32: 1200 | C32: 2
A33: 350 | C33: 1
A34: 250 | C34: 2
A35: 1100 | C35: 1
A36: 700 | C36: 1
A37: 500 | C37: 1
A38: 700 | C38: 1
A39: 800 | C39: 1
A40: 500 | C40: 1
A41: 300 | C41: 2
A42: 450 | C42: 2
A43: 800 | C43: 2
A44: 700 | C44: 1
A45: 300 | C45: 1
A46: 250 | C46: 1
A47: 300 | C47: 1
A48: 750 | C48: 1
A49: 900 | C49: 1
A50: 600 | C50: 1
A51: 1200 | C51: 1
A52: 900 | C52: 2
A53: 1100 | C53: 1
A54: 1250 | C54: 1
A55: 900 | C55: 1
A56: 700 | C56: 2
A57: 300 | C57: 2
C58: 2
C59: 1
C60: 1
C61: 1
C62: 1
C63: 2
C64: 2
C65: 1
C66: 1
C67: 2
C68: 2
C69: 2
C70: 1
C71: 1
C72: 1
C73: 2
C74: 2
C75: 1

Sheet Hoja9 (hidden)
A1: ='Muestreo Proporc.'!C11 -> 1 | B1: =IF(A1>0,A1,"") -> 1 | J1: =IF(I1>0,I1,"") -> 
A2: ='Muestreo Proporc.'!C12 -> 1 | B2: =IF(A2>0,A2,"") -> 1 | E2: No. A Estudiar | F2: Total # Estudiar | G2: Confianza Infinita | I2: Confianza finita
A3: ='Muestreo Proporc.'!C13 -> 1 | B3: 1 | E3: 1 | F3: =COUNTIF(B1:B500,E3) -> 6 | G3: =Proporcion!F15/100 -> 0.9 | H3: =((1-G3)/2)+G3 -> 0.95 | I3: =Proporcion!F31/100 -> 0.9 | J3: =((1-I3)/2)+I3 -> 0.95
A4: ='Muestreo Proporc.'!C14 -> 1 | B4: 1 | E4: 10 | F4: =F3/E4 -> 0.6 | G4: P | I4: =F3/E4 -> 0.6
A5: ='Muestreo Proporc.'!C15 -> 1 | B5: 1 | F5: =1-F4 -> 0.4 | G5: Q | I5: =1-I4 -> 0.4
A6: ='Muestreo Proporc.'!C16 -> 1 | B6: 1 | F6: =Proporcion!F16 -> 0.03 | G6: E | H6: =F6^2 -> 0.0009 | I6: =Proporcion!F32 -> 0.03 | J6: =I6^2 -> 0.0009
A7: ='Muestreo Proporc.'!C17 -> 2 | B7: 2 | F7: =_xlfn.NORM.S.INV(H3) -> 1.644853627 | G7: Z | H7: =F7^2 -> 2.705543454 | I7: =_xlfn.NORM.S.INV(J3) -> 1.644853627 | J7: =I7^2 -> 2.705543454
A8: ='Muestreo Proporc.'!C18 -> 2 | B8: 2 | G8: N | H8: =(H7*F4*F5)/H6 -> 721.4782544 | I8: =Proporcion!F36 -> 1000000
A9: ='Muestreo Proporc.'!C19 -> 2 | B9: 2 | I9: Zxpxqxn | J9: =(J7*I4*I5*I8) -> 649330.429
A10: ='Muestreo Proporc.'!C20 -> 2 | B10: 2 | I10: Ex(N-1) | J10: =J6*(I8-1) -> 899.9991
A11: ='Muestreo Proporc.'!C21 -> 0 | I11: Zxpxq | J11: =(J7*I4*I5) -> 0.649330429
A12: ='Muestreo Proporc.'!C22 -> 0 | J12: =J10+J11 -> 900.6484304
A13: ='Muestreo Proporc.'!C23 -> 0 | I13: formula | J13: =J9/J12 -> 720.9588193
A14: ='Muestreo Proporc.'!C24 -> 0
A15: ='Muestreo Proporc.'!C25 -> 0
A16: ='Muestreo Proporc.'!C26 -> 0
A17: ='Muestreo Proporc.'!C27 -> 0
A18: ='Muestreo Proporc.'!C28 -> 0
A19: ='Muestreo Proporc.'!C29 -> 0
A20: ='Muestreo Proporc.'!C30 -> 0
A21: ='Muestreo Proporc.'!C31 -> 0
A22: ='Muestreo Proporc.'!C32 -> 0
A23: ='Muestreo Proporc.'!C33 -> 0
A24: ='Muestreo Proporc.'!C34 -> 0
A25: ='Muestreo Proporc.'!C35 -> 0
A26: ='Muestreo Proporc.'!C36 -> 0
A27: ='Muestreo Proporc.'!C37 -> 0
A28: ='Muestreo Proporc.'!C38 -> 0
A29: ='Muestreo Proporc.'!C39 -> 0
A30: ='Muestreo Proporc.'!C40 -> 0
A31: ='Muestreo Proporc.'!C41 -> 0
A32: ='Muestreo Proporc.'!C42 -> 0
A33: ='Muestreo Proporc.'!C43 -> 0
A34: ='Muestreo Proporc.'!C44 -> 0
A35: ='Muestreo Proporc.'!C45 -> 0
A36: ='Muestreo Proporc.'!C46 -> 0
A37: ='Muestreo Proporc.'!C47 -> 0
A38: ='Muestreo Proporc.'!C48 -> 0
A39: ='Muestreo Proporc.'!C49 -> 0
A40: ='Muestreo Proporc.'!C50 -> 0
A41: ='Muestreo Proporc.'!C51 -> 0
A42: ='Muestreo Proporc.'!C52 -> 0
A43: ='Muestreo Proporc.'!C53 -> 0
A44: ='Muestreo Proporc.'!C54 -> 0
A45: ='Muestreo Proporc.'!C55 -> 0
A46: ='Muestreo Proporc.'!C56 -> 0
A47: ='Muestreo Proporc.'!C57 -> 0
A48: ='Muestreo Proporc.'!C58 -> 0
A49: ='Muestreo Proporc.'!C59 -> 0
A50: ='Muestreo Proporc.'!C60 -> 0
A51: ='Muestreo Proporc.'!C61 -> 0
A52: ='Muestreo Proporc.'!C62 -> 0
A53: ='Muestreo Proporc.'!C63 -> 0
A54: ='Muestreo Proporc.'!C64 -> 0
A55: ='Muestreo Proporc.'!C65 -> 0
A56: ='Muestreo Proporc.'!C66 -> 0
A57: ='Muestreo Proporc.'!C67 -> 0
A58: ='Muestreo Proporc.'!C68 -> 0
A59: ='Muestreo Proporc.'!C69 -> 0
A60: ='Muestreo Proporc.'!C70 -> 0
A61: ='Muestreo Proporc.'!C71 -> 0
A62: ='Muestreo Proporc.'!C72 -> 0
A63: ='Muestreo Proporc.'!C73 -> 0
A64: ='Muestreo Proporc.'!C74 -> 0
A65: ='Muestreo Proporc.'!C75 -> 0
A66: ='Muestreo Proporc.'!C76 -> 0 | B66: =IF(A66>0,A66,"") -> 
A67: ='Muestreo Proporc.'!C77 -> 0
A68: ='Muestreo Proporc.'!C78 -> 0
A69: ='Muestreo Proporc.'!C79 -> 0
A70: ='Muestreo Proporc.'!C80 -> 0
A71: ='Muestreo Proporc.'!C81 -> 0
A72: ='Muestreo Proporc.'!C82 -> 0
A73: ='Muestreo Proporc.'!C83 -> 0
A74: ='Muestreo Proporc.'!C84 -> 0
A75: ='Muestreo Proporc.'!C85 -> 0
A76: ='Muestreo Proporc.'!C86 -> 0
A77: ='Muestreo Proporc.'!C87 -> 0
A78: ='Muestreo Proporc.'!C88 -> 0
A79: ='Muestreo Proporc.'!C89 -> 0
A80: ='Muestreo Proporc.'!C90 -> 0
A81: ='Muestreo Proporc.'!C91 -> 0
A82: ='Muestreo Proporc.'!C92 -> 0
A83: ='Muestreo Proporc.'!C93 -> 0
A84: ='Muestreo Proporc.'!C94 -> 0
A85: ='Muestreo Proporc.'!C95 -> 0
A86: ='Muestreo Proporc.'!C96 -> 0
A87: ='Muestreo Proporc.'!C97 -> 0
A88: ='Muestreo Proporc.'!C98 -> 0
A89: ='Muestreo Proporc.'!C99 -> 0
A90: ='Muestreo Proporc.'!C100 -> 0
A91: ='Muestreo Proporc.'!C101 -> 0
A92: ='Muestreo Proporc.'!C102 -> 0
A93: ='Muestreo Proporc.'!C103 -> 0
A94: ='Muestreo Proporc.'!C104 -> 0
A95: ='Muestreo Proporc.'!C105 -> 0
A96: ='Muestreo Proporc.'!C106 -> 0
A97: ='Muestreo Proporc.'!C107 -> 0
A98: ='Muestreo Proporc.'!C108 -> 0
A99: ='Muestreo Proporc.'!C109 -> 0
A100: ='Muestreo Proporc.'!C110 -> 0
A101: ='Muestreo Proporc.'!C111 -> 0
A102: ='Muestreo Proporc.'!C112 -> 0
A103: ='Muestreo Proporc.'!C113 -> 0
A104: ='Muestreo Proporc.'!C114 -> 0
A105: ='Muestreo Proporc.'!C115 -> 0
A106: ='Muestreo Proporc.'!C116 -> 0
A107: ='Muestreo Proporc.'!C117 -> 0
A108: ='Muestreo Proporc.'!C118 -> 0
A109: ='Muestreo Proporc.'!C119 -> 0
A110: ='Muestreo Proporc.'!C120 -> 0
A111: ='Muestreo Proporc.'!C121 -> 0
A112: ='Muestreo Proporc.'!C122 -> 0
A113: ='Muestreo Proporc.'!C123 -> 0
A114: ='Muestreo Proporc.'!C124 -> 0
A115: ='Muestreo Proporc.'!C125 -> 0
A116: ='Muestreo Proporc.'!C126 -> 0
A117: ='Muestreo Proporc.'!C127 -> 0
A118: ='Muestreo Proporc.'!C128 -> 0
A119: ='Muestreo Proporc.'!C129 -> 0
A120: ='Muestreo Proporc.'!C130 -> 0
A121: ='Muestreo Proporc.'!C131 -> 0
A122: ='Muestreo Proporc.'!C132 -> 0
A123: ='Muestreo Proporc.'!C133 -> 0
A124: ='Muestreo Proporc.'!C134 -> 0
A125: ='Muestreo Proporc.'!C135 -> 0
A126: ='Muestreo Proporc.'!C136 -> 0
A127: ='Muestreo Proporc.'!C137 -> 0
A128: ='Muestreo Proporc.'!C138 -> 0
A129: ='Muestreo Proporc.'!C139 -> 0
A130: ='Muestreo Proporc.'!C140 -> 0 | B130: =IF(A130>0,A130,"") -> 
A131: ='Muestreo Proporc.'!C141 -> 0
A132: ='Muestreo Proporc.'!C142 -> 0
A133: ='Muestreo Proporc.'!C143 -> 0
A134: ='Muestreo Proporc.'!C144 -> 0
A135: ='Muestreo Proporc.'!C145 -> 0
A136: ='Muestreo Proporc.'!C146 -> 0
A137: ='Muestreo Proporc.'!C147 -> 0
A138: ='Muestreo Proporc.'!C148 -> 0
A139: ='Muestreo Proporc.'!C149 -> 0
A140: ='Muestreo Proporc.'!C150 -> 0
A141: ='Muestreo Proporc.'!C151 -> 0
A142: ='Muestreo Proporc.'!C152 -> 0
A143: ='Muestreo Proporc.'!C153 -> 0
A144: ='Muestreo Proporc.'!C154 -> 0
A145: ='Muestreo Proporc.'!C155 -> 0
A146: ='Muestreo Proporc.'!C156 -> 0
A147: ='Muestreo Proporc.'!C157 -> 0
A148: ='Muestreo Proporc.'!C158 -> 0
A149: ='Muestreo Proporc.'!C159 -> 0
A150: ='Muestreo Proporc.'!C160 -> 0
A151: ='Muestreo Proporc.'!C161 -> 0
A152: ='Muestreo Proporc.'!C162 -> 0
A153: ='Muestreo Proporc.'!C163 -> 0
A154: ='Muestreo Proporc.'!C164 -> 0
A155: ='Muestreo Proporc.'!C165 -> 0
A156: ='Muestreo Proporc.'!C166 -> 0
A157: ='Muestreo Proporc.'!C167 -> 0
A158: ='Muestreo Proporc.'!C168 -> 0
A159: ='Muestreo Proporc.'!C169 -> 0
A160: ='Muestreo Proporc.'!C170 -> 0
A161: ='Muestreo Proporc.'!C171 -> 0
A162: ='Muestreo Proporc.'!C172 -> 0
A163: ='Muestreo Proporc.'!C173 -> 0
A164: ='Muestreo Proporc.'!C174 -> 0
A165: ='Muestreo Proporc.'!C175 -> 0
A166: ='Muestreo Proporc.'!C176 -> 0
A167: ='Muestreo Proporc.'!C177 -> 0
A168: ='Muestreo Proporc.'!C178 -> 0
A169: ='Muestreo Proporc.'!C179 -> 0
A170: ='Muestreo Proporc.'!C180 -> 0
A171: ='Muestreo Proporc.'!C181 -> 0
A172: ='Muestreo Proporc.'!C182 -> 0
A173: ='Muestreo Proporc.'!C183 -> 0
A174: ='Muestreo Proporc.'!C184 -> 0
A175: ='Muestreo Proporc.'!C185 -> 0
A176: ='Muestreo Proporc.'!C186 -> 0
A177: ='Muestreo Proporc.'!C187 -> 0
A178: ='Muestreo Proporc.'!C188 -> 0
A179: ='Muestreo Proporc.'!C189 -> 0
A180: ='Muestreo Proporc.'!C190 -> 0
A181: ='Muestreo Proporc.'!C191 -> 0
A182: ='Muestreo Proporc.'!C192 -> 0
A183: ='Muestreo Proporc.'!C193 -> 0
A184: ='Muestreo Proporc.'!C194 -> 0
A185: ='Muestreo Proporc.'!C195 -> 0
A186: ='Muestreo Proporc.'!C196 -> 0
A187: ='Muestreo Proporc.'!C197 -> 0
A188: ='Muestreo Proporc.'!C198 -> 0
A189: ='Muestreo Proporc.'!C199 -> 0
A190: ='Muestreo Proporc.'!C200 -> 0
A191: ='Muestreo Proporc.'!C201 -> 0
A192: ='Muestreo Proporc.'!C202 -> 0
A193: ='Muestreo Proporc.'!C203 -> 0
A194: ='Muestreo Proporc.'!C204 -> 0 | B194: =IF(A194>0,A194,"") -> 
A195: ='Muestreo Proporc.'!C205 -> 0
A196: ='Muestreo Proporc.'!C206 -> 0
A197: ='Muestreo Proporc.'!C207 -> 0
A198: ='Muestreo Proporc.'!C208 -> 0
A199: ='Muestreo Proporc.'!C209 -> 0
A200: ='Muestreo Proporc.'!C210 -> 0
... 300 more rows

Sheet Histogramas
B2: Nivel académico del desempleado | C2: Sexo
C3: Hombres | D3: Mujeres | E3: Total
E4: No. | F4: %
B5: Profesional | C5: 740 | D5: 987 | E5: =SUM(C5:D5) -> 1727 | F5: =E5/E9 -> 0.1366621825
B6: Técnico profesional | C6: 580 | D6: 470 | E6: =C6+D6 -> 1050 | F6: =E6/E9 -> 0.08308934082
B7: Bachiller | C7: 2300 | D7: 2950 | E7: =SUM(C7:D7) -> 5250 | F7: =E7/E9 -> 0.4154467041
B8: Sin bachillerato | C8: 2190 | D8: 2420 | E8: =C8+D8 -> 4610 | F8: =E8/E9 -> 0.3648017726
B9: Total | C9: =SUM(C5:C8) -> 5810 | D9: =SUM(D5:D8) -> 6827 | E9: =SUM(E5:E8) -> 12637 | F9: =SUM(F5:F8) -> 1
B10: Porcentaje | C10: =C9/E9 -> 0.4597610192 | D10: =D9/$E$9 -> 0.5402389808
B19: =B5 -> Profesional | C19: =F5 -> 0.1366621825
B20: =B6 -> Técnico profesional | C20: =F6 -> 0.08308934082
B21: =B7 -> Bachiller | C21: =F7 -> 0.4154467041
B22: =B8 -> Sin bachillerato | C22: =F8 -> 0.3648017726 | P22: Inicio

Sheet MedidasDispersión
B2: Número de encuestas | D2: 5 | I2: =SUM(D5:D500)/L13 -> 8.8 | J2: =SQRT(I2) -> 2.966479395
B4: No. encuesta | C4: Litros de cerveza Xi
B5: 1 | C5: 22 | D5: =Hoja14!G1 -> 6.76
B6: 2 | C6: 18 | D6: =Hoja14!G2 -> 1.96
B7: 3 | C7: 20 | D7: =Hoja14!G3 -> 0.36
B8: 4 | C8: 15 | D8: =Hoja14!G4 -> 19.36 | G8: =J2 -> 2.966479395
B9: 5 | C9: 22 | D9: =Hoja14!G5 -> 6.76
D10: =Hoja14!G6 ->  | G10: Inicio
D11: =Hoja14!G7 -> 
D12: =Hoja14!G8 ->  | L12: 5 | N12: 21
D13: =Hoja14!G9 ->  | L13: =L12-1 -> 4
D14: =Hoja14!G10 -> 
D15: =Hoja14!G11 -> 
D16: =Hoja14!G12 -> 
D17: =Hoja14!G13 -> 
D18: =Hoja14!G14 -> 
D19: =Hoja14!G15 -> 
D20: =Hoja14!G16 -> 
D21: =Hoja14!G17 -> 
D22: =Hoja14!G18 -> 
D23: =Hoja14!G19 -> 
D24: =Hoja14!G20 -> 
D25: =Hoja14!G21 -> 

Sheet Hoja14 (hidden)
A1: =MedidasDispersión!C5 -> 22 | B1: =IF(A1<>0,A1,"") -> 22 | C1: Promedio | D1: =AVERAGE(B1:B500) -> 19.4 | E1: =209/21 -> 9.952380952 | F1: =(A1-$D$1)^2 -> 6.76 | G1: =IF(A1<>0,F1,"") -> 6.76
A2: =MedidasDispersión!C6 -> 18 | B2: =IF(A2<>0,A2,"") -> 18 | F2: =(A2-$D$1)^2 -> 1.96 | G2: =IF(A2<>0,F2,"") -> 1.96
A3: =MedidasDispersión!C7 -> 20 | B3: 20 | F3: 0.36 | G3: 0.36
A4: =MedidasDispersión!C8 -> 15 | B4: 15 | F4: 19.36 | G4: 19.36
A5: =MedidasDispersión!C9 -> 22 | B5: 22 | F5: 6.76 | G5: 6.76
A6: =MedidasDispersión!C10 -> 0 | F6: 376.36
A7: =MedidasDispersión!C11 -> 0 | F7: 376.36
A8: =MedidasDispersión!C12 -> 0 | F8: 376.36
A9: =MedidasDispersión!C13 -> 0 | F9: 376.36
A10: =MedidasDispersión!C14 -> 0 | F10: 376.36
A11: =MedidasDispersión!C15 -> 0 | F11: 376.36
A12: =MedidasDispersión!C16 -> 0 | F12: 376.36
A13: =MedidasDispersión!C17 -> 0 | F13: 376.36
A14: =MedidasDispersión!C18 -> 0 | F14: 376.36
A15: =MedidasDispersión!C19 -> 0 | F15: 376.36
A16: =MedidasDispersión!C20 -> 0 | F16: 376.36
A17: =MedidasDispersión!C21 -> 0 | F17: 376.36
A18: =MedidasDispersión!C22 -> 0 | F18: 376.36
A19: =MedidasDispersión!C23 -> 0 | F19: 376.36
A20: =MedidasDispersión!C24 -> 0 | F20: 376.36
A21: =MedidasDispersión!C25 -> 0 | F21: 376.36
A22: =MedidasDispersión!C26 -> 0 | F22: 376.36
A23: =MedidasDispersión!C27 -> 0 | F23: 376.36
A24: =MedidasDispersión!C28 -> 0 | F24: 376.36
A25: =MedidasDispersión!C29 -> 0 | F25: 376.36
A26: =MedidasDispersión!C30 -> 0 | F26: 376.36
A27: =MedidasDispersión!C31 -> 0 | F27: 376.36
A28: =MedidasDispersión!C32 -> 0 | F28: 376.36
A29: =MedidasDispersión!C33 -> 0 | F29: 376.36
A30: =MedidasDispersión!C34 -> 0 | F30: 376.36
A31: =MedidasDispersión!C35 -> 0 | F31: 376.36
A32: =MedidasDispersión!C36 -> 0 | F32: 376.36
A33: =MedidasDispersión!C37 -> 0 | F33: 376.36
A34: =MedidasDispersión!C38 -> 0 | F34: 376.36
A35: =MedidasDispersión!C39 -> 0 | F35: 376.36
A36: =MedidasDispersión!C40 -> 0 | F36: 376.36
A37: =MedidasDispersión!C41 -> 0 | F37: 376.36
A38: =MedidasDispersión!C42 -> 0 | F38: 376.36
A39: =MedidasDispersión!C43 -> 0 | F39: 376.36
A40: =MedidasDispersión!C44 -> 0 | F40: 376.36
A41: =MedidasDispersión!C45 -> 0 | F41: 376.36
A42: =MedidasDispersión!C46 -> 0 | F42: 376.36
A43: =MedidasDispersión!C47 -> 0 | F43: 376.36
A44: =MedidasDispersión!C48 -> 0 | F44: 376.36
A45: =MedidasDispersión!C49 -> 0 | F45: 376.36
A46: =MedidasDispersión!C50 -> 0 | F46: 376.36
A47: =MedidasDispersión!C51 -> 0 | F47: 376.36
A48: =MedidasDispersión!C52 -> 0 | F48: 376.36
A49: =MedidasDispersión!C53 -> 0 | F49: 376.36
A50: =MedidasDispersión!C54 -> 0 | F50: 376.36
A51: =MedidasDispersión!C55 -> 0 | F51: 376.36
A52: =MedidasDispersión!C56 -> 0 | F52: 376.36
A53: =MedidasDispersión!C57 -> 0 | F53: 376.36
A54: =MedidasDispersión!C58 -> 0 | F54: 376.36
A55: =MedidasDispersión!C59 -> 0 | F55: 376.36
A56: =MedidasDispersión!C60 -> 0 | F56: 376.36
A57: =MedidasDispersión!C61 -> 0 | F57: 376.36
A58: =MedidasDispersión!C62 -> 0 | F58: 376.36
A59: =MedidasDispersión!C63 -> 0 | F59: 376.36
A60: =MedidasDispersión!C64 -> 0 | F60: 376.36
A61: =MedidasDispersión!C65 -> 0 | F61: 376.36
A62: =MedidasDispersión!C66 -> 0 | F62: 376.36
A63: =MedidasDispersión!C67 -> 0 | F63: 376.36
A64: =MedidasDispersión!C68 -> 0 | F64: 376.36
A65: =MedidasDispersión!C69 -> 0 | F65: 376.36
A66: =MedidasDispersión!C70 -> 0 | B66: =IF(A66<>0,A66,"") ->  | F66: =(A66-$D$1)^2 -> 376.36 | G66: =IF(A66<>0,F66,"") -> 
A67: =MedidasDispersión!C71 -> 0 | F67: 376.36
A68: =MedidasDispersión!C72 -> 0 | F68: 376.36
A69: =MedidasDispersión!C73 -> 0 | F69: 376.36
A70: =MedidasDispersión!C74 -> 0 | F70: 376.36
A71: =MedidasDispersión!C75 -> 0 | F71: 376.36
A72: =MedidasDispersión!C76 -> 0 | F72: 376.36
A73: =MedidasDispersión!C77 -> 0 | F73: 376.36
A74: =MedidasDispersión!C78 -> 0 | F74: 376.36
A75: =MedidasDispersión!C79 -> 0 | F75: 376.36
A76: =MedidasDispersión!C80 -> 0 | F76: 376.36
A77: =MedidasDispersión!C81 -> 0 | F77: 376.36
A78: =MedidasDispersión!C82 -> 0 | F78: 376.36
A79: =MedidasDispersión!C83 -> 0 | F79: 376.36
A80: =MedidasDispersión!C84 -> 0 | F80: 376.36
A81: =MedidasDispersión!C85 -> 0 | F81: 376.36
A82: =MedidasDispersión!C86 -> 0 | F82: 376.36
A83: =MedidasDispersión!C87 -> 0 | F83: 376.36
A84: =MedidasDispersión!C88 -> 0 | F84: 376.36
A85: =MedidasDispersión!C89 -> 0 | F85: 376.36
A86: =MedidasDispersión!C90 -> 0 | F86: 376.36
A87: =MedidasDispersión!C91 -> 0 | F87: 376.36
A88: =MedidasDispersión!C92 -> 0 | F88: 376.36
A89: =MedidasDispersión!C93 -> 0 | F89: 376.36
A90: =MedidasDispersión!C94 -> 0 | F90: 376.36
A91: =MedidasDispersión!C95 -> 0 | F91: 376.36
A92: =MedidasDispersión!C96 -> 0 | F92: 376.36
A93: =MedidasDispersión!C97 -> 0 | F93: 376.36
A94: =MedidasDispersión!C98 -> 0 | F94: 376.36
A95: =MedidasDispersión!C99 -> 0 | F95: 376.36
A96: =MedidasDispersión!C100 -> 0 | F96: 376.36
A97: =MedidasDispersión!C101 -> 0 | F97: 376.36
A98: =MedidasDispersión!C102 -> 0 | F98: 376.36
A99: =MedidasDispersión!C103 -> 0 | F99: 376.36
A100: =MedidasDispersión!C104 -> 0 | F100: 376.36
A101: =MedidasDispersión!C105 -> 0 | F101: 376.36
A102: =MedidasDispersión!C106 -> 0 | F102: 376.36
A103: =MedidasDispersión!C107 -> 0 | F103: 376.36
A104: =MedidasDispersión!C108 -> 0 | F104: 376.36
A105: =MedidasDispersión!C109 -> 0 | F105: 376.36
A106: =MedidasDispersión!C110 -> 0 | F106: 376.36
A107: =MedidasDispersión!C111 -> 0 | F107: 376.36
A108: =MedidasDispersión!C112 -> 0 | F108: 376.36
A109: =MedidasDispersión!C113 -> 0 | F109: 376.36
A110: =MedidasDispersión!C114 -> 0 | F110: 376.36
A111: =MedidasDispersión!C115 -> 0 | F111: 376.36
A112: =MedidasDispersión!C116 -> 0 | F112: 376.36
A113: =MedidasDispersión!C117 -> 0 | F113: 376.36
A114: =MedidasDispersión!C118 -> 0 | F114: 376.36
A115: =MedidasDispersión!C119 -> 0 | F115: 376.36
A116: =MedidasDispersión!C120 -> 0 | F116: 376.36
A117: =MedidasDispersión!C121 -> 0 | F117: 376.36
A118: =MedidasDispersión!C122 -> 0 | F118: 376.36
A119: =MedidasDispersión!C123 -> 0 | F119: 376.36
A120: =MedidasDispersión!C124 -> 0 | F120: 376.36
A121: =MedidasDispersión!C125 -> 0 | F121: 376.36
A122: =MedidasDispersión!C126 -> 0 | F122: 376.36
A123: =MedidasDispersión!C127 -> 0 | F123: 376.36
A124: =MedidasDispersión!C128 -> 0 | F124: 376.36
A125: =MedidasDispersión!C129 -> 0 | F125: 376.36
A126: =MedidasDispersión!C130 -> 0 | F126: 376.36
A127: =MedidasDispersión!C131 -> 0 | F127: 376.36
A128: =MedidasDispersión!C132 -> 0 | F128: 376.36
A129: =MedidasDispersión!C133 -> 0 | F129: 376.36
A130: =MedidasDispersión!C134 -> 0 | B130: =IF(A130<>0,A130,"") ->  | F130: =(A130-$D$1)^2 -> 376.36 | G130: =IF(A130<>0,F130,"") -> 
A131: =MedidasDispersión!C135 -> 0 | F131: 376.36
A132: =MedidasDispersión!C136 -> 0 | F132: 376.36
A133: =MedidasDispersión!C137 -> 0 | F133: 376.36
A134: =MedidasDispersión!C138 -> 0 | F134: 376.36
A135: =MedidasDispersión!C139 -> 0 | F135: 376.36
A136: =MedidasDispersión!C140 -> 0 | F136: 376.36
A137: =MedidasDispersión!C141 -> 0 | F137: 376.36
A138: =MedidasDispersión!C142 -> 0 | F138: 376.36
A139: =MedidasDispersión!C143 -> 0 | F139: 376.36
A140: =MedidasDispersión!C144 -> 0 | F140: 376.36
A141: =MedidasDispersión!C145 -> 0 | F141: 376.36
A142: =MedidasDispersión!C146 -> 0 | F142: 376.36
A143: =MedidasDispersión!C147 -> 0 | F143: 376.36
A144: =MedidasDispersión!C148 -> 0 | F144: 376.36
A145: =MedidasDispersión!C149 -> 0 | F145: 376.36
A146: =MedidasDispersión!C150 -> 0 | F146: 376.36
A147: =MedidasDispersión!C151 -> 0 | F147: 376.36
A148: =MedidasDispersión!C152 -> 0 | F148: 376.36
A149: =MedidasDispersión!C153 -> 0 | F149: 376.36
A150: =MedidasDispersión!C154 -> 0 | F150: 376.36
A151: =MedidasDispersión!C155 -> 0 | F151: 376.36
A152: =MedidasDispersión!C156 -> 0 | F152: 376.36
A153: =MedidasDispersión!C157 -> 0 | F153: 376.36
A154: =MedidasDispersión!C158 -> 0 | F154: 376.36
A155: =MedidasDispersión!C159 -> 0 | F155: 376.36
A156: =MedidasDispersión!C160 -> 0 | F156: 376.36
A157: =MedidasDispersión!C161 -> 0 | F157: 376.36
A158: =MedidasDispersión!C162 -> 0 | F158: 376.36
A159: =MedidasDispersión!C163 -> 0 | F159: 376.36
A160: =MedidasDispersión!C164 -> 0 | F160: 376.36
A161: =MedidasDispersión!C165 -> 0 | F161: 376.36
A162: =MedidasDispersión!C166 -> 0 | F162: 376.36
A163: =MedidasDispersión!C167 -> 0 | F163: 376.36
A164: =MedidasDispersión!C168 -> 0 | F164: 376.36
A165: =MedidasDispersión!C169 -> 0 | F165: 376.36
A166: =MedidasDispersión!C170 -> 0 | F166: 376.36
A167: =MedidasDispersión!C171 -> 0 | F167: 376.36
A168: =MedidasDispersión!C172 -> 0 | F168: 376.36
A169: =MedidasDispersión!C173 -> 0 | F169: 376.36
A170: =MedidasDispersión!C174 -> 0 | F170: 376.36
A171: =MedidasDispersión!C175 -> 0 | F171: 376.36
A172: =MedidasDispersión!C176 -> 0 | F172: 376.36
A173: =MedidasDispersión!C177 -> 0 | F173: 376.36
A174: =MedidasDispersión!C178 -> 0 | F174: 376.36
A175: =MedidasDispersión!C179 -> 0 | F175: 376.36
A176: =MedidasDispersión!C180 -> 0 | F176: 376.36
A177: =MedidasDispersión!C181 -> 0 | F177: 376.36
A178: =MedidasDispersión!C182 -> 0 | F178: 376.36
A179: =MedidasDispersión!C183 -> 0 | F179: 376.36
A180: =MedidasDispersión!C184 -> 0 | F180: 376.36
A181: =MedidasDispersión!C185 -> 0 | F181: 376.36
A182: =MedidasDispersión!C186 -> 0 | F182: 376.36
A183: =MedidasDispersión!C187 -> 0 | F183: 376.36
A184: =MedidasDispersión!C188 -> 0 | F184: 376.36
A185: =MedidasDispersión!C189 -> 0 | F185: 376.36
A186: =MedidasDispersión!C190 -> 0 | F186: 376.36
A187: =MedidasDispersión!C191 -> 0 | F187: 376.36
A188: =MedidasDispersión!C192 -> 0 | F188: 376.36
A189: =MedidasDispersión!C193 -> 0 | F189: 376.36
A190: =MedidasDispersión!C194 -> 0 | F190: 376.36
A191: =MedidasDispersión!C195 -> 0 | F191: 376.36
A192: =MedidasDispersión!C196 -> 0 | F192: 376.36
A193: =MedidasDispersión!C197 -> 0 | F193: 376.36
A194: =MedidasDispersión!C198 -> 0 | B194: =IF(A194<>0,A194,"") ->  | F194: =(A194-$D$1)^2 -> 376.36 | G194: =IF(A194<>0,F194,"") -> 
A195: =MedidasDispersión!C199 -> 0 | F195: 376.36
A196: =MedidasDispersión!C200 -> 0 | F196: 376.36
A197: =MedidasDispersión!C201 -> 0 | F197: 376.36
A198: =MedidasDispersión!C202 -> 0 | F198: 376.36
A199: =MedidasDispersión!C203 -> 0 | F199: 376.36
A200: =MedidasDispersión!C204 -> 0 | F200: 376.36
... 300 more rows

Sheet Prueba Z
B1: Prueba Z | R1: =(C7-C8)/C9 -> -0.8974358974
R2: =(D7-D8)/D9 -> 0.3333333333
C6: A | D6: B
B7: Xi | C7: 270000 | D7: 295000
C8: 305000 | D8: 285000
B9: S | C9: 39000 | D9: 30000
B10: Z | C10: =R1 -> -0.8974358974 | D10: =R2 -> 0.3333333333
E11: Inicio

Sheet Prueba Hipótesis
B2: Prueba hipótesis
D4: =M5 -> 0.08917926427
M5: =(E10)/SQRT(E11) -> 0.08917926427
D7: =M10 -> 13.45604283
M8: =SQRT(E11) -> 29.15475947
B10: Desviación estándar | E10: 2.6 | M10: =(E13-E17)/D4 -> 13.45604283
B11: Muestra | E11: 850
B12: Nivel de significancia | E12: 0.05
B13: Tiempo promedio clientes | E13: 8.2
B17: Tiempo promedio | E17: 7
E19: Inicio

Sheet PruebaChiCuadrado
B2: Número de campañas | D2: 3
G3: Resultados
B4: Año | C4: Número de niños atendidos | D4: Mes de campaña
B5: 1 | C5: 11700 | D5: Julio
B6: 2 | C6: 12350 | D6: Mayo | I6: =Hoja4!K1 -> 11650
B7: 3 | C7: 10900 | D7: Septiembre
I10: =Hoja4!G2 -> 90.55793991
J14: Inicio

Sheet Hoja4 (hidden)
A1: =PruebaChiCuadrado!B5 -> 1 | B1: =PruebaChiCuadrado!C5 -> 11700 | C1: =IF(A1<>0,A1,"") -> 1 | D1: =IF(B1<>0,B1,"") -> 11700 | E1: =(B1-$K$1)^2 -> 2500 | F1: =IFERROR(E1,0) -> 2500 | G1: =SUM(F1:F500) -> 1055000 | H1: Suma | I1: =SUM(D1:D500) -> 34950 | J1: =I1/I2 -> 11650 | K1: =TRUNC(J1) -> 11650
A2: =PruebaChiCuadrado!B6 -> 2 | B2: =PruebaChiCuadrado!C6 -> 12350 | C2: =IF(A2<>0,A2,"") -> 2 | D2: 12350 | E2: =(B2-$K$1)^2 -> 490000 | F2: =IFERROR(E2,0) -> 490000 | G2: =G1/K1 -> 90.55793991 | H2: Cuenta | I2: =COUNT(C1:C500) -> 3
A3: =PruebaChiCuadrado!B7 -> 3 | B3: =PruebaChiCuadrado!C7 -> 10900 | C3: 3 | D3: 10900 | E3: =(B3-$K$1)^2 -> 562500 | F3: =IFERROR(E3,0) -> 562500
A4: =PruebaChiCuadrado!B8 -> 0 | B4: =PruebaChiCuadrado!C8 -> 0 | E4: =(D4-$K$1)^2 ->  | F4: =IFERROR(E4,0) -> 0
A5: =PruebaChiCuadrado!B9 -> 0 | B5: =PruebaChiCuadrado!C9 -> 0 | F5: =IFERROR(E5,0) -> 0
A6: =PruebaChiCuadrado!B10 -> 0 | B6: =PruebaChiCuadrado!C10 -> 0 | F6: 0
A7: =PruebaChiCuadrado!B11 -> 0 | B7: =PruebaChiCuadrado!C11 -> 0 | F7: 0
A8: =PruebaChiCuadrado!B12 -> 0 | B8: =PruebaChiCuadrado!C12 -> 0 | F8: 0
A9: =PruebaChiCuadrado!B13 -> 0 | B9: =PruebaChiCuadrado!C13 -> 0 | F9: 0
A10: =PruebaChiCuadrado!B14 -> 0 | B10: =PruebaChiCuadrado!C14 -> 0 | F10: 0
A11: =PruebaChiCuadrado!B15 -> 0 | B11: =PruebaChiCuadrado!C15 -> 0 | F11: 0
A12: =PruebaChiCuadrado!B16 -> 0 | B12: =PruebaChiCuadrado!C16 -> 0 | F12: 0
A13: =PruebaChiCuadrado!B17 -> 0 | B13: =PruebaChiCuadrado!C17 -> 0 | F13: 0
A14: =PruebaChiCuadrado!B18 -> 0 | B14: =PruebaChiCuadrado!C18 -> 0 | F14: 0
A15: =PruebaChiCuadrado!B19 -> 0 | B15: =PruebaChiCuadrado!C19 -> 0 | F15: 0
A16: =PruebaChiCuadrado!B20 -> 0 | B16: =PruebaChiCuadrado!C20 -> 0 | F16: 0
A17: =PruebaChiCuadrado!B21 -> 0 | B17: =PruebaChiCuadrado!C21 -> 0 | F17: 0
A18: =PruebaChiCuadrado!B22 -> 0 | B18: =PruebaChiCuadrado!C22 -> 0 | F18: 0
A19: =PruebaChiCuadrado!B23 -> 0 | B19: =PruebaChiCuadrado!C23 -> 0 | F19: 0
A20: =PruebaChiCuadrado!B24 -> 0 | B20: =PruebaChiCuadrado!C24 -> 0 | F20: 0
A21: =PruebaChiCuadrado!B25 -> 0 | B21: =PruebaChiCuadrado!C25 -> 0 | F21: 0
A22: =PruebaChiCuadrado!B26 -> 0 | B22: =PruebaChiCuadrado!C26 -> 0 | F22: 0
A23: =PruebaChiCuadrado!B27 -> 0 | B23: =PruebaChiCuadrado!C27 -> 0 | F23: 0
A24: =PruebaChiCuadrado!B28 -> 0 | B24: =PruebaChiCuadrado!C28 -> 0 | F24: 0
A25: =PruebaChiCuadrado!B29 -> 0 | B25: =PruebaChiCuadrado!C29 -> 0 | F25: 0
A26: =PruebaChiCuadrado!B30 -> 0 | B26: =PruebaChiCuadrado!C30 -> 0 | F26: 0
A27: =PruebaChiCuadrado!B31 -> 0 | B27: =PruebaChiCuadrado!C31 -> 0 | F27: 0
A28: =PruebaChiCuadrado!B32 -> 0 | B28: =PruebaChiCuadrado!C32 -> 0 | F28: 0
A29: =PruebaChiCuadrado!B33 -> 0 | B29: =PruebaChiCuadrado!C33 -> 0 | F29: 0
A30: =PruebaChiCuadrado!B34 -> 0 | B30: =PruebaChiCuadrado!C34 -> 0 | F30: 0
A31: =PruebaChiCuadrado!B35 -> 0 | B31: =PruebaChiCuadrado!C35 -> 0 | F31: 0
A32: =PruebaChiCuadrado!B36 -> 0 | B32: =PruebaChiCuadrado!C36 -> 0 | F32: 0
A33: =PruebaChiCuadrado!B37 -> 0 | B33: =PruebaChiCuadrado!C37 -> 0 | F33: 0
A34: =PruebaChiCuadrado!B38 -> 0 | B34: =PruebaChiCuadrado!C38 -> 0 | F34: 0
A35: =PruebaChiCuadrado!B39 -> 0 | B35: =PruebaChiCuadrado!C39 -> 0 | F35: 0
A36: =PruebaChiCuadrado!B40 -> 0 | B36: =PruebaChiCuadrado!C40 -> 0 | E36: =(D36-$K$1)^2 ->  | F36: 0
A37: =PruebaChiCuadrado!B41 -> 0 | B37: =PruebaChiCuadrado!C41 -> 0 | F37: 0
A38: =PruebaChiCuadrado!B42 -> 0 | B38: =PruebaChiCuadrado!C42 -> 0 | F38: 0
A39: =PruebaChiCuadrado!B43 -> 0 | B39: =PruebaChiCuadrado!C43 -> 0 | F39: 0
A40: =PruebaChiCuadrado!B44 -> 0 | B40: =PruebaChiCuadrado!C44 -> 0 | F40: 0
A41: =PruebaChiCuadrado!B45 -> 0 | B41: =PruebaChiCuadrado!C45 -> 0 | F41: 0
A42: =PruebaChiCuadrado!B46 -> 0 | B42: =PruebaChiCuadrado!C46 -> 0 | F42: 0
A43: =PruebaChiCuadrado!B47 -> 0 | B43: =PruebaChiCuadrado!C47 -> 0 | F43: 0
A44: =PruebaChiCuadrado!B48 -> 0 | B44: =PruebaChiCuadrado!C48 -> 0 | F44: 0
A45: =PruebaChiCuadrado!B49 -> 0 | B45: =PruebaChiCuadrado!C49 -> 0 | F45: 0
A46: =PruebaChiCuadrado!B50 -> 0 | B46: =PruebaChiCuadrado!C50 -> 0 | F46: 0
A47: =PruebaChiCuadrado!B51 -> 0 | B47: =PruebaChiCuadrado!C51 -> 0 | F47: 0
A48: =PruebaChiCuadrado!B52 -> 0 | B48: =PruebaChiCuadrado!C52 -> 0 | F48: 0
A49: =PruebaChiCuadrado!B53 -> 0 | B49: =PruebaChiCuadrado!C53 -> 0 | F49: 0
A50: =PruebaChiCuadrado!B54 -> 0 | B50: =PruebaChiCuadrado!C54 -> 0 | F50: 0
A51: =PruebaChiCuadrado!B55 -> 0 | B51: =PruebaChiCuadrado!C55 -> 0 | F51: 0
A52: =PruebaChiCuadrado!B56 -> 0 | B52: =PruebaChiCuadrado!C56 -> 0 | F52: 0
A53: =PruebaChiCuadrado!B57 -> 0 | B53: =PruebaChiCuadrado!C57 -> 0 | F53: 0
A54: =PruebaChiCuadrado!B58 -> 0 | B54: =PruebaChiCuadrado!C58 -> 0 | F54: 0
A55: =PruebaChiCuadrado!B59 -> 0 | B55: =PruebaChiCuadrado!C59 -> 0 | F55: 0
A56: =PruebaChiCuadrado!B60 -> 0 | B56: =PruebaChiCuadrado!C60 -> 0 | F56: 0
A57: =PruebaChiCuadrado!B61 -> 0 | B57: =PruebaChiCuadrado!C61 -> 0 | F57: 0
A58: =PruebaChiCuadrado!B62 -> 0 | B58: =PruebaChiCuadrado!C62 -> 0 | F58: 0
A59: =PruebaChiCuadrado!B63 -> 0 | B59: =PruebaChiCuadrado!C63 -> 0 | F59: 0
A60: =PruebaChiCuadrado!B64 -> 0 | B60: =PruebaChiCuadrado!C64 -> 0 | F60: 0
A61: =PruebaChiCuadrado!B65 -> 0 | B61: =PruebaChiCuadrado!C65 -> 0 | F61: 0
A62: =PruebaChiCuadrado!B66 -> 0 | B62: =PruebaChiCuadrado!C66 -> 0 | F62: 0
A63: =PruebaChiCuadrado!B67 -> 0 | B63: =PruebaChiCuadrado!C67 -> 0 | F63: 0
A64: =PruebaChiCuadrado!B68 -> 0 | B64: =PruebaChiCuadrado!C68 -> 0 | F64: 0
A65: =PruebaChiCuadrado!B69 -> 0 | B65: =PruebaChiCuadrado!C69 -> 0 | F65: 0
A66: =PruebaChiCuadrado!B70 -> 0 | B66: =PruebaChiCuadrado!C70 -> 0 | C66: =IF(A66<>0,A66,"") ->  | E66: =(D66-$K$1)^2 ->  | F66: 0
A67: =PruebaChiCuadrado!B71 -> 0 | B67: =PruebaChiCuadrado!C71 -> 0 | F67: 0
A68: =PruebaChiCuadrado!B72 -> 0 | B68: =PruebaChiCuadrado!C72 -> 0 | F68: 0
A69: =PruebaChiCuadrado!B73 -> 0 | B69: =PruebaChiCuadrado!C73 -> 0 | F69: =IFERROR(E69,0) -> 0
A70: =PruebaChiCuadrado!B74 -> 0 | B70: =PruebaChiCuadrado!C74 -> 0 | F70: 0
A71: =PruebaChiCuadrado!B75 -> 0 | B71: =PruebaChiCuadrado!C75 -> 0 | F71: 0
A72: =PruebaChiCuadrado!B76 -> 0 | B72: =PruebaChiCuadrado!C76 -> 0 | F72: 0
A73: =PruebaChiCuadrado!B77 -> 0 | B73: =PruebaChiCuadrado!C77 -> 0 | F73: 0
A74: =PruebaChiCuadrado!B78 -> 0 | B74: =PruebaChiCuadrado!C78 -> 0 | F74: 0
A75: =PruebaChiCuadrado!B79 -> 0 | B75: =PruebaChiCuadrado!C79 -> 0 | F75: 0
A76: =PruebaChiCuadrado!B80 -> 0 | B76: =PruebaChiCuadrado!C80 -> 0 | F76: 0
A77: =PruebaChiCuadrado!B81 -> 0 | B77: =PruebaChiCuadrado!C81 -> 0 | F77: 0
A78: =PruebaChiCuadrado!B82 -> 0 | B78: =PruebaChiCuadrado!C82 -> 0 | F78: 0
A79: =PruebaChiCuadrado!B83 -> 0 | B79: =PruebaChiCuadrado!C83 -> 0 | F79: 0
A80: =PruebaChiCuadrado!B84 -> 0 | B80: =PruebaChiCuadrado!C84 -> 0 | F80: 0
A81: =PruebaChiCuadrado!B85 -> 0 | B81: =PruebaChiCuadrado!C85 -> 0 | F81: 0
A82: =PruebaChiCuadrado!B86 -> 0 | B82: =PruebaChiCuadrado!C86 -> 0 | F82: 0
A83: =PruebaChiCuadrado!B87 -> 0 | B83: =PruebaChiCuadrado!C87 -> 0 | F83: 0
A84: =PruebaChiCuadrado!B88 -> 0 | B84: =PruebaChiCuadrado!C88 -> 0 | F84: 0
A85: =PruebaChiCuadrado!B89 -> 0 | B85: =PruebaChiCuadrado!C89 -> 0 | F85: 0
A86: =PruebaChiCuadrado!B90 -> 0 | B86: =PruebaChiCuadrado!C90 -> 0 | F86: 0
A87: =PruebaChiCuadrado!B91 -> 0 | B87: =PruebaChiCuadrado!C91 -> 0 | F87: 0
A88: =PruebaChiCuadrado!B92 -> 0 | B88: =PruebaChiCuadrado!C92 -> 0 | F88: 0
A89: =PruebaChiCuadrado!B93 -> 0 | B89: =PruebaChiCuadrado!C93 -> 0 | F89: 0
A90: =PruebaChiCuadrado!B94 -> 0 | B90: =PruebaChiCuadrado!C94 -> 0 | F90: 0
A91: =PruebaChiCuadrado!B95 -> 0 | B91: =PruebaChiCuadrado!C95 -> 0 | F91: 0
A92: =PruebaChiCuadrado!B96 -> 0 | B92: =PruebaChiCuadrado!C96 -> 0 | F92: 0
A93: =PruebaChiCuadrado!B97 -> 0 | B93: =PruebaChiCuadrado!C97 -> 0 | F93: 0
A94: =PruebaChiCuadrado!B98 -> 0 | B94: =PruebaChiCuadrado!C98 -> 0 | F94: 0
A95: =PruebaChiCuadrado!B99 -> 0 | B95: =PruebaChiCuadrado!C99 -> 0 | F95: 0
A96: =PruebaChiCuadrado!B100 -> 0 | B96: =PruebaChiCuadrado!C100 -> 0 | F96: 0
A97: =PruebaChiCuadrado!B101 -> 0 | B97: =PruebaChiCuadrado!C101 -> 0 | F97: 0
A98: =PruebaChiCuadrado!B102 -> 0 | B98: =PruebaChiCuadrado!C102 -> 0 | F98: 0
A99: =PruebaChiCuadrado!B103 -> 0 | B99: =PruebaChiCuadrado!C103 -> 0 | F99: 0
A100: =PruebaChiCuadrado!B104 -> 0 | B100: =PruebaChiCuadrado!C104 -> 0 | F100: 0
A101: =PruebaChiCuadrado!B105 -> 0 | B101: =PruebaChiCuadrado!C105 -> 0 | F101: 0
A102: =PruebaChiCuadrado!B106 -> 0 | B102: =PruebaChiCuadrado!C106 -> 0 | F102: 0
A103: =PruebaChiCuadrado!B107 -> 0 | B103: =PruebaChiCuadrado!C107 -> 0 | F103: 0
A104: =PruebaChiCuadrado!B108 -> 0 | B104: =PruebaChiCuadrado!C108 -> 0 | F104: 0
A105: =PruebaChiCuadrado!B109 -> 0 | B105: =PruebaChiCuadrado!C109 -> 0 | F105: 0
A106: =PruebaChiCuadrado!B110 -> 0 | B106: =PruebaChiCuadrado!C110 -> 0 | F106: 0
A107: =PruebaChiCuadrado!B111 -> 0 | B107: =PruebaChiCuadrado!C111 -> 0 | F107: 0
A108: =PruebaChiCuadrado!B112 -> 0 | B108: =PruebaChiCuadrado!C112 -> 0 | F108: 0
A109: =PruebaChiCuadrado!B113 -> 0 | B109: =PruebaChiCuadrado!C113 -> 0 | F109: 0
A110: =PruebaChiCuadrado!B114 -> 0 | B110: =PruebaChiCuadrado!C114 -> 0 | F110: 0
A111: =PruebaChiCuadrado!B115 -> 0 | B111: =PruebaChiCuadrado!C115 -> 0 | F111: 0
A112: =PruebaChiCuadrado!B116 -> 0 | B112: =PruebaChiCuadrado!C116 -> 0 | F112: 0
A113: =PruebaChiCuadrado!B117 -> 0 | B113: =PruebaChiCuadrado!C117 -> 0 | F113: 0
A114: =PruebaChiCuadrado!B118 -> 0 | B114: =PruebaChiCuadrado!C118 -> 0 | F114: 0
A115: =PruebaChiCuadrado!B119 -> 0 | B115: =PruebaChiCuadrado!C119 -> 0 | F115: 0
A116: =PruebaChiCuadrado!B120 -> 0 | B116: =PruebaChiCuadrado!C120 -> 0 | F116: 0
A117: =PruebaChiCuadrado!B121 -> 0 | B117: =PruebaChiCuadrado!C121 -> 0 | F117: 0
A118: =PruebaChiCuadrado!B122 -> 0 | B118: =PruebaChiCuadrado!C122 -> 0 | F118: 0
A119: =PruebaChiCuadrado!B123 -> 0 | B119: =PruebaChiCuadrado!C123 -> 0 | F119: 0
A120: =PruebaChiCuadrado!B124 -> 0 | B120: =PruebaChiCuadrado!C124 -> 0 | F120: 0
A121: =PruebaChiCuadrado!B125 -> 0 | B121: =PruebaChiCuadrado!C125 -> 0 | F121: 0
A122: =PruebaChiCuadrado!B126 -> 0 | B122: =PruebaChiCuadrado!C126 -> 0 | F122: 0
A123: =PruebaChiCuadrado!B127 -> 0 | B123: =PruebaChiCuadrado!C127 -> 0 | F123: 0
A124: =PruebaChiCuadrado!B128 -> 0 | B124: =PruebaChiCuadrado!C128 -> 0 | F124: 0
A125: =PruebaChiCuadrado!B129 -> 0 | B125: =PruebaChiCuadrado!C129 -> 0 | F125: 0
A126: =PruebaChiCuadrado!B130 -> 0 | B126: =PruebaChiCuadrado!C130 -> 0 | F126: 0
A127: =PruebaChiCuadrado!B131 -> 0 | B127: =PruebaChiCuadrado!C131 -> 0 | F127: 0
A128: =PruebaChiCuadrado!B132 -> 0 | B128: =PruebaChiCuadrado!C132 -> 0 | F128: 0
A129: =PruebaChiCuadrado!B133 -> 0 | B129: =PruebaChiCuadrado!C133 -> 0 | F129: 0
A130: =PruebaChiCuadrado!B134 -> 0 | B130: =PruebaChiCuadrado!C134 -> 0 | C130: =IF(A130<>0,A130,"") ->  | E130: =(D130-$K$1)^2 ->  | F130: 0
A131: =PruebaChiCuadrado!B135 -> 0 | B131: =PruebaChiCuadrado!C135 -> 0 | F131: 0
A132: =PruebaChiCuadrado!B136 -> 0 | B132: =PruebaChiCuadrado!C136 -> 0 | F132: 0
A133: =PruebaChiCuadrado!B137 -> 0 | B133: =PruebaChiCuadrado!C137 -> 0 | F133: =IFERROR(E133,0) -> 0
A134: =PruebaChiCuadrado!B138 -> 0 | B134: =PruebaChiCuadrado!C138 -> 0 | F134: 0
A135: =PruebaChiCuadrado!B139 -> 0 | B135: =PruebaChiCuadrado!C139 -> 0 | F135: 0
A136: =PruebaChiCuadrado!B140 -> 0 | B136: =PruebaChiCuadrado!C140 -> 0 | F136: 0
A137: =PruebaChiCuadrado!B141 -> 0 | B137: =PruebaChiCuadrado!C141 -> 0 | F137: 0
A138: =PruebaChiCuadrado!B142 -> 0 | B138: =PruebaChiCuadrado!C142 -> 0 | F138: 0
A139: =PruebaChiCuadrado!B143 -> 0 | B139: =PruebaChiCuadrado!C143 -> 0 | F139: 0
A140: =PruebaChiCuadrado!B144 -> 0 | B140: =PruebaChiCuadrado!C144 -> 0 | F140: 0
A141: =PruebaChiCuadrado!B145 -> 0 | B141: =PruebaChiCuadrado!C145 -> 0 | F141: 0
A142: =PruebaChiCuadrado!B146 -> 0 | B142: =PruebaChiCuadrado!C146 -> 0 | F142: 0
A143: =PruebaChiCuadrado!B147 -> 0 | B143: =PruebaChiCuadrado!C147 -> 0 | F143: 0
A144: =PruebaChiCuadrado!B148 -> 0 | B144: =PruebaChiCuadrado!C148 -> 0 | F144: 0
A145: =PruebaChiCuadrado!B149 -> 0 | B145: =PruebaChiCuadrado!C149 -> 0 | F145: 0
A146: =PruebaChiCuadrado!B150 -> 0 | B146: =PruebaChiCuadrado!C150 -> 0 | F146: 0
A147: =PruebaChiCuadrado!B151 -> 0 | B147: =PruebaChiCuadrado!C151 -> 0 | F147: 0
A148: =PruebaChiCuadrado!B152 -> 0 | B148: =PruebaChiCuadrado!C152 -> 0 | F148: 0
A149: =PruebaChiCuadrado!B153 -> 0 | B149: =PruebaChiCuadrado!C153 -> 0 | F149: 0
A150: =PruebaChiCuadrado!B154 -> 0 | B150: =PruebaChiCuadrado!C154 -> 0 | F150: 0
A151: =PruebaChiCuadrado!B155 -> 0 | B151: =PruebaChiCuadrado!C155 -> 0 | F151: 0
A152: =PruebaChiCuadrado!B156 -> 0 | B152: =PruebaChiCuadrado!C156 -> 0 | F152: 0
A153: =PruebaChiCuadrado!B157 -> 0 | B153: =PruebaChiCuadrado!C157 -> 0 | F153: 0
A154: =PruebaChiCuadrado!B158 -> 0 | B154: =PruebaChiCuadrado!C158 -> 0 | F154: 0
A155: =PruebaChiCuadrado!B159 -> 0 | B155: =PruebaChiCuadrado!C159 -> 0 | F155: 0
A156: =PruebaChiCuadrado!B160 -> 0 | B156: =PruebaChiCuadrado!C160 -> 0 | F156: 0
A157: =PruebaChiCuadrado!B161 -> 0 | B157: =PruebaChiCuadrado!C161 -> 0 | F157: 0
A158: =PruebaChiCuadrado!B162 -> 0 | B158: =PruebaChiCuadrado!C162 -> 0 | F158: 0
A159: =PruebaChiCuadrado!B163 -> 0 | B159: =PruebaChiCuadrado!C163 -> 0 | F159: 0
A160: =PruebaChiCuadrado!B164 -> 0 | B160: =PruebaChiCuadrado!C164 -> 0 | F160: 0
A161: =PruebaChiCuadrado!B165 -> 0 | B161: =PruebaChiCuadrado!C165 -> 0 | F161: 0
A162: =PruebaChiCuadrado!B166 -> 0 | B162: =PruebaChiCuadrado!C166 -> 0 | F162: 0
A163: =PruebaChiCuadrado!B167 -> 0 | B163: =PruebaChiCuadrado!C167 -> 0 | F163: 0
A164: =PruebaChiCuadrado!B168 -> 0 | B164: =PruebaChiCuadrado!C168 -> 0 | F164: 0
A165: =PruebaChiCuadrado!B169 -> 0 | B165: =PruebaChiCuadrado!C169 -> 0 | F165: 0
A166: =PruebaChiCuadrado!B170 -> 0 | B166: =PruebaChiCuadrado!C170 -> 0 | F166: 0
A167: =PruebaChiCuadrado!B171 -> 0 | B167: =PruebaChiCuadrado!C171 -> 0 | F167: 0
A168: =PruebaChiCuadrado!B172 -> 0 | B168: =PruebaChiCuadrado!C172 -> 0 | F168: 0
A169: =PruebaChiCuadrado!B173 -> 0 | B169: =PruebaChiCuadrado!C173 -> 0 | F169: 0
A170: =PruebaChiCuadrado!B174 -> 0 | B170: =PruebaChiCuadrado!C174 -> 0 | F170: 0
A171: =PruebaChiCuadrado!B175 -> 0 | B171: =PruebaChiCuadrado!C175 -> 0 | F171: 0
A172: =PruebaChiCuadrado!B176 -> 0 | B172: =PruebaChiCuadrado!C176 -> 0 | F172: 0
A173: =PruebaChiCuadrado!B177 -> 0 | B173: =PruebaChiCuadrado!C177 -> 0 | F173: 0
A174: =PruebaChiCuadrado!B178 -> 0 | B174: =PruebaChiCuadrado!C178 -> 0 | F174: 0
A175: =PruebaChiCuadrado!B179 -> 0 | B175: =PruebaChiCuadrado!C179 -> 0 | F175: 0
A176: =PruebaChiCuadrado!B180 -> 0 | B176: =PruebaChiCuadrado!C180 -> 0 | F176: 0
A177: =PruebaChiCuadrado!B181 -> 0 | B177: =PruebaChiCuadrado!C181 -> 0 | F177: 0
A178: =PruebaChiCuadrado!B182 -> 0 | B178: =PruebaChiCuadrado!C182 -> 0 | F178: 0
A179: =PruebaChiCuadrado!B183 -> 0 | B179: =PruebaChiCuadrado!C183 -> 0 | F179: 0
A180: =PruebaChiCuadrado!B184 -> 0 | B180: =PruebaChiCuadrado!C184 -> 0 | F180: 0
A181: =PruebaChiCuadrado!B185 -> 0 | B181: =PruebaChiCuadrado!C185 -> 0 | F181: 0
A182: =PruebaChiCuadrado!B186 -> 0 | B182: =PruebaChiCuadrado!C186 -> 0 | F182: 0
A183: =PruebaChiCuadrado!B187 -> 0 | B183: =PruebaChiCuadrado!C187 -> 0 | F183: 0
A184: =PruebaChiCuadrado!B188 -> 0 | B184: =PruebaChiCuadrado!C188 -> 0 | F184: 0
A185: =PruebaChiCuadrado!B189 -> 0 | B185: =PruebaChiCuadrado!C189 -> 0 | F185: 0
A186: =PruebaChiCuadrado!B190 -> 0 | B186: =PruebaChiCuadrado!C190 -> 0 | F186: 0
A187: =PruebaChiCuadrado!B191 -> 0 | B187: =PruebaChiCuadrado!C191 -> 0 | F187: 0
A188: =PruebaChiCuadrado!B192 -> 0 | B188: =PruebaChiCuadrado!C192 -> 0 | F188: 0
A189: =PruebaChiCuadrado!B193 -> 0 | B189: =PruebaChiCuadrado!C193 -> 0 | F189: 0
A190: =PruebaChiCuadrado!B194 -> 0 | B190: =PruebaChiCuadrado!C194 -> 0 | F190: 0
A191: =PruebaChiCuadrado!B195 -> 0 | B191: =PruebaChiCuadrado!C195 -> 0 | F191: 0
A192: =PruebaChiCuadrado!B196 -> 0 | B192: =PruebaChiCuadrado!C196 -> 0 | F192: 0
A193: =PruebaChiCuadrado!B197 -> 0 | B193: =PruebaChiCuadrado!C197 -> 0 | F193: 0
A194: =PruebaChiCuadrado!B198 -> 0 | B194: =PruebaChiCuadrado!C198 -> 0 | C194: =IF(A194<>0,A194,"") ->  | E194: =(D194-$K$1)^2 ->  | F194: 0
A195: =PruebaChiCuadrado!B199 -> 0 | B195: =PruebaChiCuadrado!C199 -> 0 | F195: 0
A196: =PruebaChiCuadrado!B200 -> 0 | B196: =PruebaChiCuadrado!C200 -> 0 | F196: 0
A197: =PruebaChiCuadrado!B201 -> 0 | B197: =PruebaChiCuadrado!C201 -> 0 | F197: =IFERROR(E197,0) -> 0
A198: =PruebaChiCuadrado!B202 -> 0 | B198: =PruebaChiCuadrado!C202 -> 0 | F198: 0
A199: =PruebaChiCuadrado!B203 -> 0 | B199: =PruebaChiCuadrado!C203 -> 0 | F199: 0
A200: =PruebaChiCuadrado!B204 -> 0 | B200: =PruebaChiCuadrado!C204 -> 0 | F200: 0
... 300 more rows

Sheet Regr_Lineal
B2: Meses de actividad | C2: 6
B4: Mes de actividad | C4: Número de clientes atendidos por mes (miles) | D4: Número de quejas recibidas por mes
B5: 1 | C5: 6.6 | D5: 75 | F5: Ir a Cálculo
B6: 2 | C6: 5.3 | D6: 69 | F6: Inicio
B7: 3 | C7: 4.9 | D7: 71
B8: 4 | C8: 7.4 | D8: 86
B9: 5 | C9: 7.1 | D9: 78
B10: 6 | C10: 5.6 | D10: 73

Sheet Cálculo Ecuación
B2: Mes de actividad | C2: X | D2: Y | E2: X^2 | F2: XY | G2: Y^2 | I2: Resultados
B3: =Hoja8!G2 -> 1 | C3: =Hoja8!H2 -> 6.6 | D3: =Hoja8!I2 -> 75 | E3: =Hoja8!J2 -> 43.56 | F3: =Hoja8!K2 -> 495 | G3: =Hoja8!L2 -> 5625 | I3: Total X | J3: =Hoja8!O1 -> 36.9
B4: =Hoja8!G3 -> 2 | C4: =Hoja8!H3 -> 5.3 | D4: =Hoja8!I3 -> 69 | E4: =Hoja8!J3 -> 28.09 | F4: =Hoja8!K3 -> 365.7 | G4: =Hoja8!L3 -> 4761 | I4: Total Y | J4: =Hoja8!O2 -> 452
B5: =Hoja8!G4 -> 3 | C5: =Hoja8!H4 -> 4.9 | D5: =Hoja8!I4 -> 71 | E5: =Hoja8!J4 -> 24.01 | F5: =Hoja8!K4 -> 347.9 | G5: =Hoja8!L4 -> 5041 | I5: Total X^2 | J5: =Hoja8!O3 -> 232.19
B6: =Hoja8!G5 -> 4 | C6: =Hoja8!H5 -> 7.4 | D6: =Hoja8!I5 -> 86 | E6: =Hoja8!J5 -> 54.76 | F6: =Hoja8!K5 -> 636.4 | G6: =Hoja8!L5 -> 7396 | I6: Total XY | J6: =Hoja8!O4 -> 2807.6
B7: =Hoja8!G6 -> 5 | C7: =Hoja8!H6 -> 7.1 | D7: =Hoja8!I6 -> 78 | E7: =Hoja8!J6 -> 50.41 | F7: =Hoja8!K6 -> 553.8 | G7: =Hoja8!L6 -> 6084 | I7: Total Y^2 | J7: =Hoja8!O5 -> 34236
B8: =Hoja8!G7 -> 6 | C8: =Hoja8!H7 -> 5.6 | D8: =Hoja8!I7 -> 73 | E8: =Hoja8!J7 -> 31.36 | F8: =Hoja8!K7 -> 408.8 | G8: =Hoja8!L7 -> 5329
B9: =Hoja8!G8 ->  | C9: =Hoja8!H8 ->  | D9: =Hoja8!I8 ->  | E9: =Hoja8!J8 ->  | F9: =Hoja8!K8 ->  | G9: =Hoja8!L8 -> 
B10: =Hoja8!G9 ->  | C10: =Hoja8!H9 ->  | D10: =Hoja8!I9 ->  | E10: =Hoja8!J9 ->  | F10: =Hoja8!K9 ->  | G10: =Hoja8!L9 ->  | K10: =Hoja8!O7 -> 42.7986045
B11: =Hoja8!G10 ->  | C11: =Hoja8!H10 ->  | D11: =Hoja8!I10 ->  | E11: =Hoja8!J10 ->  | F11: =Hoja8!K10 ->  | G11: =Hoja8!L10 -> 
B12: =Hoja8!G11 ->  | C12: =Hoja8!H11 ->  | D12: =Hoja8!I11 ->  | E12: =Hoja8!J11 ->  | F12: =Hoja8!K11 ->  | G12: =Hoja8!L11 -> 
B13: =Hoja8!G12 ->  | C13: =Hoja8!H12 ->  | G13: =Hoja8!L12 -> 
B14: =Hoja8!G13 ->  | C14: =Hoja8!H13 ->  | G14: =Hoja8!L13 ->  | K14: =Hoja8!N12 -> 5.29019981
B15: =Hoja8!G14 ->  | C15: =Hoja8!H14 ->  | D15: =Hoja8!I14 ->  | G15: =Hoja8!L14 -> 
B16: =Hoja8!G15 ->  | C16: =Hoja8!H15 ->  | D16: =Hoja8!I15 ->  | E16: =Hoja8!J15 ->  | F16: =Hoja8!K15 ->  | G16: =Hoja8!L15 ->  | K16: Ir a regresión
B17: =Hoja8!G16 ->  | C17: =Hoja8!H16 ->  | D17: =Hoja8!I16 ->  | E17: =Hoja8!J16 ->  | F17: =Hoja8!K16 ->  | G17: =Hoja8!L16 ->  | K17: Ir a Correlación
B18: =Hoja8!G17 ->  | C18: =Hoja8!H17 ->  | D18: =Hoja8!I17 ->  | E18: =Hoja8!J17 ->  | F18: =Hoja8!K17 ->  | G18: =Hoja8!L17 ->  | I18: =Hoja8!N15 -> Y = 42.8 + 5.29x | K18: Inicio
B19: =Hoja8!G18 ->  | C19: =Hoja8!H18 ->  | D19: =Hoja8!I18 ->  | E19: =Hoja8!J18 ->  | F19: =Hoja8!K18 ->  | G19: =Hoja8!L18 -> 
B20: =Hoja8!G19 ->  | C20: =Hoja8!H19 ->  | D20: =Hoja8!I19 ->  | E20: =Hoja8!J19 ->  | F20: =Hoja8!K19 ->  | G20: =Hoja8!L19 -> 
B21: =Hoja8!G20 ->  | C21: =Hoja8!H20 ->  | D21: =Hoja8!I20 ->  | E21: =Hoja8!J20 ->  | F21: =Hoja8!K20 ->  | G21: =Hoja8!L20 -> 
B22: =Hoja8!G21 ->  | C22: =Hoja8!H21 ->  | D22: =Hoja8!I21 ->  | E22: =Hoja8!J21 ->  | F22: =Hoja8!K21 ->  | G22: =Hoja8!L21 -> 
B23: =Hoja8!G22 ->  | C23: =Hoja8!H22 ->  | D23: =Hoja8!I22 ->  | E23: =Hoja8!J22 ->  | F23: =Hoja8!K22 ->  | G23: =Hoja8!L22 -> 
B24: =Hoja8!G23 ->  | C24: =Hoja8!H23 ->  | D24: =Hoja8!I23 ->  | E24: =Hoja8!J23 ->  | F24: =Hoja8!K23 ->  | G24: =Hoja8!L23 -> 
B25: =Hoja8!G24 ->  | C25: =Hoja8!H24 ->  | D25: =Hoja8!I24 ->  | E25: =Hoja8!J24 ->  | F25: =Hoja8!K24 ->  | G25: =Hoja8!L24 -> 
B26: =Hoja8!G25 ->  | C26: =Hoja8!H25 ->  | D26: =Hoja8!I25 ->  | E26: =Hoja8!J25 ->  | F26: =Hoja8!K25 ->  | G26: =Hoja8!L25 -> 
B27: =Hoja8!G26 ->  | C27: =Hoja8!H26 ->  | D27: =Hoja8!I26 ->  | E27: =Hoja8!J26 ->  | F27: =Hoja8!K26 ->  | G27: =Hoja8!L26 -> 
B28: =Hoja8!G27 ->  | C28: =Hoja8!H27 ->  | D28: =Hoja8!I27 ->  | E28: =Hoja8!J27 ->  | F28: =Hoja8!K27 ->  | G28: =Hoja8!L27 -> 
B29: =Hoja8!G28 ->  | C29: =Hoja8!H28 ->  | D29: =Hoja8!I28 ->  | E29: =Hoja8!J28 ->  | F29: =Hoja8!K28 ->  | G29: =Hoja8!L28 -> 
B30: =Hoja8!G29 ->  | C30: =Hoja8!H29 ->  | D30: =Hoja8!I29 ->  | E30: =Hoja8!J29 ->  | F30: =Hoja8!K29 ->  | G30: =Hoja8!L29 -> 
B31: =Hoja8!G30 ->  | C31: =Hoja8!H30 ->  | D31: =Hoja8!I30 ->  | E31: =Hoja8!J30 ->  | F31: =Hoja8!K30 ->  | G31: =Hoja8!L30 -> 
B32: =Hoja8!G31 ->  | C32: =Hoja8!H31 ->  | D32: =Hoja8!I31 ->  | E32: =Hoja8!J31 ->  | F32: =Hoja8!K31 ->  | G32: =Hoja8!L31 -> 
B33: =Hoja8!G32 ->  | C33: =Hoja8!H32 ->  | D33: =Hoja8!I32 ->  | E33: =Hoja8!J32 ->  | F33: =Hoja8!K32 ->  | G33: =Hoja8!L32 -> 
B34: =Hoja8!G33 ->  | C34: =Hoja8!H33 ->  | D34: =Hoja8!I33 ->  | E34: =Hoja8!J33 ->  | F34: =Hoja8!K33 ->  | G34: =Hoja8!L33 -> 
B35: =Hoja8!G34 ->  | C35: =Hoja8!H34 ->  | D35: =Hoja8!I34 ->  | E35: =Hoja8!J34 ->  | F35: =Hoja8!K34 ->  | G35: =Hoja8!L34 -> 
B36: =Hoja8!G35 ->  | C36: =Hoja8!H35 ->  | D36: =Hoja8!I35 ->  | E36: =Hoja8!J35 ->  | F36: =Hoja8!K35 ->  | G36: =Hoja8!L35 -> 
B37: =Hoja8!G36 ->  | C37: =Hoja8!H36 ->  | D37: =Hoja8!I36 ->  | E37: =Hoja8!J36 ->  | F37: =Hoja8!K36 ->  | G37: =Hoja8!L36 -> 
B38: =Hoja8!G37 ->  | C38: =Hoja8!H37 ->  | D38: =Hoja8!I37 ->  | E38: =Hoja8!J37 ->  | F38: =Hoja8!K37 ->  | G38: =Hoja8!L37 -> 
B39: =Hoja8!G38 ->  | C39: =Hoja8!H38 ->  | D39: =Hoja8!I38 ->  | E39: =Hoja8!J38 ->  | F39: =Hoja8!K38 ->  | G39: =Hoja8!L38 -> 
B40: =Hoja8!G39 ->  | C40: =Hoja8!H39 ->  | D40: =Hoja8!I39 ->  | E40: =Hoja8!J39 ->  | F40: =Hoja8!K39 ->  | G40: =Hoja8!L39 -> 
B41: =Hoja8!G40 ->  | C41: =Hoja8!H40 ->  | D41: =Hoja8!I40 ->  | E41: =Hoja8!J40 ->  | F41: =Hoja8!K40 ->  | G41: =Hoja8!L40 -> 
B42: =Hoja8!G41 ->  | C42: =Hoja8!H41 ->  | D42: =Hoja8!I41 ->  | E42: =Hoja8!J41 ->  | F42: =Hoja8!K41 ->  | G42: =Hoja8!L41 -> 
B43: =Hoja8!G42 ->  | C43: =Hoja8!H42 ->  | D43: =Hoja8!I42 ->  | E43: =Hoja8!J42 ->  | F43: =Hoja8!K42 ->  | G43: =Hoja8!L42 -> 
B44: =Hoja8!G43 ->  | C44: =Hoja8!H43 ->  | D44: =Hoja8!I43 ->  | E44: =Hoja8!J43 ->  | F44: =Hoja8!K43 ->  | G44: =Hoja8!L43 -> 
B45: =Hoja8!G44 ->  | C45: =Hoja8!H44 ->  | D45: =Hoja8!I44 ->  | E45: =Hoja8!J44 ->  | F45: =Hoja8!K44 ->  | G45: =Hoja8!L44 -> 
B46: =Hoja8!G45 ->  | C46: =Hoja8!H45 ->  | D46: =Hoja8!I45 ->  | E46: =Hoja8!J45 ->  | F46: =Hoja8!K45 ->  | G46: =Hoja8!L45 -> 
B47: =Hoja8!G46 ->  | C47: =Hoja8!H46 ->  | D47: =Hoja8!I46 ->  | E47: =Hoja8!J46 ->  | F47: =Hoja8!K46 ->  | G47: =Hoja8!L46 -> 
B48: =Hoja8!G47 ->  | C48: =Hoja8!H47 ->  | D48: =Hoja8!I47 ->  | E48: =Hoja8!J47 ->  | F48: =Hoja8!K47 ->  | G48: =Hoja8!L47 -> 
B49: =Hoja8!G48 ->  | C49: =Hoja8!H48 ->  | D49: =Hoja8!I48 ->  | E49: =Hoja8!J48 ->  | F49: =Hoja8!K48 ->  | G49: =Hoja8!L48 -> 
B50: =Hoja8!G49 ->  | C50: =Hoja8!H49 ->  | D50: =Hoja8!I49 ->  | E50: =Hoja8!J49 ->  | F50: =Hoja8!K49 ->  | G50: =Hoja8!L49 -> 
B51: =Hoja8!G50 ->  | C51: =Hoja8!H50 ->  | D51: =Hoja8!I50 ->  | E51: =Hoja8!J50 ->  | F51: =Hoja8!K50 ->  | G51: =Hoja8!L50 -> 
B52: =Hoja8!G51 ->  | C52: =Hoja8!H51 ->  | D52: =Hoja8!I51 ->  | E52: =Hoja8!J51 ->  | F52: =Hoja8!K51 ->  | G52: =Hoja8!L51 -> 
B53: =Hoja8!G52 ->  | C53: =Hoja8!H52 ->  | D53: =Hoja8!I52 ->  | E53: =Hoja8!J52 ->  | F53: =Hoja8!K52 ->  | G53: =Hoja8!L52 -> 
B54: =Hoja8!G53 ->  | C54: =Hoja8!H53 ->  | D54: =Hoja8!I53 ->  | E54: =Hoja8!J53 ->  | F54: =Hoja8!K53 ->  | G54: =Hoja8!L53 -> 
B55: =Hoja8!G54 ->  | C55: =Hoja8!H54 ->  | D55: =Hoja8!I54 ->  | E55: =Hoja8!J54 ->  | F55: =Hoja8!K54 ->  | G55: =Hoja8!L54 -> 
B56: =Hoja8!G55 ->  | C56: =Hoja8!H55 ->  | D56: =Hoja8!I55 ->  | E56: =Hoja8!J55 ->  | F56: =Hoja8!K55 ->  | G56: =Hoja8!L55 -> 
B57: =Hoja8!G56 ->  | C57: =Hoja8!H56 ->  | D57: =Hoja8!I56 ->  | E57: =Hoja8!J56 ->  | F57: =Hoja8!K56 ->  | G57: =Hoja8!L56 -> 
B58: =Hoja8!G57 ->  | C58: =Hoja8!H57 ->  | D58: =Hoja8!I57 ->  | E58: =Hoja8!J57 ->  | F58: =Hoja8!K57 ->  | G58: =Hoja8!L57 -> 
B59: =Hoja8!G58 ->  | C59: =Hoja8!H58 ->  | D59: =Hoja8!I58 ->  | E59: =Hoja8!J58 ->  | F59: =Hoja8!K58 ->  | G59: =Hoja8!L58 -> 
B60: =Hoja8!G59 ->  | C60: =Hoja8!H59 ->  | D60: =Hoja8!I59 ->  | E60: =Hoja8!J59 ->  | F60: =Hoja8!K59 ->  | G60: =Hoja8!L59 -> 
B61: =Hoja8!G60 ->  | C61: =Hoja8!H60 ->  | D61: =Hoja8!I60 ->  | E61: =Hoja8!J60 ->  | F61: =Hoja8!K60 ->  | G61: =Hoja8!L60 -> 
B62: =Hoja8!G61 ->  | C62: =Hoja8!H61 ->  | D62: =Hoja8!I61 ->  | E62: =Hoja8!J61 ->  | F62: =Hoja8!K61 ->  | G62: =Hoja8!L61 -> 
B63: =Hoja8!G62 ->  | C63: =Hoja8!H62 ->  | D63: =Hoja8!I62 ->  | E63: =Hoja8!J62 ->  | F63: =Hoja8!K62 ->  | G63: =Hoja8!L62 -> 
B64: =Hoja8!G63 ->  | C64: =Hoja8!H63 ->  | D64: =Hoja8!I63 ->  | E64: =Hoja8!J63 ->  | F64: =Hoja8!K63 ->  | G64: =Hoja8!L63 -> 
B65: =Hoja8!G64 ->  | C65: =Hoja8!H64 ->  | D65: =Hoja8!I64 ->  | E65: =Hoja8!J64 ->  | F65: =Hoja8!K64 ->  | G65: =Hoja8!L64 -> 
B66: =Hoja8!G65 ->  | C66: =Hoja8!H65 ->  | D66: =Hoja8!I65 ->  | E66: =Hoja8!J65 ->  | F66: =Hoja8!K65 ->  | G66: =Hoja8!L65 -> 
B67: =Hoja8!G66 ->  | C67: =Hoja8!H66 ->  | D67: =Hoja8!I66 ->  | E67: =Hoja8!J66 ->  | F67: =Hoja8!K66 ->  | G67: =Hoja8!L66 -> 
B68: =Hoja8!G67 ->  | C68: =Hoja8!H67 ->  | D68: =Hoja8!I67 ->  | E68: =Hoja8!J67 ->  | F68: =Hoja8!K67 ->  | G68: =Hoja8!L67 -> 
B69: =Hoja8!G68 ->  | C69: =Hoja8!H68 ->  | D69: =Hoja8!I68 ->  | E69: =Hoja8!J68 ->  | F69: =Hoja8!K68 ->  | G69: =Hoja8!L68 -> 
B70: =Hoja8!G69 ->  | C70: =Hoja8!H69 ->  | D70: =Hoja8!I69 ->  | E70: =Hoja8!J69 ->  | F70: =Hoja8!K69 ->  | G70: =Hoja8!L69 -> 
B71: =Hoja8!G70 ->  | C71: =Hoja8!H70 ->  | D71: =Hoja8!I70 ->  | E71: =Hoja8!J70 ->  | F71: =Hoja8!K70 ->  | G71: =Hoja8!L70 -> 
B72: =Hoja8!G71 ->  | C72: =Hoja8!H71 ->  | D72: =Hoja8!I71 ->  | E72: =Hoja8!J71 ->  | F72: =Hoja8!K71 ->  | G72: =Hoja8!L71 -> 
B73: =Hoja8!G72 ->  | C73: =Hoja8!H72 ->  | D73: =Hoja8!I72 ->  | E73: =Hoja8!J72 ->  | F73: =Hoja8!K72 ->  | G73: =Hoja8!L72 -> 
B74: =Hoja8!G73 ->  | C74: =Hoja8!H73 ->  | D74: =Hoja8!I73 ->  | E74: =Hoja8!J73 ->  | F74: =Hoja8!K73 ->  | G74: =Hoja8!L73 -> 
B75: =Hoja8!G74 ->  | C75: =Hoja8!H74 ->  | D75: =Hoja8!I74 ->  | E75: =Hoja8!J74 ->  | F75: =Hoja8!K74 ->  | G75: =Hoja8!L74 -> 
B76: =Hoja8!G75 ->  | C76: =Hoja8!H75 ->  | D76: =Hoja8!I75 ->  | E76: =Hoja8!J75 ->  | F76: =Hoja8!K75 ->  | G76: =Hoja8!L75 -> 
B77: =Hoja8!G76 ->  | C77: =Hoja8!H76 ->  | D77: =Hoja8!I76 ->  | E77: =Hoja8!J76 ->  | F77: =Hoja8!K76 ->  | G77: =Hoja8!L76 -> 
B78: =Hoja8!G77 ->  | C78: =Hoja8!H77 ->  | D78: =Hoja8!I77 ->  | E78: =Hoja8!J77 ->  | F78: =Hoja8!K77 ->  | G78: =Hoja8!L77 -> 
B79: =Hoja8!G78 ->  | C79: =Hoja8!H78 ->  | D79: =Hoja8!I78 ->  | E79: =Hoja8!J78 ->  | F79: =Hoja8!K78 ->  | G79: =Hoja8!L78 -> 
B80: =Hoja8!G79 ->  | C80: =Hoja8!H79 ->  | D80: =Hoja8!I79 ->  | E80: =Hoja8!J79 ->  | F80: =Hoja8!K79 ->  | G80: =Hoja8!L79 -> 
B81: =Hoja8!G80 ->  | C81: =Hoja8!H80 ->  | D81: =Hoja8!I80 ->  | E81: =Hoja8!J80 ->  | F81: =Hoja8!K80 ->  | G81: =Hoja8!L80 -> 
B82: =Hoja8!G81 ->  | C82: =Hoja8!H81 ->  | D82: =Hoja8!I81 ->  | E82: =Hoja8!J81 ->  | F82: =Hoja8!K81 ->  | G82: =Hoja8!L81 -> 
B83: =Hoja8!G82 ->  | C83: =Hoja8!H82 ->  | D83: =Hoja8!I82 ->  | E83: =Hoja8!J82 ->  | F83: =Hoja8!K82 ->  | G83: =Hoja8!L82 -> 
B84: =Hoja8!G83 ->  | C84: =Hoja8!H83 ->  | D84: =Hoja8!I83 ->  | E84: =Hoja8!J83 ->  | F84: =Hoja8!K83 ->  | G84: =Hoja8!L83 -> 
B85: =Hoja8!G84 ->  | C85: =Hoja8!H84 ->  | D85: =Hoja8!I84 ->  | E85: =Hoja8!J84 ->  | F85: =Hoja8!K84 ->  | G85: =Hoja8!L84 -> 
B86: =Hoja8!G85 ->  | C86: =Hoja8!H85 ->  | D86: =Hoja8!I85 ->  | E86: =Hoja8!J85 ->  | F86: =Hoja8!K85 ->  | G86: =Hoja8!L85 -> 
B87: =Hoja8!G86 ->  | C87: =Hoja8!H86 ->  | D87: =Hoja8!I86 ->  | E87: =Hoja8!J86 ->  | F87: =Hoja8!K86 ->  | G87: =Hoja8!L86 -> 
B88: =Hoja8!G87 ->  | C88: =Hoja8!H87 ->  | D88: =Hoja8!I87 ->  | E88: =Hoja8!J87 ->  | F88: =Hoja8!K87 ->  | G88: =Hoja8!L87 -> 
B89: =Hoja8!G88 ->  | C89: =Hoja8!H88 ->  | D89: =Hoja8!I88 ->  | E89: =Hoja8!J88 ->  | F89: =Hoja8!K88 ->  | G89: =Hoja8!L88 -> 
B90: =Hoja8!G89 ->  | C90: =Hoja8!H89 ->  | D90: =Hoja8!I89 ->  | E90: =Hoja8!J89 ->  | F90: =Hoja8!K89 ->  | G90: =Hoja8!L89 -> 
B91: =Hoja8!G90 ->  | C91: =Hoja8!H90 ->  | D91: =Hoja8!I90 ->  | E91: =Hoja8!J90 ->  | F91: =Hoja8!K90 ->  | G91: =Hoja8!L90 -> 
B92: =Hoja8!G91 ->  | C92: =Hoja8!H91 ->  | D92: =Hoja8!I91 ->  | E92: =Hoja8!J91 ->  | F92: =Hoja8!K91 ->  | G92: =Hoja8!L91 -> 
B93: =Hoja8!G92 ->  | C93: =Hoja8!H92 ->  | D93: =Hoja8!I92 ->  | E93: =Hoja8!J92 ->  | F93: =Hoja8!K92 ->  | G93: =Hoja8!L92 -> 
B94: =Hoja8!G93 ->  | C94: =Hoja8!H93 ->  | D94: =Hoja8!I93 ->  | E94: =Hoja8!J93 ->  | F94: =Hoja8!K93 ->  | G94: =Hoja8!L93 -> 
B95: =Hoja8!G94 ->  | C95: =Hoja8!H94 ->  | D95: =Hoja8!I94 ->  | E95: =Hoja8!J94 ->  | F95: =Hoja8!K94 ->  | G95: =Hoja8!L94 -> 
B96: =Hoja8!G95 ->  | C96: =Hoja8!H95 ->  | D96: =Hoja8!I95 ->  | E96: =Hoja8!J95 ->  | F96: =Hoja8!K95 ->  | G96: =Hoja8!L95 -> 
B97: =Hoja8!G96 ->  | C97: =Hoja8!H96 ->  | D97: =Hoja8!I96 ->  | E97: =Hoja8!J96 ->  | F97: =Hoja8!K96 ->  | G97: =Hoja8!L96 -> 
B98: =Hoja8!G97 ->  | C98: =Hoja8!H97 ->  | D98: =Hoja8!I97 ->  | E98: =Hoja8!J97 ->  | F98: =Hoja8!K97 ->  | G98: =Hoja8!L97 -> 
B99: =Hoja8!G98 ->  | C99: =Hoja8!H98 ->  | D99: =Hoja8!I98 ->  | E99: =Hoja8!J98 ->  | F99: =Hoja8!K98 ->  | G99: =Hoja8!L98 -> 
B100: =Hoja8!G99 ->  | C100: =Hoja8!H99 ->  | D100: =Hoja8!I99 ->  | E100: =Hoja8!J99 ->  | F100: =Hoja8!K99 ->  | G100: =Hoja8!L99 -> 
B101: =Hoja8!G100 ->  | C101: =Hoja8!H100 ->  | D101: =Hoja8!I100 ->  | E101: =Hoja8!J100 ->  | F101: =Hoja8!K100 ->  | G101: =Hoja8!L100 -> 
B102: =Hoja8!G101 ->  | C102: =Hoja8!H101 ->  | D102: =Hoja8!I101 ->  | E102: =Hoja8!J101 ->  | F102: =Hoja8!K101 ->  | G102: =Hoja8!L101 -> 
B103: =Hoja8!G102 ->  | C103: =Hoja8!H102 ->  | D103: =Hoja8!I102 ->  | E103: =Hoja8!J102 ->  | F103: =Hoja8!K102 ->  | G103: =Hoja8!L102 -> 
B104: =Hoja8!G103 ->  | C104: =Hoja8!H103 ->  | D104: =Hoja8!I103 ->  | E104: =Hoja8!J103 ->  | F104: =Hoja8!K103 ->  | G104: =Hoja8!L103 -> 
B105: =Hoja8!G104 ->  | C105: =Hoja8!H104 ->  | D105: =Hoja8!I104 ->  | E105: =Hoja8!J104 ->  | F105: =Hoja8!K104 ->  | G105: =Hoja8!L104 -> 
B106: =Hoja8!G105 ->  | C106: =Hoja8!H105 ->  | D106: =Hoja8!I105 ->  | E106: =Hoja8!J105 ->  | F106: =Hoja8!K105 ->  | G106: =Hoja8!L105 -> 
B107: =Hoja8!G106 ->  | C107: =Hoja8!H106 ->  | D107: =Hoja8!I106 ->  | E107: =Hoja8!J106 ->  | F107: =Hoja8!K106 ->  | G107: =Hoja8!L106 -> 
B108: =Hoja8!G107 ->  | C108: =Hoja8!H107 ->  | D108: =Hoja8!I107 ->  | E108: =Hoja8!J107 ->  | F108: =Hoja8!K107 ->  | G108: =Hoja8!L107 -> 
B109: =Hoja8!G108 ->  | C109: =Hoja8!H108 ->  | D109: =Hoja8!I108 ->  | E109: =Hoja8!J108 ->  | F109: =Hoja8!K108 ->  | G109: =Hoja8!L108 -> 
B110: =Hoja8!G109 ->  | C110: =Hoja8!H109 ->  | D110: =Hoja8!I109 ->  | E110: =Hoja8!J109 ->  | F110: =Hoja8!K109 ->  | G110: =Hoja8!L109 -> 
B111: =Hoja8!G110 ->  | C111: =Hoja8!H110 ->  | D111: =Hoja8!I110 ->  | E111: =Hoja8!J110 ->  | F111: =Hoja8!K110 ->  | G111: =Hoja8!L110 -> 
B112: =Hoja8!G111 ->  | C112: =Hoja8!H111 ->  | D112: =Hoja8!I111 ->  | E112: =Hoja8!J111 ->  | F112: =Hoja8!K111 ->  | G112: =Hoja8!L111 -> 
B113: =Hoja8!G112 ->  | C113: =Hoja8!H112 ->  | D113: =Hoja8!I112 ->  | E113: =Hoja8!J112 ->  | F113: =Hoja8!K112 ->  | G113: =Hoja8!L112 -> 
B114: =Hoja8!G113 ->  | C114: =Hoja8!H113 ->  | D114: =Hoja8!I113 ->  | E114: =Hoja8!J113 ->  | F114: =Hoja8!K113 ->  | G114: =Hoja8!L113 -> 
B115: =Hoja8!G114 ->  | C115: =Hoja8!H114 ->  | D115: =Hoja8!I114 ->  | E115: =Hoja8!J114 ->  | F115: =Hoja8!K114 ->  | G115: =Hoja8!L114 -> 
B116: =Hoja8!G115 ->  | C116: =Hoja8!H115 ->  | D116: =Hoja8!I115 ->  | E116: =Hoja8!J115 ->  | F116: =Hoja8!K115 ->  | G116: =Hoja8!L115 -> 
B117: =Hoja8!G116 ->  | C117: =Hoja8!H116 ->  | D117: =Hoja8!I116 ->  | E117: =Hoja8!J116 ->  | F117: =Hoja8!K116 ->  | G117: =Hoja8!L116 -> 
B118: =Hoja8!G117 ->  | C118: =Hoja8!H117 ->  | D118: =Hoja8!I117 ->  | E118: =Hoja8!J117 ->  | F118: =Hoja8!K117 ->  | G118: =Hoja8!L117 -> 
B119: =Hoja8!G118 ->  | C119: =Hoja8!H118 ->  | D119: =Hoja8!I118 ->  | E119: =Hoja8!J118 ->  | F119: =Hoja8!K118 ->  | G119: =Hoja8!L118 -> 
B120: =Hoja8!G119 ->  | C120: =Hoja8!H119 ->  | D120: =Hoja8!I119 ->  | E120: =Hoja8!J119 ->  | F120: =Hoja8!K119 ->  | G120: =Hoja8!L119 -> 
B121: =Hoja8!G120 ->  | C121: =Hoja8!H120 ->  | D121: =Hoja8!I120 ->  | E121: =Hoja8!J120 ->  | F121: =Hoja8!K120 ->  | G121: =Hoja8!L120 -> 
B122: =Hoja8!G121 ->  | C122: =Hoja8!H121 ->  | D122: =Hoja8!I121 ->  | E122: =Hoja8!J121 ->  | F122: =Hoja8!K121 ->  | G122: =Hoja8!L121 -> 
B123: =Hoja8!G122 ->  | C123: =Hoja8!H122 ->  | D123: =Hoja8!I122 ->  | E123: =Hoja8!J122 ->  | F123: =Hoja8!K122 ->  | G123: =Hoja8!L122 -> 
B124: =Hoja8!G123 ->  | C124: =Hoja8!H123 ->  | D124: =Hoja8!I123 ->  | E124: =Hoja8!J123 ->  | F124: =Hoja8!K123 ->  | G124: =Hoja8!L123 -> 
B125: =Hoja8!G124 ->  | C125: =Hoja8!H124 ->  | D125: =Hoja8!I124 ->  | E125: =Hoja8!J124 ->  | F125: =Hoja8!K124 ->  | G125: =Hoja8!L124 -> 
B126: =Hoja8!G125 ->  | C126: =Hoja8!H125 ->  | D126: =Hoja8!I125 ->  | E126: =Hoja8!J125 ->  | F126: =Hoja8!K125 ->  | G126: =Hoja8!L125 -> 
B127: =Hoja8!G126 ->  | C127: =Hoja8!H126 ->  | D127: =Hoja8!I126 ->  | E127: =Hoja8!J126 ->  | F127: =Hoja8!K126 ->  | G127: =Hoja8!L126 -> 
B128: =Hoja8!G127 ->  | C128: =Hoja8!H127 ->  | D128: =Hoja8!I127 ->  | E128: =Hoja8!J127 ->  | F128: =Hoja8!K127 ->  | G128: =Hoja8!L127 -> 
B129: =Hoja8!G128 ->  | C129: =Hoja8!H128 ->  | D129: =Hoja8!I128 ->  | E129: =Hoja8!J128 ->  | F129: =Hoja8!K128 ->  | G129: =Hoja8!L128 -> 
B130: =Hoja8!G129 ->  | C130: =Hoja8!H129 ->  | D130: =Hoja8!I129 ->  | E130: =Hoja8!J129 ->  | F130: =Hoja8!K129 ->  | G130: =Hoja8!L129 -> 
B131: =Hoja8!G130 ->  | C131: =Hoja8!H130 ->  | D131: =Hoja8!I130 ->  | E131: =Hoja8!J130 ->  | F131: =Hoja8!K130 ->  | G131: =Hoja8!L130 -> 
B132: =Hoja8!G131 ->  | C132: =Hoja8!H131 ->  | D132: =Hoja8!I131 ->  | E132: =Hoja8!J131 ->  | F132: =Hoja8!K131 ->  | G132: =Hoja8!L131 -> 
B133: =Hoja8!G132 ->  | C133: =Hoja8!H132 ->  | D133: =Hoja8!I132 ->  | E133: =Hoja8!J132 ->  | F133: =Hoja8!K132 ->  | G133: =Hoja8!L132 -> 
B134: =Hoja8!G133 ->  | C134: =Hoja8!H133 ->  | D134: =Hoja8!I133 ->  | E134: =Hoja8!J133 ->  | F134: =Hoja8!K133 ->  | G134: =Hoja8!L133 -> 
B135: =Hoja8!G134 ->  | C135: =Hoja8!H134 ->  | D135: =Hoja8!I134 ->  | E135: =Hoja8!J134 ->  | F135: =Hoja8!K134 ->  | G135: =Hoja8!L134 -> 
B136: =Hoja8!G135 ->  | C136: =Hoja8!H135 ->  | D136: =Hoja8!I135 ->  | E136: =Hoja8!J135 ->  | F136: =Hoja8!K135 ->  | G136: =Hoja8!L135 -> 
B137: =Hoja8!G136 ->  | C137: =Hoja8!H136 ->  | D137: =Hoja8!I136 ->  | E137: =Hoja8!J136 ->  | F137: =Hoja8!K136 ->  | G137: =Hoja8!L136 -> 
B138: =Hoja8!G137 ->  | C138: =Hoja8!H137 ->  | D138: =Hoja8!I137 ->  | E138: =Hoja8!J137 ->  | F138: =Hoja8!K137 ->  | G138: =Hoja8!L137 -> 
B139: =Hoja8!G138 ->  | C139: =Hoja8!H138 ->  | D139: =Hoja8!I138 ->  | E139: =Hoja8!J138 ->  | F139: =Hoja8!K138 ->  | G139: =Hoja8!L138 -> 
B140: =Hoja8!G139 ->  | C140: =Hoja8!H139 ->  | D140: =Hoja8!I139 ->  | E140: =Hoja8!J139 ->  | F140: =Hoja8!K139 ->  | G140: =Hoja8!L139 -> 
B141: =Hoja8!G140 ->  | C141: =Hoja8!H140 ->  | D141: =Hoja8!I140 ->  | E141: =Hoja8!J140 ->  | F141: =Hoja8!K140 ->  | G141: =Hoja8!L140 -> 
B142: =Hoja8!G141 ->  | C142: =Hoja8!H141 ->  | D142: =Hoja8!I141 ->  | E142: =Hoja8!J141 ->  | F142: =Hoja8!K141 ->  | G142: =Hoja8!L141 -> 
B143: =Hoja8!G142 ->  | C143: =Hoja8!H142 ->  | D143: =Hoja8!I142 ->  | E143: =Hoja8!J142 ->  | F143: =Hoja8!K142 ->  | G143: =Hoja8!L142 -> 
B144: =Hoja8!G143 ->  | C144: =Hoja8!H143 ->  | D144: =Hoja8!I143 ->  | E144: =Hoja8!J143 ->  | F144: =Hoja8!K143 ->  | G144: =Hoja8!L143 -> 
B145: =Hoja8!G144 ->  | C145: =Hoja8!H144 ->  | D145: =Hoja8!I144 ->  | E145: =Hoja8!J144 ->  | F145: =Hoja8!K144 ->  | G145: =Hoja8!L144 -> 
B146: =Hoja8!G145 ->  | C146: =Hoja8!H145 ->  | D146: =Hoja8!I145 ->  | E146: =Hoja8!J145 ->  | F146: =Hoja8!K145 ->  | G146: =Hoja8!L145 -> 
B147: =Hoja8!G146 ->  | C147: =Hoja8!H146 ->  | D147: =Hoja8!I146 ->  | E147: =Hoja8!J146 ->  | F147: =Hoja8!K146 ->  | G147: =Hoja8!L146 -> 
B148: =Hoja8!G147 ->  | C148: =Hoja8!H147 ->  | D148: =Hoja8!I147 ->  | E148: =Hoja8!J147 ->  | F148: =Hoja8!K147 ->  | G148: =Hoja8!L147 -> 
B149: =Hoja8!G148 ->  | C149: =Hoja8!H148 ->  | D149: =Hoja8!I148 ->  | E149: =Hoja8!J148 ->  | F149: =Hoja8!K148 ->  | G149: =Hoja8!L148 -> 
B150: =Hoja8!G149 ->  | C150: =Hoja8!H149 ->  | D150: =Hoja8!I149 ->  | E150: =Hoja8!J149 ->  | F150: =Hoja8!K149 ->  | G150: =Hoja8!L149 -> 
B151: =Hoja8!G150 ->  | C151: =Hoja8!H150 ->  | D151: =Hoja8!I150 ->  | E151: =Hoja8!J150 ->  | F151: =Hoja8!K150 ->  | G151: =Hoja8!L150 -> 
B152: =Hoja8!G151 ->  | C152: =Hoja8!H151 ->  | D152: =Hoja8!I151 ->  | E152: =Hoja8!J151 ->  | F152: =Hoja8!K151 ->  | G152: =Hoja8!L151 -> 
B153: =Hoja8!G152 ->  | C153: =Hoja8!H152 ->  | D153: =Hoja8!I152 ->  | E153: =Hoja8!J152 ->  | F153: =Hoja8!K152 ->  | G153: =Hoja8!L152 -> 
B154: =Hoja8!G153 ->  | C154: =Hoja8!H153 ->  | D154: =Hoja8!I153 ->  | E154: =Hoja8!J153 ->  | F154: =Hoja8!K153 ->  | G154: =Hoja8!L153 -> 
B155: =Hoja8!G154 ->  | C155: =Hoja8!H154 ->  | D155: =Hoja8!I154 ->  | E155: =Hoja8!J154 ->  | F155: =Hoja8!K154 ->  | G155: =Hoja8!L154 -> 
B156: =Hoja8!G155 ->  | C156: =Hoja8!H155 ->  | D156: =Hoja8!I155 ->  | E156: =Hoja8!J155 ->  | F156: =Hoja8!K155 ->  | G156: =Hoja8!L155 -> 
B157: =Hoja8!G156 ->  | C157: =Hoja8!H156 ->  | D157: =Hoja8!I156 ->  | E157: =Hoja8!J156 ->  | F157: =Hoja8!K156 ->  | G157: =Hoja8!L156 -> 
B158: =Hoja8!G157 ->  | C158: =Hoja8!H157 ->  | D158: =Hoja8!I157 ->  | E158: =Hoja8!J157 ->  | F158: =Hoja8!K157 ->  | G158: =Hoja8!L157 -> 
B159: =Hoja8!G158 ->  | C159: =Hoja8!H158 ->  | D159: =Hoja8!I158 ->  | E159: =Hoja8!J158 ->  | F159: =Hoja8!K158 ->  | G159: =Hoja8!L158 -> 
B160: =Hoja8!G159 ->  | C160: =Hoja8!H159 ->  | D160: =Hoja8!I159 ->  | E160: =Hoja8!J159 ->  | F160: =Hoja8!K159 ->  | G160: =Hoja8!L159 -> 
B161: =Hoja8!G160 ->  | C161: =Hoja8!H160 ->  | D161: =Hoja8!I160 ->  | E161: =Hoja8!J160 ->  | F161: =Hoja8!K160 ->  | G161: =Hoja8!L160 -> 
B162: =Hoja8!G161 ->  | C162: =Hoja8!H161 ->  | D162: =Hoja8!I161 ->  | E162: =Hoja8!J161 ->  | F162: =Hoja8!K161 ->  | G162: =Hoja8!L161 -> 
B163: =Hoja8!G162 ->  | C163: =Hoja8!H162 ->  | D163: =Hoja8!I162 ->  | E163: =Hoja8!J162 ->  | F163: =Hoja8!K162 ->  | G163: =Hoja8!L162 -> 
B164: =Hoja8!G163 ->  | C164: =Hoja8!H163 ->  | D164: =Hoja8!I163 ->  | E164: =Hoja8!J163 ->  | F164: =Hoja8!K163 ->  | G164: =Hoja8!L163 -> 
B165: =Hoja8!G164 ->  | C165: =Hoja8!H164 ->  | D165: =Hoja8!I164 ->  | E165: =Hoja8!J164 ->  | F165: =Hoja8!K164 ->  | G165: =Hoja8!L164 -> 
B166: =Hoja8!G165 ->  | C166: =Hoja8!H165 ->  | D166: =Hoja8!I165 ->  | E166: =Hoja8!J165 ->  | F166: =Hoja8!K165 ->  | G166: =Hoja8!L165 -> 
B167: =Hoja8!G166 ->  | C167: =Hoja8!H166 ->  | D167: =Hoja8!I166 ->  | E167: =Hoja8!J166 ->  | F167: =Hoja8!K166 ->  | G167: =Hoja8!L166 -> 
B168: =Hoja8!G167 ->  | C168: =Hoja8!H167 ->  | D168: =Hoja8!I167 ->  | E168: =Hoja8!J167 ->  | F168: =Hoja8!K167 ->  | G168: =Hoja8!L167 -> 
B169: =Hoja8!G168 ->  | C169: =Hoja8!H168 ->  | D169: =Hoja8!I168 ->  | E169: =Hoja8!J168 ->  | F169: =Hoja8!K168 ->  | G169: =Hoja8!L168 -> 
B170: =Hoja8!G169 ->  | C170: =Hoja8!H169 ->  | D170: =Hoja8!I169 ->  | E170: =Hoja8!J169 ->  | F170: =Hoja8!K169 ->  | G170: =Hoja8!L169 -> 
B171: =Hoja8!G170 ->  | C171: =Hoja8!H170 ->  | D171: =Hoja8!I170 ->  | E171: =Hoja8!J170 ->  | F171: =Hoja8!K170 ->  | G171: =Hoja8!L170 -> 
B172: =Hoja8!G171 ->  | C172: =Hoja8!H171 ->  | D172: =Hoja8!I171 ->  | E172: =Hoja8!J171 ->  | F172: =Hoja8!K171 ->  | G172: =Hoja8!L171 -> 
B173: =Hoja8!G172 ->  | C173: =Hoja8!H172 ->  | D173: =Hoja8!I172 ->  | E173: =Hoja8!J172 ->  | F173: =Hoja8!K172 ->  | G173: =Hoja8!L172 -> 
B174: =Hoja8!G173 ->  | C174: =Hoja8!H173 ->  | D174: =Hoja8!I173 ->  | E174: =Hoja8!J173 ->  | F174: =Hoja8!K173 ->  | G174: =Hoja8!L173 -> 
B175: =Hoja8!G174 ->  | C175: =Hoja8!H174 ->  | D175: =Hoja8!I174 ->  | E175: =Hoja8!J174 ->  | F175: =Hoja8!K174 ->  | G175: =Hoja8!L174 -> 
B176: =Hoja8!G175 ->  | C176: =Hoja8!H175 ->  | D176: =Hoja8!I175 ->  | E176: =Hoja8!J175 ->  | F176: =Hoja8!K175 ->  | G176: =Hoja8!L175 -> 
B177: =Hoja8!G176 ->  | C177: =Hoja8!H176 ->  | D177: =Hoja8!I176 ->  | E177: =Hoja8!J176 ->  | F177: =Hoja8!K176 ->  | G177: =Hoja8!L176 -> 
B178: =Hoja8!G177 ->  | C178: =Hoja8!H177 ->  | D178: =Hoja8!I177 ->  | E178: =Hoja8!J177 ->  | F178: =Hoja8!K177 ->  | G178: =Hoja8!L177 -> 
B179: =Hoja8!G178 ->  | C179: =Hoja8!H178 ->  | D179: =Hoja8!I178 ->  | E179: =Hoja8!J178 ->  | F179: =Hoja8!K178 ->  | G179: =Hoja8!L178 -> 
B180: =Hoja8!G179 ->  | C180: =Hoja8!H179 ->  | D180: =Hoja8!I179 ->  | E180: =Hoja8!J179 ->  | F180: =Hoja8!K179 ->  | G180: =Hoja8!L179 -> 
B181: =Hoja8!G180 ->  | C181: =Hoja8!H180 ->  | D181: =Hoja8!I180 ->  | E181: =Hoja8!J180 ->  | F181: =Hoja8!K180 ->  | G181: =Hoja8!L180 -> 
B182: =Hoja8!G181 ->  | C182: =Hoja8!H181 ->  | D182: =Hoja8!I181 ->  | E182: =Hoja8!J181 ->  | F182: =Hoja8!K181 ->  | G182: =Hoja8!L181 -> 
B183: =Hoja8!G182 ->  | C183: =Hoja8!H182 ->  | D183: =Hoja8!I182 ->  | E183: =Hoja8!J182 ->  | F183: =Hoja8!K182 ->  | G183: =Hoja8!L182 -> 
B184: =Hoja8!G183 ->  | C184: =Hoja8!H183 ->  | D184: =Hoja8!I183 ->  | E184: =Hoja8!J183 ->  | F184: =Hoja8!K183 ->  | G184: =Hoja8!L183 -> 
B185: =Hoja8!G184 ->  | C185: =Hoja8!H184 ->  | D185: =Hoja8!I184 ->  | E185: =Hoja8!J184 ->  | F185: =Hoja8!K184 ->  | G185: =Hoja8!L184 -> 
B186: =Hoja8!G185 ->  | C186: =Hoja8!H185 ->  | D186: =Hoja8!I185 ->  | E186: =Hoja8!J185 ->  | F186: =Hoja8!K185 ->  | G186: =Hoja8!L185 -> 
B187: =Hoja8!G186 ->  | C187: =Hoja8!H186 ->  | D187: =Hoja8!I186 ->  | E187: =Hoja8!J186 ->  | F187: =Hoja8!K186 ->  | G187: =Hoja8!L186 -> 
B188: =Hoja8!G187 ->  | C188: =Hoja8!H187 ->  | D188: =Hoja8!I187 ->  | E188: =Hoja8!J187 ->  | F188: =Hoja8!K187 ->  | G188: =Hoja8!L187 -> 
B189: =Hoja8!G188 ->  | C189: =Hoja8!H188 ->  | D189: =Hoja8!I188 ->  | E189: =Hoja8!J188 ->  | F189: =Hoja8!K188 ->  | G189: =Hoja8!L188 -> 
B190: =Hoja8!G189 ->  | C190: =Hoja8!H189 ->  | D190: =Hoja8!I189 ->  | E190: =Hoja8!J189 ->  | F190: =Hoja8!K189 ->  | G190: =Hoja8!L189 -> 
B191: =Hoja8!G190 ->  | C191: =Hoja8!H190 ->  | D191: =Hoja8!I190 ->  | E191: =Hoja8!J190 ->  | F191: =Hoja8!K190 ->  | G191: =Hoja8!L190 -> 
B192: =Hoja8!G191 ->  | C192: =Hoja8!H191 ->  | D192: =Hoja8!I191 ->  | E192: =Hoja8!J191 ->  | F192: =Hoja8!K191 ->  | G192: =Hoja8!L191 -> 
B193: =Hoja8!G192 ->  | C193: =Hoja8!H192 ->  | D193: =Hoja8!I192 ->  | E193: =Hoja8!J192 ->  | F193: =Hoja8!K192 ->  | G193: =Hoja8!L192 -> 
B194: =Hoja8!G193 ->  | C194: =Hoja8!H193 ->  | D194: =Hoja8!I193 ->  | E194: =Hoja8!J193 ->  | F194: =Hoja8!K193 ->  | G194: =Hoja8!L193 -> 
B195: =Hoja8!G194 ->  | C195: =Hoja8!H194 ->  | D195: =Hoja8!I194 ->  | E195: =Hoja8!J194 ->  | F195: =Hoja8!K194 ->  | G195: =Hoja8!L194 -> 
B196: =Hoja8!G195 ->  | C196: =Hoja8!H195 ->  | D196: =Hoja8!I195 ->  | E196: =Hoja8!J195 ->  | F196: =Hoja8!K195 ->  | G196: =Hoja8!L195 -> 
B197: =Hoja8!G196 ->  | C197: =Hoja8!H196 ->  | D197: =Hoja8!I196 ->  | E197: =Hoja8!J196 ->  | F197: =Hoja8!K196 ->  | G197: =Hoja8!L196 -> 
B198: =Hoja8!G197 ->  | C198: =Hoja8!H197 ->  | D198: =Hoja8!I197 ->  | E198: =Hoja8!J197 ->  | F198: =Hoja8!K197 ->  | G198: =Hoja8!L197 -> 
B199: =Hoja8!G198 ->  | C199: =Hoja8!H198 ->  | D199: =Hoja8!I198 ->  | E199: =Hoja8!J198 ->  | F199: =Hoja8!K198 ->  | G199: =Hoja8!L198 -> 
B200: =Hoja8!G199 ->  | C200: =Hoja8!H199 ->  | D200: =Hoja8!I199 ->  | E200: =Hoja8!J199 ->  | F200: =Hoja8!K199 ->  | G200: =Hoja8!L199 -> 
B201: =Hoja8!G200 ->  | C201: =Hoja8!H200 ->  | D201: =Hoja8!I200 ->  | E201: =Hoja8!J200 ->  | F201: =Hoja8!K200 ->  | G201: =Hoja8!L200 -> 
... 299 more rows

Sheet Correlación
B3: Coeficiente de correlación
F5: =Hoja8!I12 -> 166.8
F6: =Hoja8!I13 -> 187.25
B10: r = | C10: =Hoja8!K12 -> 0.89
B14: Coeficiente de determinación
F17: Ir a Cálculo Ecuación
C18: =Hoja8!K14 -> 0.7921 | F18: Inicio

Sheet Contingencia2x2
B3: Partido
B4: Voto | C4: Liberal | D4: Conservador | E4: Total
B5: Sí | C5: 174 | D5: 427 | E5: =Hoja26!D2 -> 601
B6: No | C6: 128 | D6: 271 | E6: =Hoja26!D3 -> 399
B7: Total | C7: =Hoja26!B4 -> 302 | D7: =Hoja26!C4 -> 698 | E7: =Hoja26!D4 -> 1000
B9: Frecuencias esperadas
B10: Partido
B11: Voto | C11: Liberal | D11: Conservador | E11: Total
B12: Sí | C12: =Hoja26!B6 -> 181.502 | D12: =Hoja26!C6 -> 419.498 | E12: =Hoja26!D6 -> 601
B13: No | C13: =Hoja26!B7 -> 120.498 | D13: =Hoja26!C7 -> 278.502 | E13: =Hoja26!D7 -> 399
B14: Total | C14: =Hoja26!B8 -> 302 | D14: =Hoja26!C8 -> 698 | E14: =Hoja26!D8 -> 1000
D17: =Hoja26!F12 -> 1.1133 | F17: Inicio

Sheet Spearman1
A1: ¿No. elementos? | B1: 12
A3: Coeficiente de correlación de Spearman
A5: Nº | B5: X1 | C5: Y1
A6: 1 | B6: 86 | C6: 88
A7: 2 | B7: 71 | C7: 77
A8: 3 | B8: 77 | C8: 76 | E8: Ir a Cálculos
A9: 4 | B9: 68 | C9: 64 | E9: Inicio
A10: 5 | B10: 91 | C10: 96
A11: 6 | B11: 72 | C11: 72
A12: 7 | B12: 77 | C12: 65
A13: 8 | B13: 91 | C13: 90
A14: 9 | B14: 70 | C14: 65
A15: 10 | B15: 71 | C15: 80
A16: 11 | B16: 88 | C16: 81
A17: 12 | B17: 87 | C17: 72

Sheet Spearman2
A3: Coeficiente de correlación de Spearman
A5: No. | B5: X1 | C5: Y1 | D5: Orden X1 | E5: Orden Y1 | F5: Diferencia | G5: Diferencia ^ 2
A6: 1 | B6: 68 | C6: 64 | D6: 1 | E6: 1 | F6: 0 | G6: 0
A7: 2 | B7: 70 | C7: 65 | D7: 2 | E7: 2.5 | F7: 0.5 | G7: 0.25
A8: 3 | B8: 71 | C8: 77 | D8: 3.5 | E8: 7 | F8: 3.5 | G8: 12.25
A9: 4 | B9: 71 | C9: 80 | D9: 3.5 | E9: 8 | F9: 4.5 | G9: 20.25
A10: 5 | B10: 72 | C10: 72 | D10: 5 | E10: 4.5 | F10: 0.5 | G10: 0.25
A11: 6 | B11: 77 | C11: 76 | D11: 6.5 | E11: 6 | F11: 0.5 | G11: 0.25
A12: 7 | B12: 77 | C12: 65 | D12: 6.5 | E12: 2.5 | F12: 4 | G12: 16
A13: 8 | B13: 86 | C13: 88 | D13: 8 | E13: 10 | F13: 2 | G13: 4
A14: 9 | B14: 87 | C14: 72 | D14: 9 | E14: 4.5 | F14: 4.5 | G14: 20.25
A15: 10 | B15: 88 | C15: 81 | D15: 10 | E15: 9 | F15: 1 | G15: 1
A16: 11 | B16: 91 | C16: 96 | D16: 11.5 | E16: 12 | F16: 0.5 | G16: 0.25
A17: 12 | B17: 91 | C17: 90 | D17: 11.5 | E17: 11 | F17: 0.5 | G17: 0.25
H18: Ir a Spearman1
H19: Inicio
A27: P = | B27: 0,73776224

Sheet Spearman3 (hidden)

Sheet EjMuestra
A1: Tamaño de la muestra para estimar media en M.A.S. | M1: =C9/100 -> 0.95
J3: z^2 | K3: =C11^2 -> 3.841458821 | M3: =((1-M1)/2)+M1 -> 0.975
J4: s^2 | K4: =C12^2 -> 10000 | M4: =_xlfn.NORM.S.INV(M3) -> 1.959963985
A5: Población infinita | D5: =K6 -> 384.1458821 | J5: E^2 | K5: =C10^2 -> 100
K6: =(K3*K4)/K5 -> 384.1458821
C8: Valor
A9: Confianza | C9: 95
A10: Error | C10: 10
A11: Z | C11: =M4 -> 1.959963985
A12: Desviación estándar | C12: 100 | L12: =K5/K3 -> 26.03177716
L13: =K4/C19 -> 100
L14: =L12+L13 -> 126.0317772
A15: Población finita | D15: =L15 -> 79.34506856 | L15: =K4/L14 -> 79.34506856
A19: Valor N | C19: 100
D21: Inicio

Sheet Ej2
O1: =E4/100 -> 0.95
A2: Tamaño de la muestra para estimar proporción en M.A.S. | N2: C | O2: =((1-O1)/2)+O1 -> 0.975
B3: Datos de entrada | N3: Z | O3: =_xlfn.NORM.S.INV(O2) -> 1.959963985 | P3: =O3^2 -> 3.841458821
B4: Nivel de confianza | E4: 95 | N4: P | O4: =E6 -> 0.25
B5: Error de estimación | E5: 0.02 | N5: Q | O5: =1-O4 -> 0.75
B6: Proporción (P) | E6: 0.25 | N6: E | O6: =E5 -> 0.02 | P6: =O6^2 -> 0.0004
B7: Z | E7: =O3 -> 1.959963985 | N7: infinito | O7: =(P3*O4*O5)/P6 -> 1800.683822
B8: Q = (1 - P) | E8: =O5 -> 0.75 | N8: Finita | O8: =P3*O4*O5*E9 -> 1800.683822
B9: N | E9: 2500 | N9: n-1 | O9: =E9-1 -> 2499
N10: e(n-1) | O10: =P6*O9 -> 0.9996
B11: Población infinita | E11: =O7 -> 1800.683822 | N11: zpqq | O11: =(P3*O4*O5) -> 0.7202735289
B12: Población finita | E12: =O13 -> 1046.986184 | O12: =O10+O11 -> 1.719873529
O13: =O8/O12 -> 1046.986184
F15: Inicio

Sheet Ej3
A1: Para procesar la información, asigne valores en las celdas que contienen 0.
E2: Calificación
C3: 0 - 276 | D3: 277 - 350 | E3: 351 - 425 | F3: 426 - 500 | G3: Total
G4: No. | H4: %
B5: Privada | F5: 0 | G5: 0 | H5: =G5/G7 -> 
B6: Pública | F6: 0 | G6: =SUM(C6:F6) -> 0 | H6: =G6/G7 -> 
B7: Total | C7: =SUM(C5:C6) -> 0 | D7: 0 | E7: 0 | F7: 0 | G7: 0
B8: Porcentaje | C8: =C7/G7 ->  | D8: =D7/G7 ->  | E8: =E7/G7 ->  | F8: =F7/$G$7 ->  | M8: 0-276 | N8: 277-350 | O8: 351-425 | P8: 426-500 | Q8: total
L9: Privada | M9: =C5 -> 0 | N9: 0 | O9: 0 | P9: 0 | Q9: 0
L10: Pública | M10: 0 | N10: 0 | O10: 0 | P10: 0 | Q10: 0
L11: Total | M11: =SUM(M9:M10) -> 0 | N11: =SUM(N9:N10) -> 0 | O11: =SUM(O9:O10) -> 0 | P11: =SUM(P9:P10) -> 0 | Q11: =SUM(Q9:Q10) -> 0
C17: Privada | D17: =H5 -> 
C18: Pública | D18: =H6 -> 
J20: Inicio

Sheet Ej4
A1: Para procesar la información, asigne valores en las celdas de la columna "Valor".
B3: Item | C3: Valor
B4: 1 | G4: Resultados
B5: 2 | G5: Media | H5: =Hoja16!B1 -> 
B6: 3 | G6: Moda | H6: =Hoja16!B2 -> 
B7: 4 | G7: Mediana | H7: =Hoja16!B3 -> 
B8: 5 | G8: Desviación estándar | H8: =Hoja16!B4 -> 
B9: 6 | G9: Rango | H9: =Hoja16!B5 -> 0
B10: 7 | G10: Varianza de la muestra | H10: =Hoja16!B10 -> 
B11: 8 | G11: Mínimo | H11: =Hoja16!B7 -> 0
B12: 9 | G12: Máximo | H12: =Hoja16!B6 -> 0
B13: 10 | G13: Suma | H13: =Hoja16!B8 -> 0
B14: 11 | G14: Cuenta | H14: =Hoja16!B9 -> 0
B15: 12
B16: 13 | I16: Inicio
B17: 14
B18: 15
B19: 16
B20: 17
B21: 18
B22: 19
B23: 20
B24: 21
B25: 22
B26: 23
B27: 24
B28: 25
B29: 26
B30: 27
B31: 28
B32: 29
B33: 30

Sheet Ej5
P1: =(C5-C6)/C7 -> 
B2: Prueba Z | P2: =(D5-D6)/D7 -> 
C4: A | D4: B
B5: Xi
B7: S
B8: Z | C8: =P1 ->  | D8: =P2 -> 
A9: Para procesar la información, asigne valores en las celdas de las columnas A y B.
E10: Inicio

Sheet Ej6
B2: Prueba hipótesis | O2: S | P2: =E4/P4 -> 0.7071067812
B4: Desviación estándar | E4: 5 | P4: =SQRT(E5) -> 7.071067812
B5: Muestra | E5: 50
B6: Nivel de significancia | E6: 95 | O6: Z | P6: =(E7-E8)/P2 -> 2.828427125
B7: Tiempo promedio clientes | E7: 50
B8: Tiempo promedio | E8: 48
B9: Valor S | E9: =P2 -> 0.7071067812
B10: Valor Z | E10: =P6 -> 2.828427125
F12: Inicio

Sheet Ej61 (hidden)
P1: =AVERAGE(C5:C14) -> 124.1
B2: Prueba Hipótesis | H2: Prueba Hipótesis
B4: Item | C4: Valor | H4: Desviación Estándar
B5: 1 | C5: 122 | H5: Muestra
B6: 2 | C6: 121 | H6: Nivel de Significancia
B7: 3 | C7: 110 | H7: Tiempo Promedio Clientes
B8: 4 | C8: 130 | H8: Tiempo promedio
B9: 5 | C9: 131 | H9: Valor S | K9: =V2 -> 0
B10: 6 | C10: 127 | H10: Valor Z | K10: =V6 -> 0
B11: 7 | C11: 130 | L11: Anterior
B12: 8 | C12: 119 | L12: Inicio
B13: 9 | C13: 122
B14: 10 | C14: 129

Sheet Ej7
A1: Para procesar la información, asigne valores en las celdas vacías.
B2: Número de ítems
B4: Ítem | C4: Cantidad | D4: Descrip. | F4: Resultado
F5: Valor Ei | G5: =Hoja22!D1 -> 
F6: Chi cuadrado | G6: =Hoja22!J2 -> 
H7: Inicio

Sheet Ej8
B2: Número de ítems | D2: 5
B4: Ítem | C4: X | D4: Y | E4: X^2 | F4: XY | G4: Y^2 | I4: Resultados
B5: 1 | C5: 10 | D5: 25 | E5: =Hoja24!F3 -> 100 | F5: =Hoja24!G3 -> 250 | G5: =Hoja24!H3 -> 625 | I5: a = | J5: =Hoja24!M8 -> 25.51542598
B6: 2 | C6: 25 | D6: 28 | E6: =Hoja24!F4 -> 625 | F6: =Hoja24!G4 -> 700 | G6: =Hoja24!H4 -> 784 | I6: b = | J6: =Hoja24!M9 -> 0.3317294084
B7: 3 | C7: 18 | D7: 36 | E7: =Hoja24!F5 -> 324 | F7: =Hoja24!G5 -> 648 | G7: =Hoja24!H5 -> 1296
B8: 4 | C8: 43 | D8: 54 | E8: =Hoja24!F6 -> 1849 | F8: =Hoja24!G6 -> 2322 | G8: =Hoja24!H6 -> 2916
B9: 5 | C9: 56 | D9: 35 | E9: =Hoja24!F7 -> 3136 | F9: =Hoja24!G7 -> 1960 | G9: =Hoja24!H7 -> 1225 | I9: =Hoja24!L11 -> Y = 25.5 + 0.33x
E10: =Hoja24!F8 ->  | F10: =Hoja24!G8 ->  | G10: =Hoja24!H8 -> 
E11: =Hoja24!F9 ->  | F11: =Hoja24!G9 ->  | G11: =Hoja24!H9 ->  | I11: Coef. correlación | K11: =Hoja24!Q12 -> 0.5526390778
E12: =Hoja24!F10 ->  | F12: =Hoja24!G10 ->  | G12: =Hoja24!H10 ->  | I12: Coef. determinación | K12: =Hoja24!L13 -> 0.3025
E13: =Hoja24!F11 ->  | F13: =Hoja24!G11 ->  | G13: =Hoja24!H11 -> 
E14: =Hoja24!F12 ->  | F14: =Hoja24!G12 ->  | G14: =Hoja24!H12 ->  | K14: Inicio
E15: =Hoja24!F13 ->  | F15: =Hoja24!G13 ->  | G15: =Hoja24!H13 -> 
E16: =Hoja24!F14 ->  | F16: =Hoja24!G14 ->  | G16: =Hoja24!H14 -> 
E17: =Hoja24!F15 ->  | F17: =Hoja24!G15 ->  | G17: =Hoja24!H15 -> 
E18: =Hoja24!F16 ->  | F18: =Hoja24!G16 ->  | G18: =Hoja24!H16 -> 
E19: =Hoja24!F17 ->  | F19: =Hoja24!G17 ->  | G19: =Hoja24!H17 -> 
E20: =Hoja24!F18 ->  | F20: =Hoja24!G18 ->  | G20: =Hoja24!H18 -> 
E21: =Hoja24!F19 ->  | F21: =Hoja24!G19 ->  | G21: =Hoja24!H19 -> 
E22: =Hoja24!F20 ->  | F22: =Hoja24!G20 ->  | G22: =Hoja24!H20 -> 
E23: =Hoja24!F21 ->  | F23: =Hoja24!G21 ->  | G23: =Hoja24!H21 -> 
E24: =Hoja24!F22 ->  | F24: =Hoja24!G22 ->  | G24: =Hoja24!H22 -> 
E25: =Hoja24!F23 ->  | F25: =Hoja24!G23 ->  | G25: =Hoja24!H23 -> 
E26: =Hoja24!F24 ->  | F26: =Hoja24!G24 ->  | G26: =Hoja24!H24 -> 
E27: =Hoja24!F25 ->  | F27: =Hoja24!G25 ->  | G27: =Hoja24!H25 -> 
E28: =Hoja24!F26 ->  | F28: =Hoja24!G26 ->  | G28: =Hoja24!H26 -> 
E29: =Hoja24!F27 ->  | F29: =Hoja24!G27 ->  | G29: =Hoja24!H27 -> 
E30: =Hoja24!F28 ->  | F30: =Hoja24!G28 ->  | G30: =Hoja24!H28 -> 
E31: =Hoja24!F29 ->  | F31: =Hoja24!G29 ->  | G31: =Hoja24!H29 -> 
E32: =Hoja24!F30 ->  | F32: =Hoja24!G30 ->  | G32: =Hoja24!H30 -> 
E33: =Hoja24!F31 ->  | F33: =Hoja24!G31 ->  | G33: =Hoja24!H31 -> 
E34: =Hoja24!F32 ->  | F34: =Hoja24!G32 ->  | G34: =Hoja24!H32 -> 

Sheet Ej9
B2: Observados
B3: Partido
B4: Voto | C4: Liberal | D4: Conservador | E4: Total
B5: Sí | C5: 23 | D5: 60 | E5: ='Hoja26 (2)'!D2 -> 83
B6: No | C6: 43 | D6: 10 | E6: ='Hoja26 (2)'!D3 -> 53
B7: Total | C7: ='Hoja26 (2)'!B4 -> 66 | D7: ='Hoja26 (2)'!C4 -> 70 | E7: ='Hoja26 (2)'!D4 -> 136
B10: Esperados
B11: Partido
B12: Voto | C12: Liberal | D12: Conservador | E12: Total
B13: Sí | C13: ='Hoja26 (2)'!B6 -> 40.27941176 | D13: ='Hoja26 (2)'!C6 -> 42.72058824 | E13: ='Hoja26 (2)'!D6 -> 83
B14: No | C14: ='Hoja26 (2)'!B7 -> 25.72058824 | D14: ='Hoja26 (2)'!C7 -> 27.27941176 | E14: ='Hoja26 (2)'!D7 -> 53
B15: Total | C15: ='Hoja26 (2)'!B8 -> 66 | D15: ='Hoja26 (2)'!C8 -> 70 | E15: ='Hoja26 (2)'!D8 -> 136
G17: Inicio
D18: ='Hoja26 (2)'!F12 -> 36.9554

Sheet Hoja26 (2) (hidden)
B2: ='Ej9'!C5 -> 23 | C2: ='Ej9'!D5 -> 60 | D2: =SUM(B2:C2) -> 83
B3: ='Ej9'!C6 -> 43 | C3: ='Ej9'!D6 -> 10 | D3: =SUM(B3:C3) -> 53
B4: =SUM(B2:B3) -> 66 | C4: =SUM(C2:C3) -> 70 | D4: =SUM(D2:D3) -> 136
B6: =(D2*B4)/D4 -> 40.27941176 | C6: =(D2*C4)/D4 -> 42.72058824 | D6: =SUM(B6:C6) -> 83
B7: =(D3*B4)/D4 -> 25.72058824 | C7: =(D3*C4)/D4 -> 27.27941176 | D7: =SUM(B7:C7) -> 53
B8: =SUM(B6:B7) -> 66 | C8: =SUM(C6:C7) -> 70 | D8: =SUM(D6:D7) -> 136
B10: =((B2-B6)^2)/B6 -> 7.412672079 | C10: =((C2-C6)^2)/C6 -> 6.989090817 | D10: =B10+C10 -> 14.4017629
B11: =((B3-B7)^2)/B7 -> 11.6085242 | C11: =((C3-C7)^2)/C7 -> 10.94517996 | D11: =B11+C11 -> 22.55370416
B12: =SUM(B10:B11) -> 19.02119628 | C12: =SUM(C10:C11) -> 17.93427078 | D12: =SUM(D10:D11) -> 36.95546705 | E12: =ROUNDUP(D12,4) -> 36.9555 | F12: =ROUNDDOWN(D12,4) -> 36.9554

Sheet Hoja26 (hidden)
B2: =Contingencia2x2!C5 -> 174 | C2: =Contingencia2x2!D5 -> 427 | D2: =SUM(B2:C2) -> 601
B3: =Contingencia2x2!C6 -> 128 | C3: =Contingencia2x2!D6 -> 271 | D3: =SUM(B3:C3) -> 399
B4: =SUM(B2:B3) -> 302 | C4: =SUM(C2:C3) -> 698 | D4: =SUM(D2:D3) -> 1000
B6: =(D2*B4)/D4 -> 181.502 | C6: =(D2*C4)/D4 -> 419.498 | D6: =SUM(B6:C6) -> 601
B7: =(D3*B4)/D4 -> 120.498 | C7: =(D3*C4)/D4 -> 278.502 | D7: =SUM(B7:C7) -> 399
B8: =SUM(B6:B7) -> 302 | C8: =SUM(C6:C7) -> 698 | D8: =SUM(D6:D7) -> 1000
B10: =((B2-B6)^2)/B6 -> 0.3100792498 | C10: =((C2-C6)^2)/C6 -> 0.1341603631 | D10: =B10+C10 -> 0.4442396129
B11: =((B3-B7)^2)/B7 -> 0.4670617272 | C11: =((C3-C7)^2)/C7 -> 0.2020811484 | D11: =B11+C11 -> 0.6691428756
B12: =SUM(B10:B11) -> 0.777140977 | C12: =SUM(C10:C11) -> 0.3362415115 | D12: =SUM(D10:D11) -> 1.113382489 | E12: =ROUNDUP(D12,4) -> 1.1134 | F12: =ROUNDDOWN(D12,4) -> 1.1133

Sheet Hoja24 (hidden)
A1: 5 | B1: Totla muestra
A2: x | B2: y | C2: x2 | D2: xy | E2: y2 | K2: sumax | L2: =SUM(A3:A32) -> 152 | M2: =L2^2 -> 23104
A3: ='Ej8'!C5 -> 10 | B3: ='Ej8'!D5 -> 25 | C3: =A3^2 -> 100 | D3: =A3*B3 -> 250 | E3: =B3^2 -> 625 | F3: =IF(C3<>0,C3,"") -> 100 | G3: =IF(D3<>0,D3,"") -> 250 | H3: =IF(E3<>0,E3,"") -> 625 | K3: suma y | L3: =SUM(B3:B32) -> 178 | M3: =L3^2 -> 31684
A4: ='Ej8'!C6 -> 25 | B4: ='Ej8'!D6 -> 28 | C4: =A4^2 -> 625 | D4: =A4*B4 -> 700 | E4: =B4^2 -> 784 | F4: =IF(C4<>0,C4,"") -> 625 | G4: =IF(D4<>0,D4,"") -> 700 | H4: =IF(E4<>0,E4,"") -> 784 | K4: suma x2 | L4: =SUM(C3:C32) -> 6034
A5: ='Ej8'!C7 -> 18 | B5: ='Ej8'!D7 -> 36 | C5: 324 | D5: 648 | E5: 1296 | F5: 324 | G5: 648 | H5: 1296 | K5: suma xy | L5: =SUM(D3:D32) -> 5880
A6: ='Ej8'!C8 -> 43 | B6: ='Ej8'!D8 -> 54 | C6: 1849 | D6: 2322 | E6: 2916 | F6: 1849 | G6: 2322 | H6: 2916 | K6: suma y2 | L6: =SUM(E3:E32) -> 6846
A7: ='Ej8'!C9 -> 56 | B7: ='Ej8'!D9 -> 35 | C7: 3136 | D7: 1960 | E7: 1225 | F7: 3136 | G7: 1960 | H7: 1225
A8: ='Ej8'!C10 -> 0 | B8: ='Ej8'!D10 -> 0 | C8: 0 | D8: 0 | E8: 0 | J8: a | K8: =(L3*L4)-(L2*L5) -> 180292 | L8: =(A1*L4)-L2^2 -> 7066 | M8: =K8/L8 -> 25.51542598 | N8: =ROUND(M8,1) -> 25.5
A9: ='Ej8'!C11 -> 0 | B9: ='Ej8'!D11 -> 0 | C9: 0 | D9: 0 | E9: 0 | J9: b | K9: =(A1*L5)-(L2*L3) -> 2344 | L9: =(A1*L4)-L2^2 -> 7066 | M9: =K9/L9 -> 0.3317294084 | N9: =ROUND(M9,2) -> 0.33
A10: ='Ej8'!C12 -> 0 | B10: ='Ej8'!D12 -> 0 | C10: 0 | D10: 0 | E10: 0
A11: ='Ej8'!C13 -> 0 | B11: ='Ej8'!D13 -> 0 | C11: 0 | D11: 0 | E11: 0 | L11: =CONCATENATE("Y = ",N8," + ",N9,"x") -> Y = 25.5 + 0.33x
A12: ='Ej8'!C14 -> 0 | B12: ='Ej8'!D14 -> 0 | C12: 0 | D12: 0 | E12: 0 | K12: Correlacion | L12: =(A1*L5)-(L2*L3) -> 2344 | M12: =(A1*L4)-M2 -> 7066 | N12: =(A1*L6)-M3 -> 2546 | O12: =M12*N12 -> 17990036 | P12: =SQRT(O12) -> 4241.466256 | Q12: =L12/P12 -> 0.5526390778 | R12: =ROUND(Q12,2) -> 0.55
A13: ='Ej8'!C15 -> 0 | B13: ='Ej8'!D15 -> 0 | C13: 0 | D13: 0 | E13: 0 | K13: Determinacion | L13: =R12^2 -> 0.3025
A14: ='Ej8'!C16 -> 0 | B14: ='Ej8'!D16 -> 0 | C14: 0 | D14: 0 | E14: 0
A15: ='Ej8'!C17 -> 0 | B15: ='Ej8'!D17 -> 0 | C15: 0 | D15: 0 | E15: 0
A16: ='Ej8'!C18 -> 0 | B16: ='Ej8'!D18 -> 0 | C16: 0 | D16: 0 | E16: 0
A17: ='Ej8'!C19 -> 0 | B17: ='Ej8'!D19 -> 0 | C17: 0 | D17: 0 | E17: 0
A18: ='Ej8'!C20 -> 0 | B18: ='Ej8'!D20 -> 0 | C18: 0 | D18: 0 | E18: 0
A19: ='Ej8'!C21 -> 0 | B19: ='Ej8'!D21 -> 0 | C19: 0 | D19: 0 | E19: 0
A20: ='Ej8'!C22 -> 0 | B20: ='Ej8'!D22 -> 0 | C20: 0 | D20: 0 | E20: 0
A21: ='Ej8'!C23 -> 0 | B21: ='Ej8'!D23 -> 0 | C21: 0 | D21: 0 | E21: 0
A22: ='Ej8'!C24 -> 0 | B22: ='Ej8'!D24 -> 0 | C22: 0 | D22: 0 | E22: 0
A23: ='Ej8'!C25 -> 0 | B23: ='Ej8'!D25 -> 0 | C23: 0 | D23: 0 | E23: 0
A24: ='Ej8'!C26 -> 0 | B24: ='Ej8'!D26 -> 0 | C24: 0 | D24: 0 | E24: 0
A25: ='Ej8'!C27 -> 0 | B25: ='Ej8'!D27 -> 0 | C25: 0 | D25: 0 | E25: 0
A26: ='Ej8'!C28 -> 0 | B26: ='Ej8'!D28 -> 0 | C26: 0 | D26: 0 | E26: 0
A27: ='Ej8'!C29 -> 0 | B27: ='Ej8'!D29 -> 0 | C27: 0 | D27: 0 | E27: 0
A28: ='Ej8'!C30 -> 0 | B28: ='Ej8'!D30 -> 0 | C28: 0 | D28: 0 | E28: 0
A29: ='Ej8'!C31 -> 0 | B29: ='Ej8'!D31 -> 0 | C29: 0 | D29: 0 | E29: 0
A30: ='Ej8'!C32 -> 0 | B30: ='Ej8'!D32 -> 0 | C30: 0 | D30: 0 | E30: 0
A31: ='Ej8'!C33 -> 0 | B31: ='Ej8'!D33 -> 0 | C31: =A31^2 -> 0 | D31: =A31*B31 -> 0 | E31: =B31^2 -> 0
A32: ='Ej8'!C34 -> 0 | B32: ='Ej8'!D34 -> 0 | C32: 0 | D32: 0 | E32: 0

Sheet Hoja22 (hidden)
A1: =SUM('Ej7'!C5:C20) -> 0 | B1: SUMA | C1: E | D1: =A1/A2 ->  | E1: ='Ej7'!C5-Hoja22!$D$1 ->  | F1: =E1^2 ->  | G1: ='Ej7'!B5 -> 0 | H1: =IF(G1=0,"",F1) ->  | J1: =SUM(H1:H18) -> 0 | T1: 0
A2: =COUNT('Ej7'!B5:B20) -> 0 | B2: CUENTA | E2: ='Ej7'!C6-Hoja22!$D$1 ->  | F2: =E2^2 ->  | G2: ='Ej7'!B6 -> 0 | H2: =IF(G2=0,"",F2) ->  | J2: =J1/D1 -> 
E3: ='Ej7'!C7-Hoja22!$D$1 ->  | G3: ='Ej7'!B7 -> 0
E4: ='Ej7'!C8-Hoja22!$D$1 ->  | G4: ='Ej7'!B8 -> 0
E5: ='Ej7'!C9-Hoja22!$D$1 ->  | G5: ='Ej7'!B9 -> 0
E6: ='Ej7'!C10-Hoja22!$D$1 ->  | G6: ='Ej7'!B10 -> 0
E7: ='Ej7'!C11-Hoja22!$D$1 ->  | G7: ='Ej7'!B11 -> 0
E8: ='Ej7'!C12-Hoja22!$D$1 ->  | G8: ='Ej7'!B12 -> 0
E9: ='Ej7'!C13-Hoja22!$D$1 ->  | G9: ='Ej7'!B13 -> 0
E10: ='Ej7'!C14-Hoja22!$D$1 ->  | G10: ='Ej7'!B14 -> 0
E11: ='Ej7'!C15-Hoja22!$D$1 ->  | G11: ='Ej7'!B15 -> 0
E12: ='Ej7'!C16-Hoja22!$D$1 ->  | G12: ='Ej7'!B16 -> 0
E13: ='Ej7'!C17-Hoja22!$D$1 ->  | G13: ='Ej7'!B17 -> 0
E14: ='Ej7'!C18-Hoja22!$D$1 ->  | G14: ='Ej7'!B18 -> 0
E15: ='Ej7'!C19-Hoja22!$D$1 ->  | G15: ='Ej7'!B19 -> 0
E16: ='Ej7'!C20-Hoja22!$D$1 ->  | G16: ='Ej7'!B20 -> 0
E17: ='Ej7'!C21-Hoja22!$D$1 ->  | G17: ='Ej7'!B21 -> 0
E18: ='Ej7'!C22-Hoja22!$D$1 ->  | G18: ='Ej7'!B22 -> 0

Sheet Hoja16 (hidden)
A1: Media | B1: =B8/B9 -> 
A2: Moda | B2: =_xlfn.MODE.SNGL('Ej4'!C4:C50) -> 
A3: Mediana | B3: =MEDIAN('Ej4'!C4:C50) -> 
A4: Desviación estándar | B4: =_xlfn.STDEV.S('Ej4'!C4:C50) -> 
A5: Rango | B5: =B6-B7 -> 0
A6: Maximo | B6: =MAX('Ej4'!C4:C50) -> 0
A7: Minimo | B7: =MIN('Ej4'!C4:C50) -> 0
A8: Suma | B8: =SUM('Ej4'!C4:C50) -> 0
A9: Cuenta | B9: =COUNT('Ej4'!C4:C50) -> 0
A10: varianza | B10: =VAR('Ej4'!C4:C50) -> 

Sheet Hoja8 (hidden)
B1: X | C1: Y | D1: X2 | E1: X*Y | F1: Y2 | N1: suma X | O1: =SUM(B2:B501) -> 36.9 | P1: 6 | Q1: =O1^2 -> 1361.61
A2: =Regr_Lineal!B5 -> 1 | B2: =Regr_Lineal!C5 -> 6.6 | C2: =Regr_Lineal!D5 -> 75 | D2: =B2^2 -> 43.56 | E2: =B2*C2 -> 495 | F2: =C2^2 -> 5625 | G2: =IF(A2=0,"",A2) -> 1 | H2: 6.6 | I2: 75 | J2: 43.56 | K2: 495 | L2: 5625 | N2: suma Y | O2: =SUM(C2:C501) -> 452 | P2: =O2^2 -> 204304
A3: =Regr_Lineal!B6 -> 2 | B3: =Regr_Lineal!C6 -> 5.3 | C3: =Regr_Lineal!D6 -> 69 | D3: =B3^2 -> 28.09 | E3: =B3*C3 -> 365.7 | F3: =C3^2 -> 4761 | G3: =IF(A3=0,"",A3) -> 2 | H3: 5.3 | I3: 69 | J3: 28.09 | K3: =IF(E3=0,"",E3) -> 365.7 | L3: 4761 | N3: suma X2 | O3: =SUM(D2:D501) -> 232.19 | P3: =O3-O1 -> 195.29 | Q3: =P3^2 -> 38138.1841
A4: =Regr_Lineal!B7 -> 3 | B4: =Regr_Lineal!C7 -> 4.9 | C4: =Regr_Lineal!D7 -> 71 | D4: 24.01 | E4: 347.9 | F4: 5041 | G4: 3 | H4: 4.9 | I4: 71 | J4: 24.01 | K4: 347.9 | L4: 5041 | N4: suma XY | O4: =SUM(E2:E501) -> 2807.6 | P4: =P1*O5 -> 205416 | Q4: =P4-P2 -> 1112
A5: =Regr_Lineal!B8 -> 4 | B5: =Regr_Lineal!C8 -> 7.4 | C5: =Regr_Lineal!D8 -> 86 | D5: 54.76 | E5: 636.4 | F5: 7396 | G5: 4 | H5: 7.4 | I5: 86 | J5: 54.76 | K5: 636.4 | L5: 7396 | N5: suma Y2 | O5: =SUM(F2:F501) -> 34236 | Q5: =P1*O3 -> 1393.14
A6: =Regr_Lineal!B9 -> 5 | B6: =Regr_Lineal!C9 -> 7.1 | C6: =Regr_Lineal!D9 -> 78 | D6: 50.41 | E6: 553.8 | F6: 6084 | G6: 5 | H6: 7.1 | I6: 78 | J6: 50.41 | K6: 553.8 | L6: 6084 | N6: a | Q6: =Q5-Q1 -> 31.53 | R6: =Q6*Q4 -> 35061.36
A7: =Regr_Lineal!B10 -> 6 | B7: =Regr_Lineal!C10 -> 5.6 | C7: =Regr_Lineal!D10 -> 73 | D7: 31.36 | E7: 408.8 | F7: 5329 | G7: 6 | H7: 5.6 | I7: 73 | J7: 31.36 | K7: 408.8 | L7: 5329 | N7: =((O2)*O3)-(O1*O4) -> 1349.44 | O7: =N7/N8 -> 42.7986045 | R7: =SQRT(R6) -> 187.246789
A8: =Regr_Lineal!B11 -> 0 | B8: =Regr_Lineal!C11 -> 0 | C8: =Regr_Lineal!D11 -> 0 | D8: 0 | E8: 0 | F8: 0 | N8: =(P1*O3)-(O1)^2 -> 31.53
A9: =Regr_Lineal!B12 -> 0 | B9: =Regr_Lineal!C12 -> 0 | C9: =Regr_Lineal!D12 -> 0 | D9: 0 | E9: 0 | F9: 0
A10: =Regr_Lineal!B13 -> 0 | B10: =Regr_Lineal!C13 -> 0 | C10: =Regr_Lineal!D13 -> 0 | D10: 0 | E10: 0 | F10: 0 | N10: b | P10: 34.236
A11: =Regr_Lineal!B14 -> 0 | B11: =Regr_Lineal!C14 -> 0 | C11: =Regr_Lineal!D14 -> 0 | D11: 0 | E11: 0 | F11: 0 | N11: =(P1*O4)-(O1*O2) -> 166.8
A12: =Regr_Lineal!B15 -> 0 | B12: =Regr_Lineal!C15 -> 0 | C12: =Regr_Lineal!D15 -> 0 | D12: 0 | E12: 0 | F12: 0 | I12: =(P1*O4)-(O1*O2) -> 166.8 | J12: =I12/I13 -> 0.890787717 | K12: =ROUND(J12,2) -> 0.89 | N12: =N11/N8 -> 5.29019981 | O12: =ROUNDUP(O7,2) -> 42.8
A13: =Regr_Lineal!B16 -> 0 | B13: =Regr_Lineal!C16 -> 0 | C13: =Regr_Lineal!D16 -> 0 | D13: 0 | E13: 0 | F13: 0 | I13: =ROUND(R7,2) -> 187.25 | O13: =ROUND(N12,2) -> 5.29
A14: =Regr_Lineal!B17 -> 0 | B14: =Regr_Lineal!C17 -> 0 | C14: =Regr_Lineal!D17 -> 0 | D14: 0 | E14: 0 | F14: 0 | K14: =K12*K12 -> 0.7921
A15: =Regr_Lineal!B18 -> 0 | B15: =Regr_Lineal!C18 -> 0 | C15: =Regr_Lineal!D18 -> 0 | D15: 0 | E15: 0 | F15: 0 | N15: =CONCATENATE("Y = ",O12," + ",O13,"x") -> Y = 42.8 + 5.29x
A16: =Regr_Lineal!B19 -> 0 | B16: =Regr_Lineal!C19 -> 0 | C16: =Regr_Lineal!D19 -> 0 | D16: 0 | E16: 0 | F16: 0
A17: =Regr_Lineal!B20 -> 0 | B17: =Regr_Lineal!C20 -> 0 | C17: =Regr_Lineal!D20 -> 0 | D17: 0 | E17: 0 | F17: 0
A18: =Regr_Lineal!B21 -> 0 | B18: =Regr_Lineal!C21 -> 0 | C18: =Regr_Lineal!D21 -> 0 | D18: 0 | E18: 0 | F18: 0
A19: =Regr_Lineal!B22 -> 0 | B19: =Regr_Lineal!C22 -> 0 | C19: =Regr_Lineal!D22 -> 0 | D19: 0 | E19: 0 | F19: 0
A20: =Regr_Lineal!B23 -> 0 | B20: =Regr_Lineal!C23 -> 0 | C20: =Regr_Lineal!D23 -> 0 | D20: 0 | E20: 0 | F20: 0
A21: =Regr_Lineal!B24 -> 0 | B21: =Regr_Lineal!C24 -> 0 | C21: =Regr_Lineal!D24 -> 0 | D21: 0 | E21: 0 | F21: 0
A22: =Regr_Lineal!B25 -> 0 | B22: =Regr_Lineal!C25 -> 0 | C22: =Regr_Lineal!D25 -> 0 | D22: 0 | E22: 0 | F22: 0
A23: =Regr_Lineal!B26 -> 0 | B23: =Regr_Lineal!C26 -> 0 | C23: =Regr_Lineal!D26 -> 0 | D23: 0 | E23: 0 | F23: 0
A24: =Regr_Lineal!B27 -> 0 | B24: =Regr_Lineal!C27 -> 0 | C24: =Regr_Lineal!D27 -> 0 | D24: 0 | E24: 0 | F24: 0
A25: =Regr_Lineal!B28 -> 0 | B25: =Regr_Lineal!C28 -> 0 | C25: =Regr_Lineal!D28 -> 0 | D25: 0 | E25: 0 | F25: 0
A26: =Regr_Lineal!B29 -> 0 | B26: =Regr_Lineal!C29 -> 0 | C26: =Regr_Lineal!D29 -> 0 | D26: 0 | E26: 0 | F26: 0
A27: =Regr_Lineal!B30 -> 0 | B27: =Regr_Lineal!C30 -> 0 | C27: =Regr_Lineal!D30 -> 0 | D27: 0 | E27: 0 | F27: 0
A28: =Regr_Lineal!B31 -> 0 | B28: =Regr_Lineal!C31 -> 0 | C28: =Regr_Lineal!D31 -> 0 | D28: 0 | E28: 0 | F28: 0
A29: =Regr_Lineal!B32 -> 0 | B29: =Regr_Lineal!C32 -> 0 | C29: =Regr_Lineal!D32 -> 0 | D29: 0 | E29: 0 | F29: 0
A30: =Regr_Lineal!B33 -> 0 | B30: =Regr_Lineal!C33 -> 0 | C30: =Regr_Lineal!D33 -> 0 | D30: 0 | E30: 0 | F30: 0
A31: =Regr_Lineal!B34 -> 0 | B31: =Regr_Lineal!C34 -> 0 | C31: =Regr_Lineal!D34 -> 0 | D31: 0 | E31: 0 | F31: 0
A32: =Regr_Lineal!B35 -> 0 | B32: =Regr_Lineal!C35 -> 0 | C32: =Regr_Lineal!D35 -> 0 | D32: 0 | E32: 0 | F32: 0
A33: =Regr_Lineal!B36 -> 0 | B33: =Regr_Lineal!C36 -> 0 | C33: =Regr_Lineal!D36 -> 0 | D33: 0 | E33: 0 | F33: 0
A34: =Regr_Lineal!B37 -> 0 | B34: =Regr_Lineal!C37 -> 0 | C34: =Regr_Lineal!D37 -> 0 | D34: 0 | E34: 0 | F34: 0
A35: =Regr_Lineal!B38 -> 0 | B35: =Regr_Lineal!C38 -> 0 | C35: =Regr_Lineal!D38 -> 0 | D35: 0 | E35: 0 | F35: 0
A36: =Regr_Lineal!B39 -> 0 | B36: =Regr_Lineal!C39 -> 0 | C36: =Regr_Lineal!D39 -> 0 | D36: 0 | E36: 0 | F36: 0
A37: =Regr_Lineal!B40 -> 0 | B37: =Regr_Lineal!C40 -> 0 | C37: =Regr_Lineal!D40 -> 0 | D37: 0 | E37: 0 | F37: 0
A38: =Regr_Lineal!B41 -> 0 | B38: =Regr_Lineal!C41 -> 0 | C38: =Regr_Lineal!D41 -> 0 | D38: 0 | E38: 0 | F38: 0
A39: =Regr_Lineal!B42 -> 0 | B39: =Regr_Lineal!C42 -> 0 | C39: =Regr_Lineal!D42 -> 0 | D39: 0 | E39: 0 | F39: 0
A40: =Regr_Lineal!B43 -> 0 | B40: =Regr_Lineal!C43 -> 0 | C40: =Regr_Lineal!D43 -> 0 | D40: 0 | E40: 0 | F40: 0
A41: =Regr_Lineal!B44 -> 0 | B41: =Regr_Lineal!C44 -> 0 | C41: =Regr_Lineal!D44 -> 0 | D41: 0 | E41: 0 | F41: 0
A42: =Regr_Lineal!B45 -> 0 | B42: =Regr_Lineal!C45 -> 0 | C42: =Regr_Lineal!D45 -> 0 | D42: 0 | E42: 0 | F42: 0
A43: =Regr_Lineal!B46 -> 0 | B43: =Regr_Lineal!C46 -> 0 | C43: =Regr_Lineal!D46 -> 0 | D43: 0 | E43: 0 | F43: 0
A44: =Regr_Lineal!B47 -> 0 | B44: =Regr_Lineal!C47 -> 0 | C44: =Regr_Lineal!D47 -> 0 | D44: 0 | E44: 0 | F44: 0
A45: =Regr_Lineal!B48 -> 0 | B45: =Regr_Lineal!C48 -> 0 | C45: =Regr_Lineal!D48 -> 0 | D45: 0 | E45: 0 | F45: 0
A46: =Regr_Lineal!B49 -> 0 | B46: =Regr_Lineal!C49 -> 0 | C46: =Regr_Lineal!D49 -> 0 | D46: 0 | E46: 0 | F46: 0
A47: =Regr_Lineal!B50 -> 0 | B47: =Regr_Lineal!C50 -> 0 | C47: =Regr_Lineal!D50 -> 0 | D47: 0 | E47: 0 | F47: 0
A48: =Regr_Lineal!B51 -> 0 | B48: =Regr_Lineal!C51 -> 0 | C48: =Regr_Lineal!D51 -> 0 | D48: 0 | E48: 0 | F48: 0
A49: =Regr_Lineal!B52 -> 0 | B49: =Regr_Lineal!C52 -> 0 | C49: =Regr_Lineal!D52 -> 0 | D49: 0 | E49: 0 | F49: 0
A50: =Regr_Lineal!B53 -> 0 | B50: =Regr_Lineal!C53 -> 0 | C50: =Regr_Lineal!D53 -> 0 | D50: 0 | E50: 0 | F50: 0
A51: =Regr_Lineal!B54 -> 0 | B51: =Regr_Lineal!C54 -> 0 | C51: =Regr_Lineal!D54 -> 0 | D51: 0 | E51: 0 | F51: 0
A52: =Regr_Lineal!B55 -> 0 | B52: =Regr_Lineal!C55 -> 0 | C52: =Regr_Lineal!D55 -> 0 | D52: 0 | E52: 0 | F52: 0
A53: =Regr_Lineal!B56 -> 0 | B53: =Regr_Lineal!C56 -> 0 | C53: =Regr_Lineal!D56 -> 0 | D53: 0 | E53: 0 | F53: 0
A54: =Regr_Lineal!B57 -> 0 | B54: =Regr_Lineal!C57 -> 0 | C54: =Regr_Lineal!D57 -> 0 | D54: 0 | E54: 0 | F54: 0
A55: =Regr_Lineal!B58 -> 0 | B55: =Regr_Lineal!C58 -> 0 | C55: =Regr_Lineal!D58 -> 0 | D55: 0 | E55: 0 | F55: 0
A56: =Regr_Lineal!B59 -> 0 | B56: =Regr_Lineal!C59 -> 0 | C56: =Regr_Lineal!D59 -> 0 | D56: 0 | E56: 0 | F56: 0
A57: =Regr_Lineal!B60 -> 0 | B57: =Regr_Lineal!C60 -> 0 | C57: =Regr_Lineal!D60 -> 0 | D57: 0 | E57: 0 | F57: 0
A58: =Regr_Lineal!B61 -> 0 | B58: =Regr_Lineal!C61 -> 0 | C58: =Regr_Lineal!D61 -> 0 | D58: 0 | E58: 0 | F58: 0
A59: =Regr_Lineal!B62 -> 0 | B59: =Regr_Lineal!C62 -> 0 | C59: =Regr_Lineal!D62 -> 0 | D59: 0 | E59: 0 | F59: 0
A60: =Regr_Lineal!B63 -> 0 | B60: =Regr_Lineal!C63 -> 0 | C60: =Regr_Lineal!D63 -> 0 | D60: 0 | E60: 0 | F60: 0
A61: =Regr_Lineal!B64 -> 0 | B61: =Regr_Lineal!C64 -> 0 | C61: =Regr_Lineal!D64 -> 0 | D61: 0 | E61: 0 | F61: 0
A62: =Regr_Lineal!B65 -> 0 | B62: =Regr_Lineal!C65 -> 0 | C62: =Regr_Lineal!D65 -> 0 | D62: 0 | E62: 0 | F62: 0
A63: =Regr_Lineal!B66 -> 0 | B63: =Regr_Lineal!C66 -> 0 | C63: =Regr_Lineal!D66 -> 0 | D63: 0 | E63: 0 | F63: 0
A64: =Regr_Lineal!B67 -> 0 | B64: =Regr_Lineal!C67 -> 0 | C64: =Regr_Lineal!D67 -> 0 | D64: 0 | E64: 0 | F64: 0
A65: =Regr_Lineal!B68 -> 0 | B65: =Regr_Lineal!C68 -> 0 | C65: =Regr_Lineal!D68 -> 0 | D65: 0 | E65: 0 | F65: 0
A66: =Regr_Lineal!B69 -> 0 | B66: =Regr_Lineal!C69 -> 0 | C66: =Regr_Lineal!D69 -> 0 | D66: 0 | E66: 0 | F66: 0 | J66: =IF(D66=0,"",D66) -> 
A67: =Regr_Lineal!B70 -> 0 | B67: =Regr_Lineal!C70 -> 0 | C67: =Regr_Lineal!D70 -> 0 | D67: =B67^2 -> 0 | E67: =B67*C67 -> 0 | F67: =C67^2 -> 0 | G67: =IF(A67=0,"",A67) ->  | K67: =IF(E67=0,"",E67) -> 
A68: =Regr_Lineal!B71 -> 0 | B68: =Regr_Lineal!C71 -> 0 | C68: =Regr_Lineal!D71 -> 0 | D68: 0 | E68: 0 | F68: 0
A69: =Regr_Lineal!B72 -> 0 | B69: =Regr_Lineal!C72 -> 0 | C69: =Regr_Lineal!D72 -> 0 | D69: 0 | E69: 0 | F69: 0
A70: =Regr_Lineal!B73 -> 0 | B70: =Regr_Lineal!C73 -> 0 | C70: =Regr_Lineal!D73 -> 0 | D70: 0 | E70: 0 | F70: 0
A71: =Regr_Lineal!B74 -> 0 | B71: =Regr_Lineal!C74 -> 0 | C71: =Regr_Lineal!D74 -> 0 | D71: 0 | E71: 0 | F71: 0
A72: =Regr_Lineal!B75 -> 0 | B72: =Regr_Lineal!C75 -> 0 | C72: =Regr_Lineal!D75 -> 0 | D72: 0 | E72: 0 | F72: 0
A73: =Regr_Lineal!B76 -> 0 | B73: =Regr_Lineal!C76 -> 0 | C73: =Regr_Lineal!D76 -> 0 | D73: 0 | E73: 0 | F73: 0
A74: =Regr_Lineal!B77 -> 0 | B74: =Regr_Lineal!C77 -> 0 | C74: =Regr_Lineal!D77 -> 0 | D74: 0 | E74: 0 | F74: 0
A75: =Regr_Lineal!B78 -> 0 | B75: =Regr_Lineal!C78 -> 0 | C75: =Regr_Lineal!D78 -> 0 | D75: 0 | E75: 0 | F75: 0
A76: =Regr_Lineal!B79 -> 0 | B76: =Regr_Lineal!C79 -> 0 | C76: =Regr_Lineal!D79 -> 0 | D76: 0 | E76: 0 | F76: 0
A77: =Regr_Lineal!B80 -> 0 | B77: =Regr_Lineal!C80 -> 0 | C77: =Regr_Lineal!D80 -> 0 | D77: 0 | E77: 0 | F77: 0
A78: =Regr_Lineal!B81 -> 0 | B78: =Regr_Lineal!C81 -> 0 | C78: =Regr_Lineal!D81 -> 0 | D78: 0 | E78: 0 | F78: 0
A79: =Regr_Lineal!B82 -> 0 | B79: =Regr_Lineal!C82 -> 0 | C79: =Regr_Lineal!D82 -> 0 | D79: 0 | E79: 0 | F79: 0
A80: =Regr_Lineal!B83 -> 0 | B80: =Regr_Lineal!C83 -> 0 | C80: =Regr_Lineal!D83 -> 0 | D80: 0 | E80: 0 | F80: 0
A81: =Regr_Lineal!B84 -> 0 | B81: =Regr_Lineal!C84 -> 0 | C81: =Regr_Lineal!D84 -> 0 | D81: 0 | E81: 0 | F81: 0
A82: =Regr_Lineal!B85 -> 0 | B82: =Regr_Lineal!C85 -> 0 | C82: =Regr_Lineal!D85 -> 0 | D82: 0 | E82: 0 | F82: 0
A83: =Regr_Lineal!B86 -> 0 | B83: =Regr_Lineal!C86 -> 0 | C83: =Regr_Lineal!D86 -> 0 | D83: 0 | E83: 0 | F83: 0
A84: =Regr_Lineal!B87 -> 0 | B84: =Regr_Lineal!C87 -> 0 | C84: =Regr_Lineal!D87 -> 0 | D84: 0 | E84: 0 | F84: 0
A85: =Regr_Lineal!B88 -> 0 | B85: =Regr_Lineal!C88 -> 0 | C85: =Regr_Lineal!D88 -> 0 | D85: 0 | E85: 0 | F85: 0
A86: =Regr_Lineal!B89 -> 0 | B86: =Regr_Lineal!C89 -> 0 | C86: =Regr_Lineal!D89 -> 0 | D86: 0 | E86: 0 | F86: 0
A87: =Regr_Lineal!B90 -> 0 | B87: =Regr_Lineal!C90 -> 0 | C87: =Regr_Lineal!D90 -> 0 | D87: 0 | E87: 0 | F87: 0
A88: =Regr_Lineal!B91 -> 0 | B88: =Regr_Lineal!C91 -> 0 | C88: =Regr_Lineal!D91 -> 0 | D88: 0 | E88: 0 | F88: 0
A89: =Regr_Lineal!B92 -> 0 | B89: =Regr_Lineal!C92 -> 0 | C89: =Regr_Lineal!D92 -> 0 | D89: 0 | E89: 0 | F89: 0
A90: =Regr_Lineal!B93 -> 0 | B90: =Regr_Lineal!C93 -> 0 | C90: =Regr_Lineal!D93 -> 0 | D90: 0 | E90: 0 | F90: 0
A91: =Regr_Lineal!B94 -> 0 | B91: =Regr_Lineal!C94 -> 0 | C91: =Regr_Lineal!D94 -> 0 | D91: 0 | E91: 0 | F91: 0
A92: =Regr_Lineal!B95 -> 0 | B92: =Regr_Lineal!C95 -> 0 | C92: =Regr_Lineal!D95 -> 0 | D92: 0 | E92: 0 | F92: 0
A93: =Regr_Lineal!B96 -> 0 | B93: =Regr_Lineal!C96 -> 0 | C93: =Regr_Lineal!D96 -> 0 | D93: 0 | E93: 0 | F93: 0
A94: =Regr_Lineal!B97 -> 0 | B94: =Regr_Lineal!C97 -> 0 | C94: =Regr_Lineal!D97 -> 0 | D94: 0 | E94: 0 | F94: 0
A95: =Regr_Lineal!B98 -> 0 | B95: =Regr_Lineal!C98 -> 0 | C95: =Regr_Lineal!D98 -> 0 | D95: 0 | E95: 0 | F95: 0
A96: =Regr_Lineal!B99 -> 0 | B96: =Regr_Lineal!C99 -> 0 | C96: =Regr_Lineal!D99 -> 0 | D96: 0 | E96: 0 | F96: 0
A97: =Regr_Lineal!B100 -> 0 | B97: =Regr_Lineal!C100 -> 0 | C97: =Regr_Lineal!D100 -> 0 | D97: 0 | E97: 0 | F97: 0
A98: =Regr_Lineal!B101 -> 0 | B98: =Regr_Lineal!C101 -> 0 | C98: =Regr_Lineal!D101 -> 0 | D98: 0 | E98: 0 | F98: 0
A99: =Regr_Lineal!B102 -> 0 | B99: =Regr_Lineal!C102 -> 0 | C99: =Regr_Lineal!D102 -> 0 | D99: 0 | E99: 0 | F99: 0
A100: =Regr_Lineal!B103 -> 0 | B100: =Regr_Lineal!C103 -> 0 | C100: =Regr_Lineal!D103 -> 0 | D100: 0 | E100: 0 | F100: 0
A101: =Regr_Lineal!B104 -> 0 | B101: =Regr_Lineal!C104 -> 0 | C101: =Regr_Lineal!D104 -> 0 | D101: 0 | E101: 0 | F101: 0
A102: =Regr_Lineal!B105 -> 0 | B102: =Regr_Lineal!C105 -> 0 | C102: =Regr_Lineal!D105 -> 0 | D102: 0 | E102: 0 | F102: 0
A103: =Regr_Lineal!B106 -> 0 | B103: =Regr_Lineal!C106 -> 0 | C103: =Regr_Lineal!D106 -> 0 | D103: 0 | E103: 0 | F103: 0
A104: =Regr_Lineal!B107 -> 0 | B104: =Regr_Lineal!C107 -> 0 | C104: =Regr_Lineal!D107 -> 0 | D104: 0 | E104: 0 | F104: 0
A105: =Regr_Lineal!B108 -> 0 | B105: =Regr_Lineal!C108 -> 0 | C105: =Regr_Lineal!D108 -> 0 | D105: 0 | E105: 0 | F105: 0
A106: =Regr_Lineal!B109 -> 0 | B106: =Regr_Lineal!C109 -> 0 | C106: =Regr_Lineal!D109 -> 0 | D106: 0 | E106: 0 | F106: 0
A107: =Regr_Lineal!B110 -> 0 | B107: =Regr_Lineal!C110 -> 0 | C107: =Regr_Lineal!D110 -> 0 | D107: 0 | E107: 0 | F107: 0
A108: =Regr_Lineal!B111 -> 0 | B108: =Regr_Lineal!C111 -> 0 | C108: =Regr_Lineal!D111 -> 0 | D108: 0 | E108: 0 | F108: 0
A109: =Regr_Lineal!B112 -> 0 | B109: =Regr_Lineal!C112 -> 0 | C109: =Regr_Lineal!D112 -> 0 | D109: 0 | E109: 0 | F109: 0
A110: =Regr_Lineal!B113 -> 0 | B110: =Regr_Lineal!C113 -> 0 | C110: =Regr_Lineal!D113 -> 0 | D110: 0 | E110: 0 | F110: 0
A111: =Regr_Lineal!B114 -> 0 | B111: =Regr_Lineal!C114 -> 0 | C111: =Regr_Lineal!D114 -> 0 | D111: 0 | E111: 0 | F111: 0
A112: =Regr_Lineal!B115 -> 0 | B112: =Regr_Lineal!C115 -> 0 | C112: =Regr_Lineal!D115 -> 0 | D112: 0 | E112: 0 | F112: 0
A113: =Regr_Lineal!B116 -> 0 | B113: =Regr_Lineal!C116 -> 0 | C113: =Regr_Lineal!D116 -> 0 | D113: 0 | E113: 0 | F113: 0
A114: =Regr_Lineal!B117 -> 0 | B114: =Regr_Lineal!C117 -> 0 | C114: =Regr_Lineal!D117 -> 0 | D114: 0 | E114: 0 | F114: 0
A115: =Regr_Lineal!B118 -> 0 | B115: =Regr_Lineal!C118 -> 0 | C115: =Regr_Lineal!D118 -> 0 | D115: 0 | E115: 0 | F115: 0
A116: =Regr_Lineal!B119 -> 0 | B116: =Regr_Lineal!C119 -> 0 | C116: =Regr_Lineal!D119 -> 0 | D116: 0 | E116: 0 | F116: 0
A117: =Regr_Lineal!B120 -> 0 | B117: =Regr_Lineal!C120 -> 0 | C117: =Regr_Lineal!D120 -> 0 | D117: 0 | E117: 0 | F117: 0
A118: =Regr_Lineal!B121 -> 0 | B118: =Regr_Lineal!C121 -> 0 | C118: =Regr_Lineal!D121 -> 0 | D118: 0 | E118: 0 | F118: 0
A119: =Regr_Lineal!B122 -> 0 | B119: =Regr_Lineal!C122 -> 0 | C119: =Regr_Lineal!D122 -> 0 | D119: 0 | E119: 0 | F119: 0
A120: =Regr_Lineal!B123 -> 0 | B120: =Regr_Lineal!C123 -> 0 | C120: =Regr_Lineal!D123 -> 0 | D120: 0 | E120: 0 | F120: 0
A121: =Regr_Lineal!B124 -> 0 | B121: =Regr_Lineal!C124 -> 0 | C121: =Regr_Lineal!D124 -> 0 | D121: 0 | E121: 0 | F121: 0
A122: =Regr_Lineal!B125 -> 0 | B122: =Regr_Lineal!C125 -> 0 | C122: =Regr_Lineal!D125 -> 0 | D122: 0 | E122: 0 | F122: 0
A123: =Regr_Lineal!B126 -> 0 | B123: =Regr_Lineal!C126 -> 0 | C123: =Regr_Lineal!D126 -> 0 | D123: 0 | E123: 0 | F123: 0
A124: =Regr_Lineal!B127 -> 0 | B124: =Regr_Lineal!C127 -> 0 | C124: =Regr_Lineal!D127 -> 0 | D124: 0 | E124: 0 | F124: 0
A125: =Regr_Lineal!B128 -> 0 | B125: =Regr_Lineal!C128 -> 0 | C125: =Regr_Lineal!D128 -> 0 | D125: 0 | E125: 0 | F125: 0
A126: =Regr_Lineal!B129 -> 0 | B126: =Regr_Lineal!C129 -> 0 | C126: =Regr_Lineal!D129 -> 0 | D126: 0 | E126: 0 | F126: 0
A127: =Regr_Lineal!B130 -> 0 | B127: =Regr_Lineal!C130 -> 0 | C127: =Regr_Lineal!D130 -> 0 | D127: 0 | E127: 0 | F127: 0
A128: =Regr_Lineal!B131 -> 0 | B128: =Regr_Lineal!C131 -> 0 | C128: =Regr_Lineal!D131 -> 0 | D128: 0 | E128: 0 | F128: 0
A129: =Regr_Lineal!B132 -> 0 | B129: =Regr_Lineal!C132 -> 0 | C129: =Regr_Lineal!D132 -> 0 | D129: 0 | E129: 0 | F129: 0
A130: =Regr_Lineal!B133 -> 0 | B130: =Regr_Lineal!C133 -> 0 | C130: =Regr_Lineal!D133 -> 0 | D130: 0 | E130: 0 | F130: 0 | J130: =IF(D130=0,"",D130) -> 
A131: =Regr_Lineal!B134 -> 0 | B131: =Regr_Lineal!C134 -> 0 | C131: =Regr_Lineal!D134 -> 0 | D131: =B131^2 -> 0 | E131: =B131*C131 -> 0 | F131: =C131^2 -> 0 | G131: =IF(A131=0,"",A131) ->  | K131: =IF(E131=0,"",E131) -> 
A132: =Regr_Lineal!B135 -> 0 | B132: =Regr_Lineal!C135 -> 0 | C132: =Regr_Lineal!D135 -> 0 | D132: 0 | E132: 0 | F132: 0
A133: =Regr_Lineal!B136 -> 0 | B133: =Regr_Lineal!C136 -> 0 | C133: =Regr_Lineal!D136 -> 0 | D133: 0 | E133: 0 | F133: 0
A134: =Regr_Lineal!B137 -> 0 | B134: =Regr_Lineal!C137 -> 0 | C134: =Regr_Lineal!D137 -> 0 | D134: 0 | E134: 0 | F134: 0
A135: =Regr_Lineal!B138 -> 0 | B135: =Regr_Lineal!C138 -> 0 | C135: =Regr_Lineal!D138 -> 0 | D135: 0 | E135: 0 | F135: 0
A136: =Regr_Lineal!B139 -> 0 | B136: =Regr_Lineal!C139 -> 0 | C136: =Regr_Lineal!D139 -> 0 | D136: 0 | E136: 0 | F136: 0
A137: =Regr_Lineal!B140 -> 0 | B137: =Regr_Lineal!C140 -> 0 | C137: =Regr_Lineal!D140 -> 0 | D137: 0 | E137: 0 | F137: 0
A138: =Regr_Lineal!B141 -> 0 | B138: =Regr_Lineal!C141 -> 0 | C138: =Regr_Lineal!D141 -> 0 | D138: 0 | E138: 0 | F138: 0
A139: =Regr_Lineal!B142 -> 0 | B139: =Regr_Lineal!C142 -> 0 | C139: =Regr_Lineal!D142 -> 0 | D139: 0 | E139: 0 | F139: 0
A140: =Regr_Lineal!B143 -> 0 | B140: =Regr_Lineal!C143 -> 0 | C140: =Regr_Lineal!D143 -> 0 | D140: 0 | E140: 0 | F140: 0
A141: =Regr_Lineal!B144 -> 0 | B141: =Regr_Lineal!C144 -> 0 | C141: =Regr_Lineal!D144 -> 0 | D141: 0 | E141: 0 | F141: 0
A142: =Regr_Lineal!B145 -> 0 | B142: =Regr_Lineal!C145 -> 0 | C142: =Regr_Lineal!D145 -> 0 | D142: 0 | E142: 0 | F142: 0
A143: =Regr_Lineal!B146 -> 0 | B143: =Regr_Lineal!C146 -> 0 | C143: =Regr_Lineal!D146 -> 0 | D143: 0 | E143: 0 | F143: 0
A144: =Regr_Lineal!B147 -> 0 | B144: =Regr_Lineal!C147 -> 0 | C144: =Regr_Lineal!D147 -> 0 | D144: 0 | E144: 0 | F144: 0
A145: =Regr_Lineal!B148 -> 0 | B145: =Regr_Lineal!C148 -> 0 | C145: =Regr_Lineal!D148 -> 0 | D145: 0 | E145: 0 | F145: 0
A146: =Regr_Lineal!B149 -> 0 | B146: =Regr_Lineal!C149 -> 0 | C146: =Regr_Lineal!D149 -> 0 | D146: 0 | E146: 0 | F146: 0
A147: =Regr_Lineal!B150 -> 0 | B147: =Regr_Lineal!C150 -> 0 | C147: =Regr_Lineal!D150 -> 0 | D147: 0 | E147: 0 | F147: 0
A148: =Regr_Lineal!B151 -> 0 | B148: =Regr_Lineal!C151 -> 0 | C148: =Regr_Lineal!D151 -> 0 | D148: 0 | E148: 0 | F148: 0
A149: =Regr_Lineal!B152 -> 0 | B149: =Regr_Lineal!C152 -> 0 | C149: =Regr_Lineal!D152 -> 0 | D149: 0 | E149: 0 | F149: 0
A150: =Regr_Lineal!B153 -> 0 | B150: =Regr_Lineal!C153 -> 0 | C150: =Regr_Lineal!D153 -> 0 | D150: 0 | E150: 0 | F150: 0
A151: =Regr_Lineal!B154 -> 0 | B151: =Regr_Lineal!C154 -> 0 | C151: =Regr_Lineal!D154 -> 0 | D151: 0 | E151: 0 | F151: 0
A152: =Regr_Lineal!B155 -> 0 | B152: =Regr_Lineal!C155 -> 0 | C152: =Regr_Lineal!D155 -> 0 | D152: 0 | E152: 0 | F152: 0
A153: =Regr_Lineal!B156 -> 0 | B153: =Regr_Lineal!C156 -> 0 | C153: =Regr_Lineal!D156 -> 0 | D153: 0 | E153: 0 | F153: 0
A154: =Regr_Lineal!B157 -> 0 | B154: =Regr_Lineal!C157 -> 0 | C154: =Regr_Lineal!D157 -> 0 | D154: 0 | E154: 0 | F154: 0
A155: =Regr_Lineal!B158 -> 0 | B155: =Regr_Lineal!C158 -> 0 | C155: =Regr_Lineal!D158 -> 0 | D155: 0 | E155: 0 | F155: 0
A156: =Regr_Lineal!B159 -> 0 | B156: =Regr_Lineal!C159 -> 0 | C156: =Regr_Lineal!D159 -> 0 | D156: 0 | E156: 0 | F156: 0
A157: =Regr_Lineal!B160 -> 0 | B157: =Regr_Lineal!C160 -> 0 | C157: =Regr_Lineal!D160 -> 0 | D157: 0 | E157: 0 | F157: 0
A158: =Regr_Lineal!B161 -> 0 | B158: =Regr_Lineal!C161 -> 0 | C158: =Regr_Lineal!D161 -> 0 | D158: 0 | E158: 0 | F158: 0
A159: =Regr_Lineal!B162 -> 0 | B159: =Regr_Lineal!C162 -> 0 | C159: =Regr_Lineal!D162 -> 0 | D159: 0 | E159: 0 | F159: 0
A160: =Regr_Lineal!B163 -> 0 | B160: =Regr_Lineal!C163 -> 0 | C160: =Regr_Lineal!D163 -> 0 | D160: 0 | E160: 0 | F160: 0
A161: =Regr_Lineal!B164 -> 0 | B161: =Regr_Lineal!C164 -> 0 | C161: =Regr_Lineal!D164 -> 0 | D161: 0 | E161: 0 | F161: 0
A162: =Regr_Lineal!B165 -> 0 | B162: =Regr_Lineal!C165 -> 0 | C162: =Regr_Lineal!D165 -> 0 | D162: 0 | E162: 0 | F162: 0
A163: =Regr_Lineal!B166 -> 0 | B163: =Regr_Lineal!C166 -> 0 | C163: =Regr_Lineal!D166 -> 0 | D163: 0 | E163: 0 | F163: 0
A164: =Regr_Lineal!B167 -> 0 | B164: =Regr_Lineal!C167 -> 0 | C164: =Regr_Lineal!D167 -> 0 | D164: 0 | E164: 0 | F164: 0
A165: =Regr_Lineal!B168 -> 0 | B165: =Regr_Lineal!C168 -> 0 | C165: =Regr_Lineal!D168 -> 0 | D165: 0 | E165: 0 | F165: 0
A166: =Regr_Lineal!B169 -> 0 | B166: =Regr_Lineal!C169 -> 0 | C166: =Regr_Lineal!D169 -> 0 | D166: 0 | E166: 0 | F166: 0
A167: =Regr_Lineal!B170 -> 0 | B167: =Regr_Lineal!C170 -> 0 | C167: =Regr_Lineal!D170 -> 0 | D167: 0 | E167: 0 | F167: 0
A168: =Regr_Lineal!B171 -> 0 | B168: =Regr_Lineal!C171 -> 0 | C168: =Regr_Lineal!D171 -> 0 | D168: 0 | E168: 0 | F168: 0
A169: =Regr_Lineal!B172 -> 0 | B169: =Regr_Lineal!C172 -> 0 | C169: =Regr_Lineal!D172 -> 0 | D169: 0 | E169: 0 | F169: 0
A170: =Regr_Lineal!B173 -> 0 | B170: =Regr_Lineal!C173 -> 0 | C170: =Regr_Lineal!D173 -> 0 | D170: 0 | E170: 0 | F170: 0
A171: =Regr_Lineal!B174 -> 0 | B171: =Regr_Lineal!C174 -> 0 | C171: =Regr_Lineal!D174 -> 0 | D171: 0 | E171: 0 | F171: 0
A172: =Regr_Lineal!B175 -> 0 | B172: =Regr_Lineal!C175 -> 0 | C172: =Regr_Lineal!D175 -> 0 | D172: 0 | E172: 0 | F172: 0
A173: =Regr_Lineal!B176 -> 0 | B173: =Regr_Lineal!C176 -> 0 | C173: =Regr_Lineal!D176 -> 0 | D173: 0 | E173: 0 | F173: 0
A174: =Regr_Lineal!B177 -> 0 | B174: =Regr_Lineal!C177 -> 0 | C174: =Regr_Lineal!D177 -> 0 | D174: 0 | E174: 0 | F174: 0
A175: =Regr_Lineal!B178 -> 0 | B175: =Regr_Lineal!C178 -> 0 | C175: =Regr_Lineal!D178 -> 0 | D175: 0 | E175: 0 | F175: 0
A176: =Regr_Lineal!B179 -> 0 | B176: =Regr_Lineal!C179 -> 0 | C176: =Regr_Lineal!D179 -> 0 | D176: 0 | E176: 0 | F176: 0
A177: =Regr_Lineal!B180 -> 0 | B177: =Regr_Lineal!C180 -> 0 | C177: =Regr_Lineal!D180 -> 0 | D177: 0 | E177: 0 | F177: 0
A178: =Regr_Lineal!B181 -> 0 | B178: =Regr_Lineal!C181 -> 0 | C178: =Regr_Lineal!D181 -> 0 | D178: 0 | E178: 0 | F178: 0
A179: =Regr_Lineal!B182 -> 0 | B179: =Regr_Lineal!C182 -> 0 | C179: =Regr_Lineal!D182 -> 0 | D179: 0 | E179: 0 | F179: 0
A180: =Regr_Lineal!B183 -> 0 | B180: =Regr_Lineal!C183 -> 0 | C180: =Regr_Lineal!D183 -> 0 | D180: 0 | E180: 0 | F180: 0
A181: =Regr_Lineal!B184 -> 0 | B181: =Regr_Lineal!C184 -> 0 | C181: =Regr_Lineal!D184 -> 0 | D181: 0 | E181: 0 | F181: 0
A182: =Regr_Lineal!B185 -> 0 | B182: =Regr_Lineal!C185 -> 0 | C182: =Regr_Lineal!D185 -> 0 | D182: 0 | E182: 0 | F182: 0
A183: =Regr_Lineal!B186 -> 0 | B183: =Regr_Lineal!C186 -> 0 | C183: =Regr_Lineal!D186 -> 0 | D183: 0 | E183: 0 | F183: 0
A184: =Regr_Lineal!B187 -> 0 | B184: =Regr_Lineal!C187 -> 0 | C184: =Regr_Lineal!D187 -> 0 | D184: 0 | E184: 0 | F184: 0
A185: =Regr_Lineal!B188 -> 0 | B185: =Regr_Lineal!C188 -> 0 | C185: =Regr_Lineal!D188 -> 0 | D185: 0 | E185: 0 | F185: 0
A186: =Regr_Lineal!B189 -> 0 | B186: =Regr_Lineal!C189 -> 0 | C186: =Regr_Lineal!D189 -> 0 | D186: 0 | E186: 0 | F186: 0
A187: =Regr_Lineal!B190 -> 0 | B187: =Regr_Lineal!C190 -> 0 | C187: =Regr_Lineal!D190 -> 0 | D187: 0 | E187: 0 | F187: 0
A188: =Regr_Lineal!B191 -> 0 | B188: =Regr_Lineal!C191 -> 0 | C188: =Regr_Lineal!D191 -> 0 | D188: 0 | E188: 0 | F188: 0
A189: =Regr_Lineal!B192 -> 0 | B189: =Regr_Lineal!C192 -> 0 | C189: =Regr_Lineal!D192 -> 0 | D189: 0 | E189: 0 | F189: 0
A190: =Regr_Lineal!B193 -> 0 | B190: =Regr_Lineal!C193 -> 0 | C190: =Regr_Lineal!D193 -> 0 | D190: 0 | E190: 0 | F190: 0
A191: =Regr_Lineal!B194 -> 0 | B191: =Regr_Lineal!C194 -> 0 | C191: =Regr_Lineal!D194 -> 0 | D191: 0 | E191: 0 | F191: 0
A192: =Regr_Lineal!B195 -> 0 | B192: =Regr_Lineal!C195 -> 0 | C192: =Regr_Lineal!D195 -> 0 | D192: 0 | E192: 0 | F192: 0
A193: =Regr_Lineal!B196 -> 0 | B193: =Regr_Lineal!C196 -> 0 | C193: =Regr_Lineal!D196 -> 0 | D193: 0 | E193: 0 | F193: 0
A194: =Regr_Lineal!B197 -> 0 | B194: =Regr_Lineal!C197 -> 0 | C194: =Regr_Lineal!D197 -> 0 | D194: 0 | E194: 0 | F194: 0 | J194: =IF(D194=0,"",D194) -> 
A195: =Regr_Lineal!B198 -> 0 | B195: =Regr_Lineal!C198 -> 0 | C195: =Regr_Lineal!D198 -> 0 | D195: =B195^2 -> 0 | E195: =B195*C195 -> 0 | F195: =C195^2 -> 0 | G195: =IF(A195=0,"",A195) ->  | K195: =IF(E195=0,"",E195) -> 
A196: =Regr_Lineal!B199 -> 0 | B196: =Regr_Lineal!C199 -> 0 | C196: =Regr_Lineal!D199 -> 0 | D196: 0 | E196: 0 | F196: 0
A197: =Regr_Lineal!B200 -> 0 | B197: =Regr_Lineal!C200 -> 0 | C197: =Regr_Lineal!D200 -> 0 | D197: 0 | E197: 0 | F197: 0
A198: =Regr_Lineal!B201 -> 0 | B198: =Regr_Lineal!C201 -> 0 | C198: =Regr_Lineal!D201 -> 0 | D198: 0 | E198: 0 | F198: 0
A199: =Regr_Lineal!B202 -> 0 | B199: =Regr_Lineal!C202 -> 0 | C199: =Regr_Lineal!D202 -> 0 | D199: 0 | E199: 0 | F199: 0
A200: =Regr_Lineal!B203 -> 0 | B200: =Regr_Lineal!C203 -> 0 | C200: =Regr_Lineal!D203 -> 0 | D200: 0 | E200: 0 | F200: 0
... 301 more rows
